{"text_format":"1","workbook":"xlsx","n_sheets":23,"sheets":["Start","Benutzer","Hilfe","Suchen","Lagerinfo","Inventur","dt. Regionen","Lieferant","Rebsorten","Übersicht","Muster","Karte 1","Karte 2","Karte 3","Karte 4","Karte 5","Karte 6","Karte 7","Karte 8","Karte 9","Karte 10","Karte 11","Karte 12"],"not_rendered":{"charts":8,"images":21,"macros":1,"external_links":0,"defined_names":428,"comments":17,"pivot_tables":0},"unopened":[],"bounds":{"document_bytes":16777216,"sheet_cells":100000,"rows_first":2000,"rows_last":500,"rows_between":2000,"halvings":0,"cell_chars":16384,"cell_head_chars":4096},"cells_cut":0,"cells_raw":0,"read":"whole","date_system":"1900"}

{"sheet":"Start","index":0,"n_rows":29,"n_cols":13,"rows_kept":29,"cut":false,"hidden":false,"merged":[[3,8,3,9],[17,9,17,10],[28,12,28,15],[6,12,6,13]]}
[]
[]
[]
[]
[]
[]
[null,null,null,null,null,null,null,null,null,null,null,null,{"$f":"NOW()","v":"2015-04-13T15:03:50.080"}]
[]
[]
[]
[]
[]
[]
[]
[]
[]
[]
[]
[]
[]
[]
[]
[]
[]
[]
[]
[]
[]
[null,null,null,null,null,null,null,null,null,null,null,null,"Schade, daß man einen Wein nicht streicheln kann.\nKurt Tucholsky"]

{"sheet":"Benutzer","index":1,"n_rows":6,"n_cols":57,"rows_kept":6,"cut":false,"hidden":false,"merged":[]}
["vino 40"]
[]
["Benutzerliste"]
[]
[]
["Vorname, Nachname","Kürzel","Datum","Datum","Datum","Datum","Datum","Datum","Datum","Datum","Datum","Datum","Datum","Datum","Datum","Datum","Datum","Datum","Datum","Datum","Datum","Datum","Datum","Datum","Datum","Datum","Datum","Datum","Datum","Datum","Datum","Datum","Datum","Datum","Datum","Datum","Datum","Datum","Datum","Datum","Datum","Datum","Datum","Datum","Datum","Datum","Datum","Datum","Datum","Datum","Datum","Datum","Datum","Datum","Datum","Datum","Datum"]

{"sheet":"Hilfe","index":2,"n_rows":59,"n_cols":3,"rows_kept":59,"cut":false,"hidden":false,"merged":[]}
["vino 40"]
[null,null,"Hilfe und deutsche Güteklassen"]
[]
[null,"VIN0 - Weinlagerverwaltung 3.9"]
[null,"allgemeiner Hinweis","Das Programm \"vino - Weinlagerverwaltung\" ist für den Berufsschulunterricht konzipiert. Es eignet sich vor allem für die Verwaltung deutscher Weine, schließt aber die Eingabe ausländischer Weine nicht aus.  \nEs beschränkt sich auf die Eingabe und Verwaltung von 12 Weinsorten. Ein praktischer Einsatz wäre wegen dieser und anderer Einschränkungen nicht möglich.\nWichtig: Dieses Programm benötigt Excel 2007 oder höher. Die Makros müssen aktiviert sein!"]
[null,"Bedenken Sie beim Ausfüllen der Lagerkartei,","dass die Datumsangabe (Zu- und Abgang von Wein) unbedingt erforderlich ist.\ndass das Feld \"Kürzel Lagerist\" ausgefüllt werden muss.\ndass Nullwerte nicht angezeigt werden (leeres Feld).\ndass Bestand und Lagerwerte nicht kleiner Null sein können (Fehler!)."]
[null,"Abgang","Dieses Feld nimmt die Anzahl der Flaschen auf, die dem Lager entnommen werden."]
[null,"akt. Weinkarte","Wenn dieser Artikel Bestandteil der aktuellen Weinkarte ist, muss hier ein Häkchen angeklickt werden."]
[null,"alte Einstellung","Der Bildschirm wird wieder in den alten Zustand versetzt. Dies sollte unbedingt nach jeder Sitzung mit \"vino\" erfolgen, damit andere SchülerInnen, die am PC arbeiten, auch z.B. die Symbolleisten wieder zur Verfügung haben."]
[null,"Artikelnummer","Die Artikelnummer besteht aus einer 7-stelligen Zahl. Die ersten beiden Zahlen (von links) werden vom Programm automatisch erzeugt. Dabei steht die \"5\" für Wein und Sekt. Die nächste Zahl gibt den Lagerort an. Die folgenden Zahl müssen vom Lageristen selbst eingesetzt werden. Zunächst kennzeichnen die beiden nächsten Ziffern die Rebsorte. Die Bezeichnung hierfür entnimmt man der Blattregisterkarte \"Rebsorte\" (z.B. \"10\" für Gutedel). Die drei letzten Zahlen orientieren sich an der Nummer der Blattregisterkarte (z.B. 002 kennzeichnet die 2. Karte)."]
[null,"Artikelnummer Lieferant","Die Artikelnummer muss der Bestelliste, dem Katalog o.ä. des Lieferanten entnommen werden. Es können maximal 14 Zeichen eingesetzt werden."]
[null,"Bemerkungen (im oberen Teil)","In dieses Feld (max. 45 Zeichen) können Angaben eingetragen werden, für die bisher kein Eingabefeld zur Verfügung stand."]
[null,"Bemerkungen ( im unteren Teil)","Hier kann der Lagerist Notizen zu den jeweiligen Vorgängen (z.B. Entnahmen) einfügen (max. 20 Zeichen)."]
[null,"Benutzerliste","In diese Liste muss sich jeder Benutzer des Lagerverwaltungsprogrammes eintragen. Zunächst gibt er seinen Namen dann ein von ihm gewähltes Namenskürzel (2, 3 oder 4 Zeichen) ein. In die Datumsfelder trägt er immer dann ein Datum ein, wenn er das Programm verwendet."]
[null,"Beschränkungen","VINO arbeitet nur mit folgenden Werten:\n- pro Weinsorte 1000 Flaschen\n- pro Regal/Lager 3000 Flaschen\n- max. Lagerbestand 12.000 Flaschen\n- max. 18 Lieferanten\n- max. 12 Weinsorten\n- Einer Weinsorte kann nur ein Regal/Lager zugeordnet werden."]
[null,"Bestand","In diesem Feld wird der aktuelle Lagerbestand (Flaschenanzahl) der jeweiligen Sorte angezeigt."]
[null,"Bestellbestand","Der Bestellbestand wird vom Lageristen bestimmt (errechnet) und in dieses Feld eingegeben. Es sind Werte zwischen 1 und 1000 möglich."]
[null,"Blattregister","Jedes Arbeitsblatt ist mit einem kleinen \"Reiter\" versehen, der den Namen des Arbeitsblattes anzeigt. \nDie \"Reiter\" befinden sich unterhalb der Arbeitsblätter. Um sie nach rechts oder links zu verschieben, benutzt man die Pfeile, die sich links daneben befinden.                \nKlicken Sie mit der rechten Maustaste in dieses Feld, erhalten Sie eine Auswahlliste aller verfügbaren Arbeitsblätter.                                                     "]
[null,"Datum","Das aktuelle Datum muss eingegeben werden. Es weicht bei Übungen im Unterricht i.d.R. vom Systemdatum (Lagerkarte oben links) ab. Folgende Eingabemöglichkeiten bestehen: 12.09.2002 oder 12.09.02. Wird das Datum nicht eingegeben, ist eine sinnvolle Weiterarbeit nicht möglich."]
[null,"deutsche Regionen","Das Blatt \"Dt. Regionen\" zeigt die deutschen Weinanbaugebiete und eine dazugehörige Karte. Die Informationen können dann in die Lagerkarteikarte kopiert werden."]
[null,"dt. Güteklassen","Klicken Sie auf das Eingabefeld und anschließend auf den Auswahlbutton. Es erscheint eine Liste, aus der Sie gewünschte Angabe auswählen können."]
[null,"Dt. Landwein","Klicken Sie auf das Eingabefeld und anschließend auf den Auswahlbutton. Es erscheint eine Liste, aus der Sie gewünschte Angabe auswählen können.\nWählen Sie die Deutsche Landweinart nur aus, wenn Sie auch die entsprechende Güteklasse gewählt haben."]
[null,"dt. Prädikatsstufe","Klicken Sie auf das Eingabefeld und anschließend auf den Auswahlbutton. Es erscheint eine Liste, aus der Sie gewünschte Angabe auswählen können."]
[null,"EKP/Stück","Geben Sie hier den Einkaufspreis pro Stück (Flasche) in € ohne  Mehrwertsteuer an. Im nächsten Feld wird der Wert inkl.MWSt. automatisch errechnet. Der durchschnittliche Einkaufspreis pro Stück (mit und ohne MWSt.) berücksichtigt unterschiedliche Einkaufpreise und entsprechend unterschiedliche Mengen."]
[null,"Entnahme durch Abteilung","Hier wird die jeweilige Abteilung des Hotels angegeben, die den Wein erhält, z.B. \"Etage\", \"Bar\"."]
[null,"Gemeinde","Geben Sie hier die Weinanbaugemeinde ein - max. 20 Zeichen."]
[null,"Geschmack","Geben Sie hier die Wein-Geschmacksrichtung ein, z.B. \"trocken\" - max. 20 Zeichen."]
[null,"Herstellungsart","Klicken Sie auf das Eingabefeld und anschließend auf den Auswahlbutton. Es erscheint eine Liste, aus der Sie gewünschte Angabe auswählen können."]
[null,"Hilfe drucken","Diese Hilfeseite wird ausgedruckt."]
[null,"Höchstbestand","Geben Sie eine Zahl bis 1000 ein."]
[null,"Inhalt in Liter","Klicken Sie auf das Eingabefeld und anschließend auf den Auswahlbutton. Es erscheint eine Liste, aus der Sie gewünschte Angabe auswählen können."]
[null,"Inventur","Hier können die aktuellen Werte einer körperlichen Stichtagsinventur eingegeben werden. Die Werte werden dann automatisch mit den Werten der Lagerkartei verglichen."]
[null,"Jahrgang","Eingabe einer 4-stelligen Zahl, z.B. 2011"]
[null,"Kürzel Lagerist","Das Kürzel besteht aus 2 bis Zeichen. Es muss dem Namenskürzel der Benutzerliste entsprechen. Wird kein Kürzel eingegeben, ist eine sinnvolle Weiterarbeit nicht möglich!"]
[null,"Lagerinformation","Hier erhalten Sie einen Überblick über die Lager-Füllstände. Die Größen der einzelnen Lagerorte können frei eingegeben werden. Allerdings kann ein Lagerort max. 3000 Flaschen (auf der Basis von 0,75 l-Flaschen) aufnehmen. Das Programm warnt bei Überschreitungen der zulässigen Lagermengen."]
[null,"Lagerort","Klicken Sie auf das Eingabefeld und anschließend auf den Auswahlbutton. Es erscheint eine Liste, aus der Sie gewünschte Angabe auswählen können."]
[null,"Lagerwert","Hier wird der aktuelle, zur Zeit im Lager befindliche Wert (in € ohne bzw. mit Mehrwertsteuer) der jeweiligen Sorte angezeigt. Der Wert wird mit dem durchschnittlichen Einkaufpreis errechnet."]
[null,"Land","Geben Sie das Herkunftsland des Weines an - maximal 14 Zeichen.\nDeutschland ist voreingestellt."]
[null,"laufende Nummer","Jeder Vorgang hat eine fortlaufende Nummer. Sie kann nicht verändert werden."]
[null,"Lieferant","Dieses Feld nimmt den Namen des Lieferanten auf. Klicken Sie auf das Eingabefeld und anschließend auf den Auswahlbutton., aus der sie den richtigen Lieferanten auswählen können."]
[null,"Lieferantenkartei","Diese Kartei dient dazu, alle wichtigen Informationen der Lieferanten zu erfassen."]
[null,"Link","Begriffemit einem Pfeil       , z.B. Rebsorte, enthalten einen Verweis auf eine dazugehörige Informationsseite. Klicken Sie auf den Pfeil."]
[null,"Liste sortieren","Die Lieferantenliste wird alphabetisch sortiert."]
[null,"löschen","Wenn Sie eingegebene Werte löschen möchten, betätigen Sie bitte unbedingt die Taste \"Entf\". Verwenden Sie auf keinen Fall  den Befehl \"Bearbeiten - Löschen - Alles\"."]
[null,"Meldung","Dieses Feld liefert eventuell wichtige Informationen, z.B. \"Fehler\" oder \"bestellen\" ."]
[null,"Muster","Das Blatt \"Muster\" (leere Karteikarte) kann nicht verändert werden. Es dient lediglich zur Information bzw. Übersicht."]
[null,"Nullwerte","Nullwerte (\"0\") werden  nicht angezeigt. Ist ein Feld, z.B. \"Lagerwert\" leer, ist der Lagerwert eben gleich Null. \n"]
[null,"Optimaler Bildschirm","Durch Drücken dieser Taste wird die Bildschirmansicht optimiert, so dass mehr Arbeitsfläche zur Verfügung steht."]
[null,"Rebsorte","Geben Sie hier die Rebsorte ein - maximal 18 Zeichen. Die Bezeichnungen finden Sie im Blatt \"Rebsorten\". Sie können aber auch eine kopierte Rebsorte mit dem Button        einfügen."]
[null,"Rebsorten","Dieses Blatt enthält eine Liste der gängigen Rebsorten. Die Liste kann vom Benutzer ergänzt werden. Die Kurzbezeichnung muss dann sinnvoll frei gewählt werden. Auch die laufende Nummer ist zu ergänzen."]
[null,"Region","Geben Sie die Region (Weinanbaugebiet) ein. Eine Übersicht über die deutschen Weinregionen erhalten Sie im Blatt \"dt. Regionen\"."]
[null,"Reife ab","Dieses Feld nimmt das Reifedatum des Weines auf. Es wird im Format \"Monat-Jahr\" ausgegeben. Ist das Systemdatum kleiner als das Reifedatum, wird eine Warnmeldung ausgegeben."]
[null,"sonst. Klassifikation","In diese Feld können weitere Klassifikationen (Einstufungen, Bewertungen) des Weines eingesetzt werden, z.B. \"Deutsches Weinsiegel\" - maximal 20 Zeichen."]
[null,"Suchfunktion","Es handelt sich dabei um die normale \"Excel-Suchfunktion\". Sie wird auf dem Blatt \"Suchen\" ausführlich erläutert."]
[null,"Übersicht","Das Blatt \"Übersicht\" kann vom Lageristen nicht verändert werden. Es bietet wichtige aktuelle Lagerinformationen an. Es kann hier sehr schnell erkannt werden, welcher Wein auf welcher Karte registriert ist. "]
[null,"Verbrauch bis","Dieses Feld nimmt das Verbrauchsdatum des Weines auf. Es wird im Format \"Monat-Jahr\" ausgegeben. Liegt das Systemdatum einen Monat vor oder sogar nach dem Verbrauchsdatum, wird eine Warnmeldung ausgegeben."]
[null,"Vollbild","Durch Drücken dieser Taste wird in die Excel-Vollbildanzeige umgeschaltet. Die ist auch im Excel-Menü \"Ansicht\" - \"Ganzer Bildschirm\" möglich. (siehe auch: \"Optimaler Bildschirm\")"]
[null,"Weinbergslage","Geben Sie die Weinbergslage ein, z.B. \"Rosengarten\" - max. 20 Zeichen."]
[null,"Zugang/Anfangsbestand","Zunächst nimmt dieses Feld den Anfangbestand auf. Anschließend können hier die Zugänge eingetragen werden. Die Begrenzung liegt bei 1000 Flaschen."]

{"sheet":"Suchen","index":3,"n_rows":14,"n_cols":4,"rows_kept":14,"cut":false,"hidden":false,"merged":[]}
["vino 40"]
[]
[null,null,null,"Suchen Sie einen Begriff? "]
[]
[null,null,null,"Dann gehen Sie wie folgt vor:"]
[]
[]
[null,null,null,"1. Klicken Sie mit der rechten Maustaste auf ein Blattregister (unten) und wählen Sie \"Alle Blätter auswählen\"."]
[]
[null,null,null,"2. Drücken Sie die Tastenkombination Strg + F ."]
[]
[null,null,null,"3. Geben Sie Ihren Suchbegriff ein und wählen Sie \"Weitersuchen\"."]
[]
[null,null,null,"Beispiel"]

{"sheet":"Lagerinfo","index":4,"n_rows":56,"n_cols":15,"rows_kept":56,"cut":false,"hidden":false,"merged":[[2,5,2,8],[12,1,16,1],[22,2,22,4],[21,2,21,4]]}
["vino 40"]
[]
[null,null,null,null,null,"Lagerinformation"]
[null,"Beschränkungen"]
[]
[null,null,"Regal 1","Regal 2","Regal 3","Regal 4","Rotwein-lager 1","Rotwein-lager 2","Schaumwein-lager"]
[null,"Maximaler Bestand",1000,500,300,350,1000,500,300,{"$f":"SUM(C7:I7)","v":3950}]
[null,"Ist - Bestand in Flaschen",{"$f":"O50","v":0},{"$f":"O51","v":0},{"$f":"O52","v":0},{"$f":"O53","v":0},{"$f":"O54","v":0},{"$f":"O55","v":0},{"$f":"O56","v":0}]
[null,"Ist - Bestand in %",{"$f":"O50/C7*100","v":0},{"$f":"O51/D7*100","v":0},{"$f":"O52/E7*100","v":0},{"$f":"O53/F7*100","v":0},{"$f":"O54/G7*100","v":0},{"$f":"O55/H7*100","v":0},{"$f":"O56/I7*100","v":0}]
[]
[]
[]
[null,{"$f":"IF(J7>12000,\"Achtung!\n Der Lagerhöchst-\nbestand ist überschritten. [max. 12.000 Flaschen]\",\"keine Meldung\")","v":"keine Meldung"}]
[]
[]
[]
[]
[]
[]
[]
[]
[null,null,"akt. Lagerbestand"]
[null,null,"max.Lagerbestand = 100%"]
[]
[]
[]
[]
[]
[]
[]
[]
[]
[]
[]
[]
[]
[]
[]
[]
[]
[]
[]
[]
[]
[]
[]
[]
[null,null,"Menge"]
[null,null,"Karte1","Karte2","Karte3","Karte4","Karte5","Karte6","Karte7","Karte8","Karte9","Karte10","Karte11","Karte12","Summe"]
[null,"Regal 1",{"$f":"IF(Übersicht!E11=1,Übersicht!L11,0)","v":0},{"$f":"IF(Übersicht!E12=1,Übersicht!L12,0)","v":0},{"$f":"IF(Übersicht!E13=1,Übersicht!L13,0)","v":0},{"$f":"IF(Übersicht!E14=1,Übersicht!L14,0)","v":0},{"$f":"IF(Übersicht!E15=1,Übersicht!L15,0)","v":0},{"$f":"IF(Übersicht!E16=1,Übersicht!L16,0)","v":0},{"$f":"IF(Übersicht!E17=1,Übersicht!L17,0)","v":0},{"$f":"IF(Übersicht!E18=1,Übersicht!L18,0)","v":0},{"$f":"IF(Übersicht!E19=1,Übersicht!L19,0)","v":0},{"$f":"IF(Übersicht!E20=1,Übersicht!L20,0)","v":0},{"$f":"IF(Übersicht!E21=1,Übersicht!L21,0)","v":0},{"$f":"IF(Übersicht!E22=1,Übersicht!L22,0)","v":0},{"$f":"SUM(C50:N50)","v":0}]
[null,"Regal 2",{"$f":"IF(Übersicht!E11=2,Übersicht!L11,0)","v":0},{"$f":"IF(Übersicht!E12=2,Übersicht!L12,0)","v":0},{"$f":"IF(Übersicht!E13=2,Übersicht!L13,0)","v":0},{"$f":"IF(Übersicht!E14=2,Übersicht!L14,0)","v":0},{"$f":"IF(Übersicht!E15=2,Übersicht!L15,0)","v":0},{"$f":"IF(Übersicht!E16=2,Übersicht!L16,0)","v":0},{"$f":"IF(Übersicht!E17=2,Übersicht!L17,0)","v":0},{"$f":"IF(Übersicht!E18=2,Übersicht!L18,0)","v":0},{"$f":"IF(Übersicht!E19=2,Übersicht!L19,0)","v":0},{"$f":"IF(Übersicht!E20=2,Übersicht!L20,0)","v":0},{"$f":"IF(Übersicht!E21=2,Übersicht!L21,0)","v":0},{"$f":"IF(Übersicht!E22=2,Übersicht!L22,0)","v":0},{"$f":"SUM(C51:N51)","v":0}]
[null,"Regal 3",{"$f":"IF(Übersicht!E11=3,Übersicht!L11,0)","v":0},{"$f":"IF(Übersicht!E12=3,Übersicht!L12,0)","v":0},{"$f":"IF(Übersicht!E13=3,Übersicht!L13,0)","v":0},{"$f":"IF(Übersicht!E14=3,Übersicht!L14,0)","v":0},{"$f":"IF(Übersicht!E15=3,Übersicht!L15,0)","v":0},{"$f":"IF(Übersicht!E16=3,Übersicht!L16,0)","v":0},{"$f":"IF(Übersicht!E17=3,Übersicht!L17,0)","v":0},{"$f":"IF(Übersicht!E18=3,Übersicht!L18,0)","v":0},{"$f":"IF(Übersicht!E19=3,Übersicht!L19,0)","v":0},{"$f":"IF(Übersicht!E20=3,Übersicht!L20,0)","v":0},{"$f":"IF(Übersicht!E21=3,Übersicht!L21,0)","v":0},{"$f":"IF(Übersicht!E22=3,Übersicht!L22,0)","v":0},0]
[null,"Regal 4",{"$f":"IF(Übersicht!E11=4,Übersicht!L11,0)","v":0},{"$f":"IF(Übersicht!E12=4,Übersicht!L12,0)","v":0},{"$f":"IF(Übersicht!E13=4,Übersicht!L13,0)","v":0},{"$f":"IF(Übersicht!E14=4,Übersicht!L14,0)","v":0},{"$f":"IF(Übersicht!E15=4,Übersicht!L15,0)","v":0},{"$f":"IF(Übersicht!E16=4,Übersicht!L16,0)","v":0},{"$f":"IF(Übersicht!E17=4,Übersicht!L17,0)","v":0},{"$f":"IF(Übersicht!E18=4,Übersicht!L18,0)","v":0},{"$f":"IF(Übersicht!E19=4,Übersicht!L19,0)","v":0},{"$f":"IF(Übersicht!E20=4,Übersicht!L20,0)","v":0},{"$f":"IF(Übersicht!E21=4,Übersicht!L21,0)","v":0},{"$f":"IF(Übersicht!E22=4,Übersicht!L22,0)","v":0},0]
[null,"Rotweinlager 1",{"$f":"IF(Übersicht!E11=5,Übersicht!L11,0)","v":0},{"$f":"IF(Übersicht!E12=5,Übersicht!L12,0)","v":0},{"$f":"IF(Übersicht!E13=5,Übersicht!L13,0)","v":0},{"$f":"IF(Übersicht!E14=5,Übersicht!L14,0)","v":0},{"$f":"IF(Übersicht!E15=5,Übersicht!L15,0)","v":0},{"$f":"IF(Übersicht!E16=5,Übersicht!L16,0)","v":0},{"$f":"IF(Übersicht!E17=5,Übersicht!L17,0)","v":0},{"$f":"IF(Übersicht!E18=5,Übersicht!L18,0)","v":0},{"$f":"IF(Übersicht!E19=5,Übersicht!L19,0)","v":0},{"$f":"IF(Übersicht!E20=5,Übersicht!L20,0)","v":0},{"$f":"IF(Übersicht!E21=5,Übersicht!L21,0)","v":0},{"$f":"IF(Übersicht!E22=5,Übersicht!L22,0)","v":0},0]
[null,"Rotweinlager 2",{"$f":"IF(Übersicht!E11=6,Übersicht!L11,0)","v":0},{"$f":"IF(Übersicht!E12=6,Übersicht!L12,0)","v":0},{"$f":"IF(Übersicht!E13=6,Übersicht!L13,0)","v":0},{"$f":"IF(Übersicht!E14=6,Übersicht!L14,0)","v":0},{"$f":"IF(Übersicht!E15=6,Übersicht!L15,0)","v":0},{"$f":"IF(Übersicht!E16=6,Übersicht!L16,0)","v":0},{"$f":"IF(Übersicht!E17=6,Übersicht!L17,0)","v":0},{"$f":"IF(Übersicht!E18=6,Übersicht!L18,0)","v":0},{"$f":"IF(Übersicht!E19=6,Übersicht!L19,0)","v":0},{"$f":"IF(Übersicht!E20=6,Übersicht!L20,0)","v":0},{"$f":"IF(Übersicht!E21=6,Übersicht!L21,0)","v":0},{"$f":"IF(Übersicht!E22=6,Übersicht!L22,0)","v":0},0]
[null,"Schaumweinlager",{"$f":"IF(Übersicht!E11=7,Übersicht!L11,0)","v":0},{"$f":"IF(Übersicht!E12=7,Übersicht!L12,0)","v":0},{"$f":"IF(Übersicht!E13=7,Übersicht!L13,0)","v":0},{"$f":"IF(Übersicht!E14=7,Übersicht!L14,0)","v":0},{"$f":"IF(Übersicht!E15=7,Übersicht!L15,0)","v":0},{"$f":"IF(Übersicht!E16=7,Übersicht!L16,0)","v":0},{"$f":"IF(Übersicht!E17=7,Übersicht!L17,0)","v":0},{"$f":"IF(Übersicht!E18=7,Übersicht!L18,0)","v":0},{"$f":"IF(Übersicht!E19=7,Übersicht!L19,0)","v":0},{"$f":"IF(Übersicht!E20=7,Übersicht!L20,0)","v":0},{"$f":"IF(Übersicht!E21=7,Übersicht!L21,0)","v":0},{"$f":"IF(Übersicht!E22=7,Übersicht!L22,0)","v":0},0]

{"sheet":"Inventur","index":5,"n_rows":23,"n_cols":15,"rows_kept":23,"cut":false,"hidden":false,"merged":[[7,12,7,14],[7,9,7,11],[3,4,3,5],[4,4,4,5],[7,6,7,8]]}
["vino 40"]
[null,null,"Inventur"]
[]
[null,null,"Datum:"]
[null,null,"Name:"]
[]
[]
[null,null,null,null,null,null,"Lagerkarteiwerte",null,null,"Inventurwerte\n(einsetzen)",null,null,"Abweichung\nInventur ./. Kartei"]
[null,null,"Kar-ten-Nr.","Artikel-Nr.",null,null,"Menge Flaschen","Lagerwert zum EKP in EURO\nohne MWSt.","Lagerwert zum EKP in EURO\ninkl. MWSt.","Menge Flaschen","Lagerwert zum EKP in EURO\nohne MWSt.","Lagerwert zum EKP in EURO\ninkl. MWSt.","Menge Flaschen","Lagerwert zum EKP in EURO\nohne MWSt.","Lagerwert zum EKP in EURO\ninkl. MWSt."]
[null,null,1,5,{"$f":"Übersicht!E11","v":""},{"$f":"Übersicht!F11","v":0},{"$f":"Übersicht!L11","v":0},{"$f":"Übersicht!M11","v":0},{"$f":"H10+H10*19/100","v":0},null,{"$f":"J10*'Karte 1'!J104","v":0},{"$f":"K10+K10*19/100","v":0},{"$f":"J10-G10","v":0},{"$f":"K10-H10","v":0},{"$f":"N10+N10*19/100","v":0}]
[null,null,2,5,{"$f":"Übersicht!E12","v":""},{"$f":"Übersicht!F12","v":0},{"$f":"Übersicht!L12","v":0},{"$f":"Übersicht!M12","v":0},{"$f":"H11+H11*19/100","v":0},null,{"$f":"J11*'Karte 2'!J104","v":0},{"$f":"K11+K11*19/100","v":0},0,0,{"$f":"N11+N11*19/100","v":0}]
[null,null,3,5,{"$f":"Übersicht!E13","v":""},{"$f":"Übersicht!F13","v":0},{"$f":"Übersicht!L13","v":0},{"$f":"Übersicht!M13","v":0},0,null,{"$f":"J12*'Karte 3'!J104","v":0},0,0,0,0]
[null,null,4,5,{"$f":"Übersicht!E14","v":""},{"$f":"Übersicht!F14","v":0},{"$f":"Übersicht!L14","v":0},{"$f":"Übersicht!M14","v":0},0,null,{"$f":"J13*'Karte 4'!J104","v":0},0,0,0,0]
[null,null,5,5,{"$f":"Übersicht!E15","v":""},{"$f":"Übersicht!F15","v":0},{"$f":"Übersicht!L15","v":0},{"$f":"Übersicht!M15","v":0},0,null,{"$f":"J14*'Karte 5'!J104","v":0},0,0,0,0]
[null,null,6,5,{"$f":"Übersicht!E16","v":""},{"$f":"Übersicht!F16","v":0},{"$f":"Übersicht!L16","v":0},{"$f":"Übersicht!M16","v":0},0,null,{"$f":"J15*'Karte 6'!J104","v":0},0,0,0,0]
[null,null,7,5,{"$f":"Übersicht!E17","v":""},{"$f":"Übersicht!F17","v":0},{"$f":"Übersicht!L17","v":0},{"$f":"Übersicht!M17","v":0},0,null,{"$f":"J16*'Karte 7'!J104","v":0},0,0,0,0]
[null,null,8,5,{"$f":"Übersicht!E18","v":""},{"$f":"Übersicht!F18","v":0},{"$f":"Übersicht!L18","v":0},{"$f":"Übersicht!M18","v":0},0,null,{"$f":"J17*'Karte 8'!J104","v":0},0,0,0,0]
[null,null,9,5,{"$f":"Übersicht!E19","v":""},{"$f":"Übersicht!F19","v":0},{"$f":"Übersicht!L19","v":0},{"$f":"Übersicht!M19","v":0},0,null,{"$f":"J18*'Karte 9'!J104","v":0},0,0,0,0]
[null,null,10,5,{"$f":"Übersicht!E20","v":""},{"$f":"Übersicht!F20","v":0},{"$f":"Übersicht!L20","v":0},{"$f":"Übersicht!M20","v":0},0,null,{"$f":"J19*'Karte 10'!J104","v":0},0,0,0,0]
[null,null,11,5,{"$f":"Übersicht!E21","v":""},{"$f":"Übersicht!F21","v":0},{"$f":"Übersicht!L21","v":0},{"$f":"Übersicht!M21","v":0},0,null,{"$f":"J20*'Karte 11'!J104","v":0},0,0,0,0]
[null,null,12,5,{"$f":"Übersicht!E22","v":""},{"$f":"Übersicht!F22","v":0},{"$f":"Übersicht!L22","v":0},{"$f":"Übersicht!M22","v":0},0,null,{"$f":"J21*'Karte 12'!J104","v":0},0,0,0,0]
[]
[null,null,null,null,"Summen:",null,{"$f":"SUM(G10:G21)","v":0},0,0,0,0,0,0,0,0]

{"sheet":"dt. Regionen","index":6,"n_rows":20,"n_cols":3,"rows_kept":20,"cut":false,"hidden":false,"merged":[[1,4,1,8]]}
["vino 40"]
[]
[]
[]
[]
[]
[]
[null,null,"Ahr"]
[null,null,"Baden"]
[null,null,"Franken"]
[null,null,"Hess. Bergstraße"]
[null,null,"Mittelrhein"]
[null,null,"Mosel"]
[null,null,"Nahe"]
[null,null,"Pfalz"]
[null,null,"Rheinhessen"]
[null,null,"Rheingau"]
[null,null,"Saale-Unstrut"]
[null,null,"Sachsen"]
[null,null,"Württemberg"]

{"sheet":"Lieferant","index":7,"n_rows":8,"n_cols":10,"rows_kept":8,"cut":false,"hidden":false,"merged":[]}
["Weinlager - Lieferantenkartei"]
["VITAL-Hotel \"sport und meer\""]
[{"$f":"NOW()","v":"2015-04-13T15:03:50.080"}]
["Lieferant","Straße","Haus-Nr.","Land","PLZ","Ort","Telefon","Fax","E-Mail","Bemerkungen"]
["Domaine du Croc du Merle","Rue de la Chaumette",38,"F",41500,"Muides/Loire",254875865,254870285,null,"Anne-Marie & Patrice Hahusseau"]
["Forster Winzerverein","Hauptstraße",57,"D",67147,"Forst a. d. Weinstr.","06326/306","06326/1391","forsterWinzer@t-online.de","Preisliste 05/2015"]
["Gebiets-Winzergen. Franken eG","Alte Reichsstraße",70,"D",97318,"Kitzingen","09321/7005-0","7005-131","Reiner.Wein@GWF-Frankenwein.de"]
["Weingut Johannes Kleinmann","Hauptstr.",17,"D",76831,"Birkweiler","06345/3547",7777,null,"Preisliste 2015"]

{"sheet":"Rebsorten","index":8,"n_rows":25,"n_cols":9,"rows_kept":25,"cut":false,"hidden":false,"merged":[[2,2,3,3],[24,3,25,4]]}
["vino 40"]
[]
[null,null,"REBSORTEN",null,null,null,null,"Blauer Zweigelt","30-BZW"]
[null,null,null,null,null,null,null,"Blaufränkisch","31-BFR"]
[null,null,null,null,null,null,null,"Cabernet-Sauvignon","32-CAS"]
[null,null,null,null,null,null,null,"Clevner","33-CLE"]
[null,null,"Auxerrois","01-AUX","Riesling","18-RIS",null,"Domina","34-DOM"]
[null,null,"Bacchus","02-BAC","Rivaner","19-RIV",null,"Dornfelder","35-DOR"]
[null,null,"Chardonnay","03-CHA","Ruländer","20-RUL",null,"Frühburgunder","36-FBU"]
[null,null,"Clevner","04-CLE","Scheurebe","21-SRE",null,"Lemberger","37-LEM"]
[null,null,"Ehrenfelser","05-EHR","Siegerrebe","22-SIE",null,"Merlot","38-MER"]
[null,null,"Elbling","06-ELB","Silvaner","23-SIL",null,"Portugieser","39-POR"]
[null,null,"Freisamer","07-FRE","Traminer","24-TRA",null,"Regent","40-REG"]
[null,null,"Gewürztraminer","08-GTR","Weißburgunder","25-WBU",null,"Samtrot","41-SAM"]
[null,null,"Grauburgunder","09-GBU","Weißer Ebling","26-WEB",null,"Sankt Laurent","42-SLA"]
[null,null,"Gutedel","10-GUT","Welschriesling","27-WER",null,"Schwarzriesling","43-SRI"]
[null,null,"Huxelrebe","11-HUX",null,null,null,"Spätburgunder","44-SBU"]
[null,null,"Kerner","12-KER",null,null,null,"Trollinger","45-TRO"]
[null,null,"Moriomuskat","13-MOR",null,null,null,"Zweigelt","46-ZWE"]
[null,null,"Müller-Thurgau","14-MTH"]
[null,null,"Nobling","15-NOB"]
[null,null,"Ortega","16-ORT"]
[null,null,"Rieslaner","17-RIL"]
[]
[null,null,null,"Gehe zu Karte Nr. ..."]

{"sheet":"Übersicht","index":9,"n_rows":53,"n_cols":13,"rows_kept":53,"cut":false,"hidden":false,"merged":[[7,6,7,7]]}
["vino 40"]
[]
[]
[]
[]
[]
[]
[]
[]
[null,null,"Kar-ten-Nr.","Artikel-Nr.",null,null,"Land","Rebsorte","Jahr-gang","Gemeinde","Weinbergslage","Menge Flaschen","Lagerwert zum EKP in EURO\nohne MWSt."]
[null,null,null,5,{"$f":"IF(ISLOGICAL('Karte 1'!J6),\"\",'Karte 1'!J6)","v":""},{"$f":"'Karte 1'!J13","v":0},{"$f":"'Karte 1'!C2","v":"Deutschland"},{"$f":"'Karte 1'!C7","v":0},{"$f":"'Karte 1'!C6","v":0},{"$f":"'Karte 1'!C4","v":0},{"$f":"'Karte 1'!C5","v":0},{"$f":"'Karte 1'!F104","v":0},{"$f":"'Karte 1'!L104","v":0}]
[null,null,null,5,{"$f":"IF(ISLOGICAL('Karte 2'!J6),\"\",'Karte 2'!J6)","v":""},{"$f":"'Karte 2'!J13","v":0},{"$f":"'Karte 2'!C2","v":"Deutschland"},{"$f":"'Karte 2'!C7","v":0},{"$f":"'Karte 2'!C6","v":0},{"$f":"'Karte 2'!C4","v":0},{"$f":"'Karte 2'!C5","v":0},{"$f":"'Karte 2'!F104","v":0},{"$f":"'Karte 2'!L104","v":0}]
[null,null,null,5,{"$f":"IF(ISLOGICAL('Karte 3'!J6),\"\",'Karte 3'!J6)","v":""},{"$f":"'Karte 3'!J13","v":0},{"$f":"'Karte 3'!C2","v":"Deutschland"},{"$f":"'Karte 3'!C7","v":0},{"$f":"'Karte 3'!C6","v":0},{"$f":"'Karte 3'!C4","v":0},{"$f":"'Karte 3'!C5","v":0},{"$f":"'Karte 3'!F104","v":0},{"$f":"'Karte 3'!L104","v":0}]
[null,null,null,5,{"$f":"IF(ISLOGICAL('Karte 4'!J6),\"\",'Karte 4'!J6)","v":""},{"$f":"'Karte 4'!J13","v":0},{"$f":"'Karte 4'!C2","v":"Deutschland"},{"$f":"'Karte 4'!C7","v":0},{"$f":"'Karte 4'!C6","v":0},{"$f":"'Karte 4'!C4","v":0},{"$f":"'Karte 4'!C5","v":0},{"$f":"'Karte 4'!F104","v":0},{"$f":"'Karte 4'!L104","v":0}]
[null,null,null,5,{"$f":"IF(ISLOGICAL('Karte 5'!J6),\"\",'Karte 5'!J6)","v":""},{"$f":"'Karte 5'!J13","v":0},{"$f":"'Karte 5'!C2","v":"Deutschland"},{"$f":"'Karte 5'!C7","v":0},{"$f":"'Karte 5'!C6","v":0},{"$f":"'Karte 5'!C4","v":0},{"$f":"'Karte 5'!C5","v":0},{"$f":"'Karte 5'!F104","v":0},{"$f":"'Karte 5'!L104","v":0}]
[null,null,null,5,{"$f":"IF(ISLOGICAL('Karte 6'!J6),\"\",'Karte 6'!J6)","v":""},{"$f":"'Karte 6'!J13","v":0},{"$f":"'Karte 6'!C2","v":"Deutschland"},{"$f":"'Karte 6'!C7","v":0},{"$f":"'Karte 6'!C6","v":0},{"$f":"'Karte 6'!C4","v":0},{"$f":"'Karte 6'!C5","v":0},{"$f":"'Karte 6'!F104","v":0},{"$f":"'Karte 6'!L104","v":0}]
[null,null,null,5,{"$f":"IF(ISLOGICAL('Karte 7'!J6),\"\",'Karte 7'!J6)","v":""},{"$f":"'Karte 7'!J13","v":0},{"$f":"'Karte 7'!C2","v":"Deutschland"},{"$f":"'Karte 7'!C7","v":0},{"$f":"'Karte 7'!C6","v":0},{"$f":"'Karte 7'!C4","v":0},{"$f":"'Karte 7'!C5","v":0},{"$f":"'Karte 7'!F104","v":0},{"$f":"'Karte 7'!L104","v":0}]
[null,null,null,5,{"$f":"IF(ISLOGICAL('Karte 8'!J6),\"\",'Karte 8'!J6)","v":""},{"$f":"'Karte 8'!J13","v":0},{"$f":"'Karte 8'!C2","v":"Deutschland"},{"$f":"'Karte 8'!C7","v":0},{"$f":"'Karte 8'!C6","v":0},{"$f":"'Karte 8'!C4","v":0},{"$f":"'Karte 8'!C5","v":0},{"$f":"'Karte 8'!F104","v":0},{"$f":"'Karte 8'!L104","v":0}]
[null,null,null,5,{"$f":"IF(ISLOGICAL('Karte 9'!J6),\"\",'Karte 9'!J6)","v":""},{"$f":"'Karte 9'!J13","v":0},{"$f":"'Karte 9'!C2","v":"Deutschland"},{"$f":"'Karte 9'!C7","v":0},{"$f":"'Karte 9'!C6","v":0},{"$f":"'Karte 9'!C4","v":0},{"$f":"'Karte 9'!C5","v":0},{"$f":"'Karte 9'!F104","v":0},{"$f":"'Karte 9'!L104","v":0}]
[null,null,null,5,{"$f":"IF(ISLOGICAL('Karte 10'!J6),\"\",'Karte 10'!J6)","v":""},{"$f":"'Karte 10'!J13","v":0},{"$f":"'Karte 10'!C2","v":"Deutschland"},{"$f":"'Karte 10'!C7","v":0},{"$f":"'Karte 10'!C6","v":0},{"$f":"'Karte 10'!C4","v":0},{"$f":"'Karte 10'!C5","v":0},{"$f":"'Karte 10'!F104","v":0},{"$f":"'Karte 10'!L104","v":0}]
[null,null,null,5,{"$f":"IF(ISLOGICAL('Karte 11'!J6),\"\",'Karte 11'!J6)","v":""},{"$f":"'Karte 11'!J13","v":0},{"$f":"'Karte 11'!C2","v":"Deutschland"},{"$f":"'Karte 11'!C7","v":0},{"$f":"'Karte 11'!C6","v":0},{"$f":"'Karte 11'!C4","v":0},{"$f":"'Karte 11'!C5","v":0},{"$f":"'Karte 11'!F104","v":0},{"$f":"'Karte 11'!L104","v":0}]
[null,null,null,5,{"$f":"IF(ISLOGICAL('Karte 12'!J6),\"\",'Karte 12'!J6)","v":""},{"$f":"'Karte 12'!J13","v":0},{"$f":"'Karte 12'!C2","v":"Deutschland"},{"$f":"'Karte 12'!C7","v":0},{"$f":"'Karte 12'!C6","v":0},{"$f":"'Karte 12'!C4","v":0},{"$f":"'Karte 12'!C5","v":0},{"$f":"'Karte 12'!F104","v":0},{"$f":"'Karte 12'!L104","v":0}]
[]
[null,null,null,null,null,null,null,null,null,null,"Summen:",{"$f":"SUM(L11:L22)","v":0},{"$f":"SUM(M11:M22)","v":0}]
[]
[]
[]
[]
[]
[]
[]
[]
[]
[]
[]
[]
[]
[]
[]
[]
[null,null,null,null,null,"Höchstbestand","Bestellbestand","Ist-Bestand"]
[null,null,null,null,1,{"$f":"'Karte 1'!I4","v":0},{"$f":"'Karte 1'!I3","v":0},{"$f":"L11","v":0}]
[null,null,null,null,2,{"$f":"'Karte 2'!I4","v":0},{"$f":"'Karte 2'!I3","v":0},{"$f":"L12","v":0}]
[null,null,null,null,3,{"$f":"'Karte 3'!I4","v":0},{"$f":"'Karte 3'!I3","v":0},0]
[null,null,null,null,4,{"$f":"'Karte 4'!I4","v":0},{"$f":"'Karte 4'!I3","v":0},0]
[null,null,null,null,5,{"$f":"'Karte 5'!I4","v":0},{"$f":"'Karte 5'!I3","v":0},0]
[null,null,null,null,6,{"$f":"'Karte 6'!I4","v":0},{"$f":"'Karte 6'!I3","v":0},0]
[null,null,null,null,7,{"$f":"'Karte 7'!I4","v":0},{"$f":"'Karte 7'!I3","v":0},0]
[null,null,null,null,8,{"$f":"'Karte 8'!I4","v":0},{"$f":"'Karte 8'!I3","v":0},0]
[null,null,null,null,9,{"$f":"'Karte 9'!I4","v":0},{"$f":"'Karte 9'!I3","v":0},0]
[null,null,null,null,10,{"$f":"'Karte 10'!I4","v":0},{"$f":"'Karte 10'!I3","v":0},0]
[null,null,null,null,11,{"$f":"'Karte 11'!I4","v":0},{"$f":"'Karte 11'!I3","v":0},0]
[null,null,null,null,12,{"$f":"'Karte 12'!I4","v":0},{"$f":"'Karte 12'!I3","v":0},0]

{"sheet":"Muster","index":10,"n_rows":104,"n_cols":60,"rows_kept":104,"cut":false,"hidden":false,"merged":[[11,2,11,5],[12,2,12,5],[4,2,4,5],[4,8,4,9],[6,2,6,5],[7,2,7,5],[8,2,8,5],[8,7,10,7],[8,8,10,9],[9,2,9,5],[10,2,10,5],[3,2,3,5],[0,0,0,1],[0,4,0,5],[1,2,1,5],[1,8,1,9],[2,2,2,5]]}
["akt.Weinkarte",null,{"$f":"NOW()","v":"2015-04-13T15:03:50.080"},null,"WEINLAGER"]
["Land",null,"Deutschland",null,null,null,null,"Lieferant"]
["Region",null,null,null,null,null,null,"Bestellbestand"]
["Gemeinde",null,null,null,null,null,null,"Höchstbestand",null,{"$f":"IF(ISERROR(F104>I4),\"\",IF(F104>I4,\"Bestand zu hoch!\",))","v":0}]
["Weinbergslage",null,null,null,null,null,null,"Lagerort"]
["Jahrgang",null,null,null,null,null,null,"Inhalt in Liter",null,{"$f":"IF(I5=\"Regal 1\",1,IF(I5=\"Regal 2\",2,IF(I5=\"Regal 3\",3,IF(I5=\"Regal 4\",4,IF(I5=\"Rotweinlager 1\",5,IF(I5=\"Rotweinlager 2\",6,IF(I5=\"Schaumweinlager\",7)))))))","v":false}]
["Rebsorte",null,null,null,null,null,null,"Reife ab",null,{"$f":"IF(I7-30>C1,\"Achtung!\",\"\")","v":""}]
["Herstellungsart",null,null,null,null,null,null,"Verbrauch bis",null,{"$f":"IF(I8-31<=C1,\"Achtung!\",\"\")","v":"Achtung!"}]
["dt. Güteklassen",null,null,null,{"$f":"IF(C9=1,\" Tafelwein\",IF(C9=2,\"Landwein\",IF(C9=3,\"Qualitätswein\",IF(C9=4,\"Qualitätswein m.Präd.\",\"\"))))","v":""},null,null,"Bemerkungen"]
["Dt. Landwein"]
["dt. Prädikatsstufe"]
["sonst. Klassifikation",null,null,null,null,null,null,"Art.-Nr. Lieferant"]
["Geschmack",null,null,null,null,null,null,"Artikel-Nr.",{"$f":"50+J6","v":50}]
["lf. Nr.","Datum","Zugang / Anf.best","S Zugang","Abgang","Bestand","Meldung","EKP/Stück [€]\nohne MWSt.","EKP/Stück [€]\ninkl. MWSt.","Æ EKP/Stück [€]\nohne MWSt.","Æ EKP/Stück [€]\ninkl. MWSt.","Lagerwert [€] zu EKP ohne MWSt.","Lagerwert [€] zu EKP inkl. MWSt.","Entnahme durch Abteilung","Kürzel Lagerist","Bemerkungen"]
[1,null,null,{"$f":"C15","v":0},null,{"$f":"C15","v":0},{"$f":"IF(F15<=$I$3,\"bestellen!\",\"---\")","v":"bestellen!"},null,{"$f":"H15+H15*19/100","v":0},{"$f":"H15","v":0},{"$f":"J15+J15*19/100","v":0},{"$f":"IF(ISERROR(F15*J15),\"\",F15*J15)","v":0},{"$f":"IF(ISERROR(F15*K15),\"\",F15*K15)","v":0}]
[{"$f":"A15+1","v":2},null,null,{"$f":"IF(F15<=0,C16,D15+C16-E15)","v":0},null,{"$f":"IF(F15+C16-E16<0,\"Fehler\",F15+C16-E16)","v":0},"bestellen!",null,{"$f":"H16+H16*19/100","v":0},{"$f":"IF(D15<=0,H16,(F15*J15+C16*H16)/D16)","v":0},{"$f":"J16+J16*19/100","v":0},0,0]
[3,null,null,0,null,0,"bestellen!",null,0,0,0,0,0,null,null,null,null,null,null,null,null,null,null,null,null,null,null,null,null,null,null,null,null,null,null,null,null,null,null,null,null,null,null,null,null,null,null,null,null,null,null,null,null,"Rotwein","Dt. Wein ohne Herkunftsbez.","Kabinett","Regal 1",{"$f":"Lieferant!A5","v":"Domaine du Croc du Merle"},"0,1 l"]
[4,null,null,0,null,0,"bestellen!",null,0,0,0,0,0,null,null,null,null,null,null,null,null,null,null,null,null,null,null,null,null,null,null,null,null,null,null,null,null,null,null,null,null,null,null,null,null,null,null,null,null,null,null,null,null,"Roséwein","Dt. Landwein","Spätlese","Regal 2",{"$f":"Lieferant!A6","v":"Forster Winzerverein"},"0,25 l","Ahrtaler Landwein"]
[5,null,null,0,null,0,"bestellen!",null,0,0,0,0,0,null,null,null,null,null,null,null,null,null,null,null,null,null,null,null,null,null,null,null,null,null,null,null,null,null,null,null,null,null,null,null,null,null,null,null,null,null,null,null,null,"Weißwein","Q.b.A.","Auslese","Regal 3",{"$f":"Lieferant!A7","v":"Gebiets-Winzergen. Franken eG"},"0,375 l","Badischer Landwein"]
[6,null,null,0,null,0,"bestellen!",null,0,0,0,0,0,null,null,null,null,null,null,null,null,null,null,null,null,null,null,null,null,null,null,null,null,null,null,null,null,null,null,null,null,null,null,null,null,null,null,null,null,null,null,null,null,"Weißherbst","Prädikatswein","Beerenauslese","Regal 4",{"$f":"Lieferant!A8","v":"Weingut Johannes Kleinmann"},"0,5 l","Bayrischer Bodensee Landwein"]
[7,null,null,0,null,0,"bestellen!",null,0,0,0,0,0,null,null,null,null,null,null,null,null,null,null,null,null,null,null,null,null,null,null,null,null,null,null,null,null,null,null,null,null,null,null,null,null,null,null,null,null,null,null,null,null,"Rotling",null,"Trockenbeerenauslese","Rotweinlager 1",{"$f":"Lieferant!A9","v":0},"0,75 l","Brandenburger Landwein"]
[8,null,null,0,null,0,"bestellen!",null,0,0,0,0,0,null,null,null,null,null,null,null,null,null,null,null,null,null,null,null,null,null,null,null,null,null,null,null,null,null,null,null,null,null,null,null,null,null,null,null,null,null,null,null,null,"Schillerwein",null,"Eiswein","Rotweinlager 2",{"$f":"Lieferant!A10","v":0},"1,0 l","Landwein Main"]
[9,null,null,0,null,0,"bestellen!",null,0,0,0,0,0,null,null,null,null,null,null,null,null,null,null,null,null,null,null,null,null,null,null,null,null,null,null,null,null,null,null,null,null,null,null,null,null,null,null,null,null,null,null,null,null,"Badisch Rotgold",null,null,"Schaumweinlager",{"$f":"Lieferant!A11","v":0},"1,5 l","Landwein der Mosel"]
[10,null,null,0,null,0,"bestellen!",null,0,0,0,0,0,null,null,null,null,null,null,null,null,null,null,null,null,null,null,null,null,null,null,null,null,null,null,null,null,null,null,null,null,null,null,null,null,null,null,null,null,null,null,null,null,"Perlwein",null,null,null,{"$f":"Lieferant!A12","v":0},"2,0 l","Landwein Neckar"]
[11,null,null,0,null,0,"bestellen!",null,0,0,0,0,0,null,null,null,null,null,null,null,null,null,null,null,null,null,null,null,null,null,null,null,null,null,null,null,null,null,null,null,null,null,null,null,null,null,null,null,null,null,null,null,null,"Diabetikerwein",null,null,null,{"$f":"Lieferant!A13","v":0},"3,0 l","Landwein Oberrhein"]
[12,null,null,0,null,0,"bestellen!",null,0,0,0,0,0,null,null,null,null,null,null,null,null,null,null,null,null,null,null,null,null,null,null,null,null,null,null,null,null,null,null,null,null,null,null,null,null,null,null,null,null,null,null,null,null,"Entalkoholisierter Wein",null,null,null,{"$f":"Lieferant!A14","v":0},"5,0 l","Landwein Rhein"]
[13,null,null,0,null,0,"bestellen!",null,0,0,0,0,0,null,null,null,null,null,null,null,null,null,null,null,null,null,null,null,null,null,null,null,null,null,null,null,null,null,null,null,null,null,null,null,null,null,null,null,null,null,null,null,null,"Cuvée",null,null,null,{"$f":"Lieferant!A15","v":0},"10,0 l","Landwein Rhein-Neckar"]
[14,null,null,0,null,0,"bestellen!",null,0,0,0,0,0,null,null,null,null,null,null,null,null,null,null,null,null,null,null,null,null,null,null,null,null,null,null,null,null,null,null,null,null,null,null,null,null,null,null,null,null,null,null,null,null,"Schaumwein",null,null,null,{"$f":"Lieferant!A22","v":0},null,"Landwein der Ruwer"]
[15,null,null,0,null,0,"bestellen!",null,0,0,0,0,0,null,null,null,null,null,null,null,null,null,null,null,null,null,null,null,null,null,null,null,null,null,null,null,null,null,null,null,null,null,null,null,null,null,null,null,null,null,null,null,null,null,null,null,null,{"$f":"Lieferant!A23","v":0},null,"Landwein der Saar"]
[16,null,null,0,null,0,"bestellen!",null,0,0,0,0,0,null,null,null,null,null,null,null,null,null,null,null,null,null,null,null,null,null,null,null,null,null,null,null,null,null,null,null,null,null,null,null,null,null,null,null,null,null,null,null,null,null,null,null,null,{"$f":"Lieferant!A24","v":0},null,"Mecklenburger Landwein"]
[17,null,null,0,null,0,"bestellen!",null,0,0,0,0,0,null,null,null,null,null,null,null,null,null,null,null,null,null,null,null,null,null,null,null,null,null,null,null,null,null,null,null,null,null,null,null,null,null,null,null,null,null,null,null,null,null,null,null,null,{"$f":"Lieferant!A25","v":0},null,"Mitteldeutscher Landwein"]
[18,null,null,0,null,0,"bestellen!",null,0,0,0,0,0,null,null,null,null,null,null,null,null,null,null,null,null,null,null,null,null,null,null,null,null,null,null,null,null,null,null,null,null,null,null,null,null,null,null,null,null,null,null,null,null,null,null,null,null,{"$f":"Lieferant!A26","v":0},null,"Nahegauer Landwein"]
[19,null,null,0,null,0,"bestellen!",null,0,0,0,0,0,null,null,null,null,null,null,null,null,null,null,null,null,null,null,null,null,null,null,null,null,null,null,null,null,null,null,null,null,null,null,null,null,null,null,null,null,null,null,null,null,null,null,null,null,{"$f":"Lieferant!A27","v":0},null,"Pfälzer Landwein"]
[20,null,null,0,null,0,"bestellen!",null,0,0,0,0,0,null,null,null,null,null,null,null,null,null,null,null,null,null,null,null,null,null,null,null,null,null,null,null,null,null,null,null,null,null,null,null,null,null,null,null,null,null,null,null,null,null,null,null,null,{"$f":"Lieferant!A28","v":0},null,"Regensburger Landwein"]
[21,null,null,0,null,0,"bestellen!",null,0,0,0,0,0,null,null,null,null,null,null,null,null,null,null,null,null,null,null,null,null,null,null,null,null,null,null,null,null,null,null,null,null,null,null,null,null,null,null,null,null,null,null,null,null,null,null,null,null,{"$f":"Lieferant!A29","v":0},null,"Rheinburgen Landwein"]
[22,null,null,0,null,0,"bestellen!",null,0,0,0,0,0,null,null,null,null,null,null,null,null,null,null,null,null,null,null,null,null,null,null,null,null,null,null,null,null,null,null,null,null,null,null,null,null,null,null,null,null,null,null,null,null,null,null,null,null,null,null,"Rheingauer Landwein"]
[23,null,null,0,null,0,"bestellen!",null,0,0,0,0,0,null,null,null,null,null,null,null,null,null,null,null,null,null,null,null,null,null,null,null,null,null,null,null,null,null,null,null,null,null,null,null,null,null,null,null,null,null,null,null,null,null,null,null,null,null,null,"Rheinischer Landwein"]
[24,null,null,0,null,0,"bestellen!",null,0,0,0,0,0,null,null,null,null,null,null,null,null,null,null,null,null,null,null,null,null,null,null,null,null,null,null,null,null,null,null,null,null,null,null,null,null,null,null,null,null,null,null,null,null,null,null,null,null,null,null,"Saarländischer Landwein"]
[25,null,null,0,null,0,"bestellen!",null,0,0,0,0,0,null,null,null,null,null,null,null,null,null,null,null,null,null,null,null,null,null,null,null,null,null,null,null,null,null,null,null,null,null,null,null,null,null,null,null,null,null,null,null,null,null,null,null,null,null,null,"Sächsischer Landwein"]
[26,null,null,0,null,0,"bestellen!",null,0,0,0,0,0,null,null,null,null,null,null,null,null,null,null,null,null,null,null,null,null,null,null,null,null,null,null,null,null,null,null,null,null,null,null,null,null,null,null,null,null,null,null,null,null,null,null,null,null,null,null,"Schleswig-Holsteiner Landwein"]
[27,null,null,0,null,0,"bestellen!",null,0,0,0,0,0,null,null,null,null,null,null,null,null,null,null,null,null,null,null,null,null,null,null,null,null,null,null,null,null,null,null,null,null,null,null,null,null,null,null,null,null,null,null,null,null,null,null,null,null,null,null,"Schwäbischer Landwein"]
[28,null,null,0,null,0,"bestellen!",null,0,0,0,0,0,null,null,null,null,null,null,null,null,null,null,null,null,null,null,null,null,null,null,null,null,null,null,null,null,null,null,null,null,null,null,null,null,null,null,null,null,null,null,null,null,null,null,null,null,null,null,"Starkenburger Landwein"]
[29,null,null,0,null,0,"bestellen!",null,0,0,0,0,0,null,null,null,null,null,null,null,null,null,null,null,null,null,null,null,null,null,null,null,null,null,null,null,null,null,null,null,null,null,null,null,null,null,null,null,null,null,null,null,null,null,null,null,null,null,null,"Taubertäler Landwein"]
[30,null,null,0,null,0,"bestellen!",null,0,0,0,0,0]
[31,null,null,0,null,0,"bestellen!",null,0,0,0,0,0]
[32,null,null,0,null,0,"bestellen!",null,0,0,0,0,0]
[33,null,null,0,null,0,"bestellen!",null,0,0,0,0,0]
[34,null,null,0,null,0,"bestellen!",null,0,0,0,0,0]
[35,null,null,0,null,0,"bestellen!",null,0,0,0,0,0]
[36,null,null,0,null,0,"bestellen!",null,0,0,0,0,0]
[37,null,null,0,null,0,"bestellen!",null,0,0,0,0,0]
[38,null,null,0,null,0,"bestellen!",null,0,0,0,0,0]
[39,null,null,0,null,0,"bestellen!",null,0,0,0,0,0]
[40,null,null,0,null,0,"bestellen!",null,0,0,0,0,0]
[41,null,null,0,null,0,"bestellen!",null,0,0,0,0,0]
[42,null,null,0,null,0,"bestellen!",null,0,0,0,0,0]
[43,null,null,0,null,0,"bestellen!",null,0,0,0,0,0]
[44,null,null,0,null,0,"bestellen!",null,0,0,0,0,0]
[45,null,null,0,null,0,"bestellen!",null,0,0,0,0,0]
[46,null,null,0,null,0,"bestellen!",null,0,0,0,0,0]
[47,null,null,0,null,0,"bestellen!",null,0,0,0,0,0]
[48,null,null,0,null,0,"bestellen!",null,0,0,0,0,0]
[49,null,null,0,null,0,"bestellen!",null,0,0,0,0,0]
[50,null,null,0,null,0,"bestellen!",null,0,0,0,0,0]
[51,null,null,0,null,0,"bestellen!",null,0,0,0,0,0]
[52,null,null,0,null,0,"bestellen!",null,0,0,0,0,0]
[53,null,null,0,null,0,"bestellen!",null,0,0,0,0,0]
[54,null,null,0,null,0,"bestellen!",null,0,0,0,0,0]
[55,null,null,0,null,0,"bestellen!",null,0,0,0,0,0]
[56,null,null,0,null,0,"bestellen!",null,0,0,0,0,0]
[57,null,null,0,null,0,"bestellen!",null,0,0,0,0,0]
[58,null,null,0,null,0,"bestellen!",0,0,0,0,0,0]
[59,null,null,0,null,0,"bestellen!",null,0,0,0,0,0]
[60,null,null,0,null,0,"bestellen!",null,0,0,0,0,0]
[61,null,null,0,null,0,"bestellen!",null,0,0,0,0,0]
[62,null,null,0,null,0,"bestellen!",null,0,0,0,0,0]
[63,null,null,0,null,0,"bestellen!",null,0,0,0,0,0]
[64,null,null,0,null,0,"bestellen!",null,0,0,0,0,0]
[65,null,null,0,null,0,{"$f":"IF(F79<=$I$3,\"bestellen!\",\"---\")","v":"bestellen!"},null,0,0,0,{"$f":"IF(ISERROR(F79*J79),\"\",F79*J79)","v":0},{"$f":"IF(ISERROR(F79*K79),\"\",F79*K79)","v":0}]
[{"$f":"A79+1","v":66},null,null,{"$f":"IF(F79<=0,C80,D79+C80-E79)","v":0},null,{"$f":"IF(F79+C80-E80<0,\"Fehler\",F79+C80-E80)","v":0},"bestellen!",null,{"$f":"H80+H80*19/100","v":0},{"$f":"IF(D79<=0,H80,(F79*J79+C80*H80)/D80)","v":0},{"$f":"J80+J80*19/100","v":0},0,0]
[67,null,null,0,null,0,"bestellen!",null,0,0,0,0,0]
[68,null,null,0,null,0,"bestellen!",null,0,0,0,0,0]
[69,null,null,0,null,0,"bestellen!",null,0,0,0,0,0]
[70,null,null,0,null,0,"bestellen!",null,0,0,0,0,0]
[71,null,null,0,null,0,"bestellen!",null,0,0,0,0,0]
[72,null,null,0,null,0,"bestellen!",null,0,0,0,0,0]
[73,null,null,0,null,0,"bestellen!",null,0,0,0,0,0]
[74,null,null,0,null,0,"bestellen!",null,0,0,0,0,0]
[75,null,null,0,null,0,"bestellen!",null,0,0,0,0,0]
[76,null,null,0,null,0,"bestellen!",null,0,0,0,0,0]
[77,null,null,0,null,0,"bestellen!",null,0,0,0,0,0]
[78,null,null,0,null,0,"bestellen!",null,0,0,0,0,0]
[79,null,null,0,null,0,"bestellen!",null,0,0,0,0,0]
[80,null,null,0,null,0,"bestellen!",null,0,0,0,0,0]
[81,null,null,0,null,0,"bestellen!",null,0,0,0,0,0]
[82,null,null,0,null,0,"bestellen!",null,0,0,0,0,0]
[83,null,null,0,null,0,"bestellen!",null,0,0,0,0,0]
[84,null,null,0,null,0,"bestellen!",null,0,0,0,0,0]
[85,null,null,0,null,0,"bestellen!",null,0,0,0,0,0]
[86,null,null,0,null,0,"bestellen!",null,0,0,0,0,0]
[87,null,null,0,null,0,"bestellen!",null,0,0,0,0,0]
[88,null,null,0,null,0,"bestellen!",null,0,0,0,0,0]
[89,null,null,0,null,0,"bestellen!",null,0,0,0,0,0]
[90,null,null,0,null,0,"bestellen!",null,0,0,0,0,0]

{"sheet":"Karte 1","index":11,"n_rows":104,"n_cols":60,"rows_kept":104,"cut":false,"hidden":false,"merged":[[1,8,1,9],[4,8,4,9],[11,2,11,5],[12,2,12,5],[8,8,10,9],[8,7,10,7],[1,2,1,5],[6,2,6,5],[8,2,8,5],[9,2,9,5],[10,2,10,5],[7,2,7,5],[0,4,0,5],[0,0,0,1],[2,2,2,5],[3,2,3,5],[4,2,4,5]]}
["akt.Weinkarte",null,{"$f":"NOW()","v":"2015-04-13T15:03:50.080"},null,"WEINLAGER"]
["Land",null,"Deutschland",null,null,null,null,"Lieferant"]
["Region",null,null,null,null,null,null,"Bestellbestand"]
["Gemeinde",null,null,null,null,null,null,"Höchstbestand",null,{"$f":"IF(ISERROR(F104>I4),\"\",IF(F104>I4,\"Bestand zu hoch!\",))","v":0}]
["Weinbergslage",null,null,null,null,null,null,"Lagerort"]
["Jahrgang",null,null,null,null,null,null,"Inhalt in Liter",null,{"$f":"IF(I5=\"Regal 1\",1,IF(I5=\"Regal 2\",2,IF(I5=\"Regal 3\",3,IF(I5=\"Regal 4\",4,IF(I5=\"Rotweinlager 1\",5,IF(I5=\"Rotweinlager 2\",6,IF(I5=\"Schaumweinlager\",7)))))))","v":false}]
["Rebsorte",null,null,null,null,null,null,"Reife ab",null,{"$f":"IF(I7-30>C1,\"Achtung!\",\"\")","v":""}]
["Herstellungsart",null,null,null,null,null,null,"Verbrauch bis",null,{"$f":"IF(I8-31<=C1,\"Achtung!\",\"\")","v":"Achtung!"}]
["dt. Güteklassen",null,null,null,{"$f":"IF(C9=1,\" Tafelwein\",IF(C9=2,\"Landwein\",IF(C9=3,\"Qualitätswein\",IF(C9=4,\"Qualitätswein m.Präd.\",\"\"))))","v":""},null,null,"Bemerkungen"]
["Dt. Landwein"]
["dt. Prädikatsstufe"]
["sonst. Klassifikation",null,null,null,null,null,null,"Art.-Nr. Lieferant"]
["Geschmack",null,null,null,null,null,null,"Artikel-Nr.",{"$f":"50+J6","v":50}]
["lf. Nr.","Datum","Zugang / Anf.best","S Zugang","Abgang","Bestand","Meldung","EKP/Stück [€]\nohne MWSt.","EKP/Stück [€]\ninkl. MWSt.","Æ EKP/Stück [€]\nohne MWSt.","Æ EKP/Stück [€]\ninkl. MWSt.","Lagerwert [€] zu EKP ohne MWSt.","Lagerwert [€] zu EKP inkl. MWSt.","Entnahme durch Abteilung","Kürzel Lagerist","Bemerkungen"]
[1,null,null,{"$f":"C15","v":0},null,{"$f":"C15","v":0},{"$f":"IF(F15<=$I$3,\"bestellen!\",\"---\")","v":"bestellen!"},null,{"$f":"H15+H15*19/100","v":0},{"$f":"H15","v":0},{"$f":"J15+J15*19/100","v":0},{"$f":"IF(ISERROR(F15*J15),\"\",F15*J15)","v":0},{"$f":"IF(ISERROR(F15*K15),\"\",F15*K15)","v":0}]
[{"$f":"A15+1","v":2},null,null,{"$f":"IF(F15<=0,C16,D15+C16-E15)","v":0},null,{"$f":"IF(F15+C16-E16<0,\"Fehler\",F15+C16-E16)","v":0},"bestellen!",null,{"$f":"H16+H16*19/100","v":0},{"$f":"IF(D15<=0,H16,(F15*J15+C16*H16)/D16)","v":0},{"$f":"J16+J16*19/100","v":0},0,0]
[3,null,null,0,null,0,"bestellen!",null,0,0,0,0,0,null,null,null,null,null,null,null,null,null,null,null,null,null,null,null,null,null,null,null,null,null,null,null,null,null,null,null,null,null,null,null,null,null,null,null,null,null,null,null,null,"Rotwein","Dt. Wein ohne Herkunftsbez.","Kabinett","Regal 1",{"$f":"Lieferant!A5","v":"Domaine du Croc du Merle"},"0,1 l"]
[4,null,null,0,null,0,"bestellen!",null,0,0,0,0,0,null,null,null,null,null,null,null,null,null,null,null,null,null,null,null,null,null,null,null,null,null,null,null,null,null,null,null,null,null,null,null,null,null,null,null,null,null,null,null,null,"Roséwein","Dt. Landwein","Spätlese","Regal 2",{"$f":"Lieferant!A6","v":"Forster Winzerverein"},"0,25 l","Ahrtaler Landwein"]
[5,null,null,0,null,0,"bestellen!",null,0,0,0,0,0,null,null,null,null,null,null,null,null,null,null,null,null,null,null,null,null,null,null,null,null,null,null,null,null,null,null,null,null,null,null,null,null,null,null,null,null,null,null,null,null,"Weißwein","Q.b.A.","Auslese","Regal 3",{"$f":"Lieferant!A7","v":"Gebiets-Winzergen. Franken eG"},"0,375 l","Badischer Landwein"]
[6,null,null,0,null,0,"bestellen!",null,0,0,0,0,0,null,null,null,null,null,null,null,null,null,null,null,null,null,null,null,null,null,null,null,null,null,null,null,null,null,null,null,null,null,null,null,null,null,null,null,null,null,null,null,null,"Weißherbst","Prädikatswein","Beerenauslese","Regal 4",{"$f":"Lieferant!A8","v":"Weingut Johannes Kleinmann"},"0,5 l","Bayrischer Bodensee Landwein"]
[7,null,null,0,null,0,"bestellen!",null,0,0,0,0,0,null,null,null,null,null,null,null,null,null,null,null,null,null,null,null,null,null,null,null,null,null,null,null,null,null,null,null,null,null,null,null,null,null,null,null,null,null,null,null,null,"Rotling",null,"Trockenbeerenauslese","Rotweinlager 1",{"$f":"Lieferant!A9","v":0},"0,75 l","Brandenburger Landwein"]
[8,null,null,0,null,0,"bestellen!",null,0,0,0,0,0,null,null,null,null,null,null,null,null,null,null,null,null,null,null,null,null,null,null,null,null,null,null,null,null,null,null,null,null,null,null,null,null,null,null,null,null,null,null,null,null,"Schillerwein",null,"Eiswein","Rotweinlager 2",{"$f":"Lieferant!A10","v":0},"1,0 l","Landwein Main"]
[9,null,null,0,null,0,"bestellen!",null,0,0,0,0,0,null,null,null,null,null,null,null,null,null,null,null,null,null,null,null,null,null,null,null,null,null,null,null,null,null,null,null,null,null,null,null,null,null,null,null,null,null,null,null,null,"Badisch Rotgold",null,"Classic","Schaumweinlager",{"$f":"Lieferant!A11","v":0},"1,5 l","Landwein der Mosel"]
[10,null,null,0,null,0,"bestellen!",null,0,0,0,0,0,null,null,null,null,null,null,null,null,null,null,null,null,null,null,null,null,null,null,null,null,null,null,null,null,null,null,null,null,null,null,null,null,null,null,null,null,null,null,null,null,"Perlwein",null,"Selction",null,{"$f":"Lieferant!A12","v":0},"2,0 l","Landwein Neckar"]
[11,null,null,0,null,0,"bestellen!",null,0,0,0,0,0,null,null,null,null,null,null,null,null,null,null,null,null,null,null,null,null,null,null,null,null,null,null,null,null,null,null,null,null,null,null,null,null,null,null,null,null,null,null,null,null,"Diabetikerwein",null,null,null,{"$f":"Lieferant!A13","v":0},"3,0 l","Landwein Oberrhein"]
[12,null,null,0,null,0,"bestellen!",null,0,0,0,0,0,null,null,null,null,null,null,null,null,null,null,null,null,null,null,null,null,null,null,null,null,null,null,null,null,null,null,null,null,null,null,null,null,null,null,null,null,null,null,null,null,"Entalkoholisierter Wein",null,null,null,{"$f":"Lieferant!A14","v":0},"5,0 l","Landwein Rhein"]
[13,null,null,0,null,0,"bestellen!",null,0,0,0,0,0,null,null,null,null,null,null,null,null,null,null,null,null,null,null,null,null,null,null,null,null,null,null,null,null,null,null,null,null,null,null,null,null,null,null,null,null,null,null,null,null,"Cuvée",null,null,null,{"$f":"Lieferant!A15","v":0},"10,0 l","Landwein Rhein-Neckar"]
[14,null,null,0,null,0,"bestellen!",null,0,0,0,0,0,null,null,null,null,null,null,null,null,null,null,null,null,null,null,null,null,null,null,null,null,null,null,null,null,null,null,null,null,null,null,null,null,null,null,null,null,null,null,null,null,"Schaumwein",null,null,null,{"$f":"Lieferant!A22","v":0},null,"Landwein der Ruwer"]
[15,null,null,0,null,0,"bestellen!",null,0,0,0,0,0,null,null,null,null,null,null,null,null,null,null,null,null,null,null,null,null,null,null,null,null,null,null,null,null,null,null,null,null,null,null,null,null,null,null,null,null,null,null,null,null,null,null,null,null,{"$f":"Lieferant!A23","v":0},null,"Landwein der Saar"]
[16,null,null,0,null,0,"bestellen!",null,0,0,0,0,0,null,null,null,null,null,null,null,null,null,null,null,null,null,null,null,null,null,null,null,null,null,null,null,null,null,null,null,null,null,null,null,null,null,null,null,null,null,null,null,null,null,null,null,null,{"$f":"Lieferant!A24","v":0},null,"Mecklenburger Landwein"]
[17,null,null,0,null,0,"bestellen!",null,0,0,0,0,0,null,null,null,null,null,null,null,null,null,null,null,null,null,null,null,null,null,null,null,null,null,null,null,null,null,null,null,null,null,null,null,null,null,null,null,null,null,null,null,null,null,null,null,null,{"$f":"Lieferant!A25","v":0},null,"Mitteldeutscher Landwein"]
[18,null,null,0,null,0,"bestellen!",null,0,0,0,0,0,null,null,null,null,null,null,null,null,null,null,null,null,null,null,null,null,null,null,null,null,null,null,null,null,null,null,null,null,null,null,null,null,null,null,null,null,null,null,null,null,null,null,null,null,{"$f":"Lieferant!A26","v":0},null,"Nahegauer Landwein"]
[19,null,null,0,null,0,"bestellen!",null,0,0,0,0,0,null,null,null,null,null,null,null,null,null,null,null,null,null,null,null,null,null,null,null,null,null,null,null,null,null,null,null,null,null,null,null,null,null,null,null,null,null,null,null,null,null,null,null,null,{"$f":"Lieferant!A27","v":0},null,"Pfälzer Landwein"]
[20,null,null,0,null,0,"bestellen!",null,0,0,0,0,0,null,null,null,null,null,null,null,null,null,null,null,null,null,null,null,null,null,null,null,null,null,null,null,null,null,null,null,null,null,null,null,null,null,null,null,null,null,null,null,null,null,null,null,null,{"$f":"Lieferant!A28","v":0},null,"Regensburger Landwein"]
[21,null,null,0,null,0,"bestellen!",null,0,0,0,0,0,null,null,null,null,null,null,null,null,null,null,null,null,null,null,null,null,null,null,null,null,null,null,null,null,null,null,null,null,null,null,null,null,null,null,null,null,null,null,null,null,null,null,null,null,{"$f":"Lieferant!A29","v":0},null,"Rheinburgen Landwein"]
[22,null,null,0,null,0,"bestellen!",null,0,0,0,0,0,null,null,null,null,null,null,null,null,null,null,null,null,null,null,null,null,null,null,null,null,null,null,null,null,null,null,null,null,null,null,null,null,null,null,null,null,null,null,null,null,null,null,null,null,null,null,"Rheingauer Landwein"]
[23,null,null,0,null,0,"bestellen!",null,0,0,0,0,0,null,null,null,null,null,null,null,null,null,null,null,null,null,null,null,null,null,null,null,null,null,null,null,null,null,null,null,null,null,null,null,null,null,null,null,null,null,null,null,null,null,null,null,null,null,null,"Rheinischer Landwein"]
[24,null,null,0,null,0,"bestellen!",null,0,0,0,0,0,null,null,null,null,null,null,null,null,null,null,null,null,null,null,null,null,null,null,null,null,null,null,null,null,null,null,null,null,null,null,null,null,null,null,null,null,null,null,null,null,null,null,null,null,null,null,"Saarländischer Landwein"]
[25,null,null,0,null,0,"bestellen!",null,0,0,0,0,0,null,null,null,null,null,null,null,null,null,null,null,null,null,null,null,null,null,null,null,null,null,null,null,null,null,null,null,null,null,null,null,null,null,null,null,null,null,null,null,null,null,null,null,null,null,null,"Sächsischer Landwein"]
[26,null,null,0,null,0,"bestellen!",null,0,0,0,0,0,null,null,null,null,null,null,null,null,null,null,null,null,null,null,null,null,null,null,null,null,null,null,null,null,null,null,null,null,null,null,null,null,null,null,null,null,null,null,null,null,null,null,null,null,null,null,"Schleswig-Holsteiner Landwein"]
[27,null,null,0,null,0,"bestellen!",null,0,0,0,0,0,null,null,null,null,null,null,null,null,null,null,null,null,null,null,null,null,null,null,null,null,null,null,null,null,null,null,null,null,null,null,null,null,null,null,null,null,null,null,null,null,null,null,null,null,null,null,"Schwäbischer Landwein"]
[28,null,null,0,null,0,"bestellen!",null,0,0,0,0,0,null,null,null,null,null,null,null,null,null,null,null,null,null,null,null,null,null,null,null,null,null,null,null,null,null,null,null,null,null,null,null,null,null,null,null,null,null,null,null,null,null,null,null,null,null,null,"Starkenburger Landwein"]
[29,null,null,0,null,0,"bestellen!",null,0,0,0,0,0,null,null,null,null,null,null,null,null,null,null,null,null,null,null,null,null,null,null,null,null,null,null,null,null,null,null,null,null,null,null,null,null,null,null,null,null,null,null,null,null,null,null,null,null,null,null,"Taubertäler Landwein"]
[30,null,null,0,null,0,"bestellen!",null,0,0,0,0,0]
[31,null,null,0,null,0,"bestellen!",null,0,0,0,0,0]
[32,null,null,0,null,0,"bestellen!",null,0,0,0,0,0]
[33,null,null,0,null,0,{"$f":"IF(F47<=$I$3,\"bestellen!\",\"---\")","v":"bestellen!"},null,0,0,0,{"$f":"IF(ISERROR(F47*J47),\"\",F47*J47)","v":0},{"$f":"IF(ISERROR(F47*K47),\"\",F47*K47)","v":0}]
[{"$f":"A47+1","v":34},null,null,{"$f":"IF(F47<=0,C48,D47+C48-E47)","v":0},null,{"$f":"IF(F47+C48-E48<0,\"Fehler\",F47+C48-E48)","v":0},"bestellen!",null,0,{"$f":"IF(D47<=0,H48,(F47*J47+C48*H48)/D48)","v":0},0,0,0]
[35,null,null,0,null,0,"bestellen!",null,0,0,0,0,0]
[36,null,null,0,null,0,"bestellen!",null,0,0,0,0,0]
[37,null,null,0,null,0,"bestellen!",null,0,0,0,0,0]
[38,null,null,0,null,0,"bestellen!",null,0,0,0,0,0]
[39,null,null,0,null,0,"bestellen!",null,0,0,0,0,0]
[40,null,null,0,null,0,"bestellen!",null,0,0,0,0,0]
[41,null,null,0,null,0,"bestellen!",null,0,0,0,0,0]
[42,null,null,0,null,0,"bestellen!",null,0,0,0,0,0]
[43,null,null,0,null,0,"bestellen!",null,0,0,0,0,0]
[44,null,null,0,null,0,"bestellen!",null,0,0,0,0,0]
[45,null,null,0,null,0,"bestellen!",null,0,0,0,0,0]
[46,null,null,0,null,0,"bestellen!",null,0,0,0,0,0]
[47,null,null,0,null,0,"bestellen!",null,0,0,0,0,0]
[48,null,null,0,null,0,"bestellen!",null,0,0,0,0,0]
[49,null,null,0,null,0,"bestellen!",null,0,0,0,0,0]
[50,null,null,0,null,0,"bestellen!",null,0,0,0,0,0]
[51,null,null,0,null,0,"bestellen!",null,0,0,0,0,0]
[52,null,null,0,null,0,"bestellen!",null,0,0,0,0,0]
[53,null,null,0,null,0,"bestellen!",null,0,0,0,0,0]
[54,null,null,0,null,0,"bestellen!",null,0,0,0,0,0]
[55,null,null,0,null,0,"bestellen!",null,0,0,0,0,0]
[56,null,null,0,null,0,"bestellen!",null,0,0,0,0,0]
[57,null,null,0,null,0,"bestellen!",null,0,0,0,0,0]
[58,null,null,0,null,0,"bestellen!",0,0,0,0,0,0]
[59,null,null,0,null,0,"bestellen!",null,0,0,0,0,0]
[60,null,null,0,null,0,"bestellen!",null,0,0,0,0,0]
[61,null,null,0,null,0,"bestellen!",null,0,0,0,0,0]
[62,null,null,0,null,0,"bestellen!",null,0,0,0,0,0]
[63,null,null,0,null,0,"bestellen!",null,0,0,0,0,0]
[64,null,null,0,null,0,"bestellen!",null,0,0,0,0,0]
[65,null,null,0,null,0,{"$f":"IF(F79<=$I$3,\"bestellen!\",\"---\")","v":"bestellen!"},null,0,0,0,{"$f":"IF(ISERROR(F79*J79),\"\",F79*J79)","v":0},{"$f":"IF(ISERROR(F79*K79),\"\",F79*K79)","v":0}]
[{"$f":"A79+1","v":66},null,null,{"$f":"IF(F79<=0,C80,D79+C80-E79)","v":0},null,{"$f":"IF(F79+C80-E80<0,\"Fehler\",F79+C80-E80)","v":0},"bestellen!",null,{"$f":"H80+H80*19/100","v":0},{"$f":"IF(D79<=0,H80,(F79*J79+C80*H80)/D80)","v":0},{"$f":"J80+J80*19/100","v":0},0,0]
[67,null,null,0,null,0,"bestellen!",null,0,0,0,0,0]
[68,null,null,0,null,0,"bestellen!",null,0,0,0,0,0]
[69,null,null,0,null,0,"bestellen!",null,0,0,0,0,0]
[70,null,null,0,null,0,"bestellen!",null,0,0,0,0,0]
[71,null,null,0,null,0,"bestellen!",null,0,0,0,0,0]
[72,null,null,0,null,0,"bestellen!",null,0,0,0,0,0]
[73,null,null,0,null,0,"bestellen!",null,0,0,0,0,0]
[74,null,null,0,null,0,"bestellen!",null,0,0,0,0,0]
[75,null,null,0,null,0,"bestellen!",null,0,0,0,0,0]
[76,null,null,0,null,0,"bestellen!",null,0,0,0,0,0]
[77,null,null,0,null,0,"bestellen!",null,0,0,0,0,0]
[78,null,null,0,null,0,"bestellen!",null,0,0,0,0,0]
[79,null,null,0,null,0,"bestellen!",null,0,0,0,0,0]
[80,null,null,0,null,0,"bestellen!",null,0,0,0,0,0]
[81,null,null,0,null,0,"bestellen!",null,0,0,0,0,0]
[82,null,null,0,null,0,"bestellen!",null,0,0,0,0,0]
[83,null,null,0,null,0,"bestellen!",null,0,0,0,0,0]
[84,null,null,0,null,0,"bestellen!",null,0,0,0,0,0]
[85,null,null,0,null,0,"bestellen!",null,0,0,0,0,0]
[86,null,null,0,null,0,"bestellen!",null,0,0,0,0,0]
[87,null,null,0,null,0,"bestellen!",null,0,0,0,0,0]
[88,null,null,0,null,0,"bestellen!",null,0,0,0,0,0]
[89,null,null,0,null,0,"bestellen!",null,0,0,0,0,0]
[90,null,null,0,null,0,"bestellen!",null,0,0,0,0,0]

{"sheet":"Karte 2","index":12,"n_rows":104,"n_cols":60,"rows_kept":104,"cut":false,"hidden":false,"merged":[[11,2,11,5],[12,2,12,5],[4,2,4,5],[4,8,4,9],[6,2,6,5],[7,2,7,5],[8,2,8,5],[8,7,10,7],[8,8,10,9],[9,2,9,5],[10,2,10,5],[3,2,3,5],[0,0,0,1],[0,4,0,5],[1,2,1,5],[1,8,1,9],[2,2,2,5]]}
["akt.Weinkarte",null,{"$f":"NOW()","v":"2015-04-13T15:03:50.080"},null,"WEINLAGER"]
["Land",null,"Deutschland",null,null,null,null,"Lieferant"]
["Region",null,null,null,null,null,null,"Bestellbestand"]
["Gemeinde",null,null,null,null,null,null,"Höchstbestand",null,{"$f":"IF(ISERROR(F104>I4),\"\",IF(F104>I4,\"Bestand zu hoch!\",))","v":0}]
["Weinbergslage",null,null,null,null,null,null,"Lagerort"]
["Jahrgang",null,null,null,null,null,null,"Inhalt in Liter",null,{"$f":"IF(I5=\"Regal 1\",1,IF(I5=\"Regal 2\",2,IF(I5=\"Regal 3\",3,IF(I5=\"Regal 4\",4,IF(I5=\"Rotweinlager 1\",5,IF(I5=\"Rotweinlager 2\",6,IF(I5=\"Schaumweinlager\",7)))))))","v":false}]
["Rebsorte",null,null,null,null,null,null,"Reife ab",null,{"$f":"IF(I7-30>C1,\"Achtung!\",\"\")","v":""}]
["Herstellungsart",null,null,null,null,null,null,"Verbrauch bis",null,{"$f":"IF(I8-31<=C1,\"Achtung!\",\"\")","v":"Achtung!"}]
["dt. Güteklassen",null,null,null,{"$f":"IF(C9=1,\" Tafelwein\",IF(C9=2,\"Landwein\",IF(C9=3,\"Qualitätswein\",IF(C9=4,\"Qualitätswein m.Präd.\",\"\"))))","v":""},null,null,"Bemerkungen"]
["Dt. Landwein"]
["dt. Prädikatsstufe"]
["sonst. Klassifikation",null,null,null,null,null,null,"Art.-Nr. Lieferant"]
["Geschmack",null,null,null,null,null,null,"Artikel-Nr.",{"$f":"50+J6","v":50}]
["lf. Nr.","Datum","Zugang / Anf.best","S Zugang","Abgang","Bestand","Meldung","EKP/Stück [€]\nohne MWSt.","EKP/Stück [€]\ninkl. MWSt.","Æ EKP/Stück [€]\nohne MWSt.","Æ EKP/Stück [€]\ninkl. MWSt.","Lagerwert [€] zu EKP ohne MWSt.","Lagerwert [€] zu EKP inkl. MWSt.","Entnahme durch Abteilung","Kürzel Lagerist","Bemerkungen"]
[1,null,null,{"$f":"C15","v":0},null,{"$f":"C15","v":0},{"$f":"IF(F15<=$I$3,\"bestellen!\",\"---\")","v":"bestellen!"},null,{"$f":"H15+H15*19/100","v":0},{"$f":"H15","v":0},{"$f":"J15+J15*19/100","v":0},{"$f":"IF(ISERROR(F15*J15),\"\",F15*J15)","v":0},{"$f":"IF(ISERROR(F15*K15),\"\",F15*K15)","v":0}]
[{"$f":"A15+1","v":2},null,null,{"$f":"IF(F15<=0,C16,D15+C16-E15)","v":0},null,{"$f":"IF(F15+C16-E16<0,\"Fehler\",F15+C16-E16)","v":0},"bestellen!",null,{"$f":"H16+H16*19/100","v":0},{"$f":"IF(D15<=0,H16,(F15*J15+C16*H16)/D16)","v":0},{"$f":"J16+J16*19/100","v":0},0,0]
[3,null,null,0,null,0,"bestellen!",null,0,0,0,0,0,null,null,null,null,null,null,null,null,null,null,null,null,null,null,null,null,null,null,null,null,null,null,null,null,null,null,null,null,null,null,null,null,null,null,null,null,null,null,null,null,"Rotwein","Dt. Wein ohne Herkunftsbez.","Kabinett","Regal 1",{"$f":"Lieferant!A5","v":"Domaine du Croc du Merle"},"0,1 l"]
[4,null,null,0,null,0,"bestellen!",null,0,0,0,0,0,null,null,null,null,null,null,null,null,null,null,null,null,null,null,null,null,null,null,null,null,null,null,null,null,null,null,null,null,null,null,null,null,null,null,null,null,null,null,null,null,"Roséwein","Dt. Landwein","Spätlese","Regal 2",{"$f":"Lieferant!A6","v":"Forster Winzerverein"},"0,25 l","Ahrtaler Landwein"]
[5,null,null,0,null,0,"bestellen!",null,0,0,0,0,0,null,null,null,null,null,null,null,null,null,null,null,null,null,null,null,null,null,null,null,null,null,null,null,null,null,null,null,null,null,null,null,null,null,null,null,null,null,null,null,null,"Weißwein","Q.b.A.","Auslese","Regal 3",{"$f":"Lieferant!A7","v":"Gebiets-Winzergen. Franken eG"},"0,375 l","Badischer Landwein"]
[6,null,null,0,null,0,"bestellen!",null,0,0,0,0,0,null,null,null,null,null,null,null,null,null,null,null,null,null,null,null,null,null,null,null,null,null,null,null,null,null,null,null,null,null,null,null,null,null,null,null,null,null,null,null,null,"Weißherbst","Prädikatswein","Beerenauslese","Regal 4",{"$f":"Lieferant!A8","v":"Weingut Johannes Kleinmann"},"0,5 l","Bayrischer Bodensee Landwein"]
[7,null,null,0,null,0,"bestellen!",null,0,0,0,0,0,null,null,null,null,null,null,null,null,null,null,null,null,null,null,null,null,null,null,null,null,null,null,null,null,null,null,null,null,null,null,null,null,null,null,null,null,null,null,null,null,"Rotling",null,"Trockenbeerenauslese","Rotweinlager 1",{"$f":"Lieferant!A9","v":0},"0,75 l","Brandenburger Landwein"]
[8,null,null,0,null,0,"bestellen!",null,0,0,0,0,0,null,null,null,null,null,null,null,null,null,null,null,null,null,null,null,null,null,null,null,null,null,null,null,null,null,null,null,null,null,null,null,null,null,null,null,null,null,null,null,null,"Schillerwein",null,"Eiswein","Rotweinlager 2",{"$f":"Lieferant!A10","v":0},"1,0 l","Landwein Main"]
[9,null,null,0,null,0,"bestellen!",null,0,0,0,0,0,null,null,null,null,null,null,null,null,null,null,null,null,null,null,null,null,null,null,null,null,null,null,null,null,null,null,null,null,null,null,null,null,null,null,null,null,null,null,null,null,"Badisch Rotgold",null,"Classic","Schaumweinlager",{"$f":"Lieferant!A11","v":0},"1,5 l","Landwein der Mosel"]
[10,null,null,0,null,0,"bestellen!",null,0,0,0,0,0,null,null,null,null,null,null,null,null,null,null,null,null,null,null,null,null,null,null,null,null,null,null,null,null,null,null,null,null,null,null,null,null,null,null,null,null,null,null,null,null,"Perlwein",null,"Selection",null,{"$f":"Lieferant!A12","v":0},"2,0 l","Landwein Neckar"]
[11,null,null,0,null,0,"bestellen!",null,0,0,0,0,0,null,null,null,null,null,null,null,null,null,null,null,null,null,null,null,null,null,null,null,null,null,null,null,null,null,null,null,null,null,null,null,null,null,null,null,null,null,null,null,null,"Diabetikerwein",null,null,null,{"$f":"Lieferant!A13","v":0},"3,0 l","Landwein Oberrhein"]
[12,null,null,0,null,0,"bestellen!",null,0,0,0,0,0,null,null,null,null,null,null,null,null,null,null,null,null,null,null,null,null,null,null,null,null,null,null,null,null,null,null,null,null,null,null,null,null,null,null,null,null,null,null,null,null,"Entalkoholisierter Wein",null,null,null,{"$f":"Lieferant!A14","v":0},"5,0 l","Landwein Rhein"]
[13,null,null,0,null,0,"bestellen!",null,0,0,0,0,0,null,null,null,null,null,null,null,null,null,null,null,null,null,null,null,null,null,null,null,null,null,null,null,null,null,null,null,null,null,null,null,null,null,null,null,null,null,null,null,null,"Cuvée",null,null,null,{"$f":"Lieferant!A15","v":0},"10,0 l","Landwein Rhein-Neckar"]
[14,null,null,0,null,0,"bestellen!",null,0,0,0,0,0,null,null,null,null,null,null,null,null,null,null,null,null,null,null,null,null,null,null,null,null,null,null,null,null,null,null,null,null,null,null,null,null,null,null,null,null,null,null,null,null,"Schaumwein",null,null,null,{"$f":"Lieferant!A22","v":0},null,"Landwein der Ruwer"]
[15,null,null,0,null,0,"bestellen!",null,0,0,0,0,0,null,null,null,null,null,null,null,null,null,null,null,null,null,null,null,null,null,null,null,null,null,null,null,null,null,null,null,null,null,null,null,null,null,null,null,null,null,null,null,null,null,null,null,null,{"$f":"Lieferant!A23","v":0},null,"Landwein der Saar"]
[16,null,null,0,null,0,"bestellen!",null,0,0,0,0,0,null,null,null,null,null,null,null,null,null,null,null,null,null,null,null,null,null,null,null,null,null,null,null,null,null,null,null,null,null,null,null,null,null,null,null,null,null,null,null,null,null,null,null,null,{"$f":"Lieferant!A24","v":0},null,"Mecklenburger Landwein"]
[17,null,null,0,null,0,"bestellen!",null,0,0,0,0,0,null,null,null,null,null,null,null,null,null,null,null,null,null,null,null,null,null,null,null,null,null,null,null,null,null,null,null,null,null,null,null,null,null,null,null,null,null,null,null,null,null,null,null,null,{"$f":"Lieferant!A25","v":0},null,"Mitteldeutscher Landwein"]
[18,null,null,0,null,0,"bestellen!",null,0,0,0,0,0,null,null,null,null,null,null,null,null,null,null,null,null,null,null,null,null,null,null,null,null,null,null,null,null,null,null,null,null,null,null,null,null,null,null,null,null,null,null,null,null,null,null,null,null,{"$f":"Lieferant!A26","v":0},null,"Nahegauer Landwein"]
[19,null,null,0,null,0,"bestellen!",null,0,0,0,0,0,null,null,null,null,null,null,null,null,null,null,null,null,null,null,null,null,null,null,null,null,null,null,null,null,null,null,null,null,null,null,null,null,null,null,null,null,null,null,null,null,null,null,null,null,{"$f":"Lieferant!A27","v":0},null,"Pfälzer Landwein"]
[20,null,null,0,null,0,"bestellen!",null,0,0,0,0,0,null,null,null,null,null,null,null,null,null,null,null,null,null,null,null,null,null,null,null,null,null,null,null,null,null,null,null,null,null,null,null,null,null,null,null,null,null,null,null,null,null,null,null,null,{"$f":"Lieferant!A28","v":0},null,"Regensburger Landwein"]
[21,null,null,0,null,0,"bestellen!",null,0,0,0,0,0,null,null,null,null,null,null,null,null,null,null,null,null,null,null,null,null,null,null,null,null,null,null,null,null,null,null,null,null,null,null,null,null,null,null,null,null,null,null,null,null,null,null,null,null,{"$f":"Lieferant!A29","v":0},null,"Rheinburgen Landwein"]
[22,null,null,0,null,0,"bestellen!",null,0,0,0,0,0,null,null,null,null,null,null,null,null,null,null,null,null,null,null,null,null,null,null,null,null,null,null,null,null,null,null,null,null,null,null,null,null,null,null,null,null,null,null,null,null,null,null,null,null,null,null,"Rheingauer Landwein"]
[23,null,null,0,null,0,"bestellen!",null,0,0,0,0,0,null,null,null,null,null,null,null,null,null,null,null,null,null,null,null,null,null,null,null,null,null,null,null,null,null,null,null,null,null,null,null,null,null,null,null,null,null,null,null,null,null,null,null,null,null,null,"Rheinischer Landwein"]
[24,null,null,0,null,0,"bestellen!",null,0,0,0,0,0,null,null,null,null,null,null,null,null,null,null,null,null,null,null,null,null,null,null,null,null,null,null,null,null,null,null,null,null,null,null,null,null,null,null,null,null,null,null,null,null,null,null,null,null,null,null,"Saarländischer Landwein"]
[25,null,null,0,null,0,"bestellen!",null,0,0,0,0,0,null,null,null,null,null,null,null,null,null,null,null,null,null,null,null,null,null,null,null,null,null,null,null,null,null,null,null,null,null,null,null,null,null,null,null,null,null,null,null,null,null,null,null,null,null,null,"Sächsischer Landwein"]
[26,null,null,0,null,0,"bestellen!",null,0,0,0,0,0,null,null,null,null,null,null,null,null,null,null,null,null,null,null,null,null,null,null,null,null,null,null,null,null,null,null,null,null,null,null,null,null,null,null,null,null,null,null,null,null,null,null,null,null,null,null,"Schleswig-Holsteiner Landwein"]
[27,null,null,0,null,0,"bestellen!",null,0,0,0,0,0,null,null,null,null,null,null,null,null,null,null,null,null,null,null,null,null,null,null,null,null,null,null,null,null,null,null,null,null,null,null,null,null,null,null,null,null,null,null,null,null,null,null,null,null,null,null,"Schwäbischer Landwein"]
[28,null,null,0,null,0,"bestellen!",null,0,0,0,0,0,null,null,null,null,null,null,null,null,null,null,null,null,null,null,null,null,null,null,null,null,null,null,null,null,null,null,null,null,null,null,null,null,null,null,null,null,null,null,null,null,null,null,null,null,null,null,"Starkenburger Landwein"]
[29,null,null,0,null,0,"bestellen!",null,0,0,0,0,0,null,null,null,null,null,null,null,null,null,null,null,null,null,null,null,null,null,null,null,null,null,null,null,null,null,null,null,null,null,null,null,null,null,null,null,null,null,null,null,null,null,null,null,null,null,null,"Taubertäler Landwein"]
[30,null,null,0,null,0,"bestellen!",null,0,0,0,0,0]
[31,null,null,0,null,0,"bestellen!",null,0,0,0,0,0]
[32,null,null,0,null,0,"bestellen!",null,0,0,0,0,0]
[33,null,null,0,null,0,"bestellen!",null,0,0,0,0,0]
[34,null,null,0,null,0,"bestellen!",null,0,0,0,0,0]
[35,null,null,0,null,0,"bestellen!",null,0,0,0,0,0]
[36,null,null,0,null,0,"bestellen!",null,0,0,0,0,0]
[37,null,null,0,null,0,"bestellen!",null,0,0,0,0,0]
[38,null,null,0,null,0,"bestellen!",null,0,0,0,0,0]
[39,null,null,0,null,0,"bestellen!",null,0,0,0,0,0]
[40,null,null,0,null,0,"bestellen!",null,0,0,0,0,0]
[41,null,null,0,null,0,"bestellen!",null,0,0,0,0,0]
[42,null,null,0,null,0,"bestellen!",null,0,0,0,0,0]
[43,null,null,0,null,0,"bestellen!",null,0,0,0,0,0]
[44,null,null,0,null,0,"bestellen!",null,0,0,0,0,0]
[45,null,null,0,null,0,"bestellen!",null,0,0,0,0,0]
[46,null,null,0,null,0,"bestellen!",null,0,0,0,0,0]
[47,null,null,0,null,0,"bestellen!",null,0,0,0,0,0]
[48,null,null,0,null,0,"bestellen!",null,0,0,0,0,0]
[49,null,null,0,null,0,"bestellen!",null,0,0,0,0,0]
[50,null,null,0,null,0,"bestellen!",null,0,0,0,0,0]
[51,null,null,0,null,0,"bestellen!",null,0,0,0,0,0]
[52,null,null,0,null,0,"bestellen!",null,0,0,0,0,0]
[53,null,null,0,null,0,"bestellen!",null,0,0,0,0,0]
[54,null,null,0,null,0,"bestellen!",null,0,0,0,0,0]
[55,null,null,0,null,0,"bestellen!",null,0,0,0,0,0]
[56,null,null,0,null,0,"bestellen!",null,0,0,0,0,0]
[57,null,null,0,null,0,"bestellen!",null,0,0,0,0,0]
[58,null,null,0,null,0,"bestellen!",0,0,0,0,0,0]
[59,null,null,0,null,0,"bestellen!",null,0,0,0,0,0]
[60,null,null,0,null,0,"bestellen!",null,0,0,0,0,0]
[61,null,null,0,null,0,"bestellen!",null,0,0,0,0,0]
[62,null,null,0,null,0,"bestellen!",null,0,0,0,0,0]
[63,null,null,0,null,0,"bestellen!",null,0,0,0,0,0]
[64,null,null,0,null,0,"bestellen!",null,0,0,0,0,0]
[65,null,null,0,null,0,{"$f":"IF(F79<=$I$3,\"bestellen!\",\"---\")","v":"bestellen!"},null,0,0,0,{"$f":"IF(ISERROR(F79*J79),\"\",F79*J79)","v":0},{"$f":"IF(ISERROR(F79*K79),\"\",F79*K79)","v":0}]
[{"$f":"A79+1","v":66},null,null,{"$f":"IF(F79<=0,C80,D79+C80-E79)","v":0},null,{"$f":"IF(F79+C80-E80<0,\"Fehler\",F79+C80-E80)","v":0},"bestellen!",null,{"$f":"H80+H80*19/100","v":0},{"$f":"IF(D79<=0,H80,(F79*J79+C80*H80)/D80)","v":0},{"$f":"J80+J80*19/100","v":0},0,0]
[67,null,null,0,null,0,"bestellen!",null,0,0,0,0,0]
[68,null,null,0,null,0,"bestellen!",null,0,0,0,0,0]
[69,null,null,0,null,0,"bestellen!",null,0,0,0,0,0]
[70,null,null,0,null,0,"bestellen!",null,0,0,0,0,0]
[71,null,null,0,null,0,"bestellen!",null,0,0,0,0,0]
[72,null,null,0,null,0,"bestellen!",null,0,0,0,0,0]
[73,null,null,0,null,0,"bestellen!",null,0,0,0,0,0]
[74,null,null,0,null,0,"bestellen!",null,0,0,0,0,0]
[75,null,null,0,null,0,"bestellen!",null,0,0,0,0,0]
[76,null,null,0,null,0,"bestellen!",null,0,0,0,0,0]
[77,null,null,0,null,0,"bestellen!",null,0,0,0,0,0]
[78,null,null,0,null,0,"bestellen!",null,0,0,0,0,0]
[79,null,null,0,null,0,"bestellen!",null,0,0,0,0,0]
[80,null,null,0,null,0,"bestellen!",null,0,0,0,0,0]
[81,null,null,0,null,0,"bestellen!",null,0,0,0,0,0]
[82,null,null,0,null,0,"bestellen!",null,0,0,0,0,0]
[83,null,null,0,null,0,"bestellen!",null,0,0,0,0,0]
[84,null,null,0,null,0,"bestellen!",null,0,0,0,0,0]
[85,null,null,0,null,0,"bestellen!",null,0,0,0,0,0]
[86,null,null,0,null,0,"bestellen!",null,0,0,0,0,0]
[87,null,null,0,null,0,"bestellen!",null,0,0,0,0,0]
[88,null,null,0,null,0,"bestellen!",null,0,0,0,0,0]
[89,null,null,0,null,0,"bestellen!",null,0,0,0,0,0]
[90,null,null,0,null,0,"bestellen!",null,0,0,0,0,0]

{"sheet":"Karte 3","index":13,"n_rows":104,"n_cols":60,"rows_kept":104,"cut":false,"hidden":false,"merged":[[11,2,11,5],[12,2,12,5],[4,2,4,5],[4,8,4,9],[6,2,6,5],[7,2,7,5],[8,2,8,5],[8,7,10,7],[8,8,10,9],[9,2,9,5],[10,2,10,5],[3,2,3,5],[0,0,0,1],[0,4,0,5],[1,2,1,5],[1,8,1,9],[2,2,2,5]]}
["akt.Weinkarte",null,{"$f":"NOW()","v":"2015-04-13T15:03:50.080"},null,"WEINLAGER"]
["Land",null,"Deutschland",null,null,null,null,"Lieferant"]
["Region",null,null,null,null,null,null,"Bestellbestand"]
["Gemeinde",null,null,null,null,null,null,"Höchstbestand",null,{"$f":"IF(ISERROR(F104>I4),\"\",IF(F104>I4,\"Bestand zu hoch!\",))","v":0}]
["Weinbergslage",null,null,null,null,null,null,"Lagerort"]
["Jahrgang",null,null,null,null,null,null,"Inhalt in Liter",null,{"$f":"IF(I5=\"Regal 1\",1,IF(I5=\"Regal 2\",2,IF(I5=\"Regal 3\",3,IF(I5=\"Regal 4\",4,IF(I5=\"Rotweinlager 1\",5,IF(I5=\"Rotweinlager 2\",6,IF(I5=\"Schaumweinlager\",7)))))))","v":false}]
["Rebsorte",null,null,null,null,null,null,"Reife ab",null,{"$f":"IF(I7-30>C1,\"Achtung!\",\"\")","v":""}]
["Herstellungsart",null,null,null,null,null,null,"Verbrauch bis",null,{"$f":"IF(I8-31<=C1,\"Achtung!\",\"\")","v":"Achtung!"}]
["dt. Güteklassen",null,null,null,{"$f":"IF(C9=1,\" Tafelwein\",IF(C9=2,\"Landwein\",IF(C9=3,\"Qualitätswein\",IF(C9=4,\"Qualitätswein m.Präd.\",\"\"))))","v":""},null,null,"Bemerkungen"]
["Dt. Landwein"]
["dt. Prädikatsstufe"]
["sonst. Klassifikation",null,null,null,null,null,null,"Art.-Nr. Lieferant"]
["Geschmack",null,null,null,null,null,null,"Artikel-Nr.",{"$f":"50+J6","v":50}]
["lf. Nr.","Datum","Zugang / Anf.best","S Zugang","Abgang","Bestand","Meldung","EKP/Stück [€]\nohne MWSt.","EKP/Stück [€]\ninkl. MWSt.","Æ EKP/Stück [€]\nohne MWSt.","Æ EKP/Stück [€]\ninkl. MWSt.","Lagerwert [€] zu EKP ohne MWSt.","Lagerwert [€] zu EKP inkl. MWSt.","Entnahme durch Abteilung","Kürzel Lagerist","Bemerkungen"]
[1,null,null,{"$f":"C15","v":0},null,{"$f":"C15","v":0},{"$f":"IF(F15<=$I$3,\"bestellen!\",\"---\")","v":"bestellen!"},null,{"$f":"H15+H15*19/100","v":0},{"$f":"H15","v":0},{"$f":"J15+J15*19/100","v":0},{"$f":"IF(ISERROR(F15*J15),\"\",F15*J15)","v":0},{"$f":"IF(ISERROR(F15*K15),\"\",F15*K15)","v":0}]
[{"$f":"A15+1","v":2},null,null,{"$f":"IF(F15<=0,C16,D15+C16-E15)","v":0},null,{"$f":"IF(F15+C16-E16<0,\"Fehler\",F15+C16-E16)","v":0},"bestellen!",null,{"$f":"H16+H16*19/100","v":0},{"$f":"IF(D15<=0,H16,(F15*J15+C16*H16)/D16)","v":0},{"$f":"J16+J16*19/100","v":0},0,0]
[3,null,null,0,null,0,"bestellen!",null,0,0,0,0,0,null,null,null,null,null,null,null,null,null,null,null,null,null,null,null,null,null,null,null,null,null,null,null,null,null,null,null,null,null,null,null,null,null,null,null,null,null,null,null,null,"Rotwein","Dt. Wein ohne Herkunftsbez.","Kabinett","Regal 1",{"$f":"Lieferant!A5","v":"Domaine du Croc du Merle"},"0,1 l"]
[4,null,null,0,null,0,"bestellen!",null,0,0,0,0,0,null,null,null,null,null,null,null,null,null,null,null,null,null,null,null,null,null,null,null,null,null,null,null,null,null,null,null,null,null,null,null,null,null,null,null,null,null,null,null,null,"Roséwein","Dt. Landwein","Spätlese","Regal 2",{"$f":"Lieferant!A6","v":"Forster Winzerverein"},"0,25 l","Ahrtaler Landwein"]
[5,null,null,0,null,0,"bestellen!",null,0,0,0,0,0,null,null,null,null,null,null,null,null,null,null,null,null,null,null,null,null,null,null,null,null,null,null,null,null,null,null,null,null,null,null,null,null,null,null,null,null,null,null,null,null,"Weißwein","Q.b.A.","Auslese","Regal 3",{"$f":"Lieferant!A7","v":"Gebiets-Winzergen. Franken eG"},"0,375 l","Badischer Landwein"]
[6,null,null,0,null,0,"bestellen!",null,0,0,0,0,0,null,null,null,null,null,null,null,null,null,null,null,null,null,null,null,null,null,null,null,null,null,null,null,null,null,null,null,null,null,null,null,null,null,null,null,null,null,null,null,null,"Weißherbst","Prädikatswein","Beerenauslese","Regal 4",{"$f":"Lieferant!A8","v":"Weingut Johannes Kleinmann"},"0,5 l","Bayrischer Bodensee Landwein"]
[7,null,null,0,null,0,"bestellen!",null,0,0,0,0,0,null,null,null,null,null,null,null,null,null,null,null,null,null,null,null,null,null,null,null,null,null,null,null,null,null,null,null,null,null,null,null,null,null,null,null,null,null,null,null,null,"Rotling",null,"Trockenbeerenauslese","Rotweinlager 1",{"$f":"Lieferant!A9","v":0},"0,75 l","Brandenburger Landwein"]
[8,null,null,0,null,0,"bestellen!",null,0,0,0,0,0,null,null,null,null,null,null,null,null,null,null,null,null,null,null,null,null,null,null,null,null,null,null,null,null,null,null,null,null,null,null,null,null,null,null,null,null,null,null,null,null,"Schillerwein",null,"Eiswein","Rotweinlager 2",{"$f":"Lieferant!A10","v":0},"1,0 l","Landwein Main"]
[9,null,null,0,null,0,"bestellen!",null,0,0,0,0,0,null,null,null,null,null,null,null,null,null,null,null,null,null,null,null,null,null,null,null,null,null,null,null,null,null,null,null,null,null,null,null,null,null,null,null,null,null,null,null,null,"Badisch Rotgold",null,"Classic","Schaumweinlager",{"$f":"Lieferant!A11","v":0},"1,5 l","Landwein der Mosel"]
[10,null,null,0,null,0,"bestellen!",null,0,0,0,0,0,null,null,null,null,null,null,null,null,null,null,null,null,null,null,null,null,null,null,null,null,null,null,null,null,null,null,null,null,null,null,null,null,null,null,null,null,null,null,null,null,"Perlwein",null,"Selection",null,{"$f":"Lieferant!A12","v":0},"2,0 l","Landwein Neckar"]
[11,null,null,0,null,0,"bestellen!",null,0,0,0,0,0,null,null,null,null,null,null,null,null,null,null,null,null,null,null,null,null,null,null,null,null,null,null,null,null,null,null,null,null,null,null,null,null,null,null,null,null,null,null,null,null,"Diabetikerwein",null,null,null,{"$f":"Lieferant!A13","v":0},"3,0 l","Landwein Oberrhein"]
[12,null,null,0,null,0,"bestellen!",null,0,0,0,0,0,null,null,null,null,null,null,null,null,null,null,null,null,null,null,null,null,null,null,null,null,null,null,null,null,null,null,null,null,null,null,null,null,null,null,null,null,null,null,null,null,"Entalkoholisierter Wein",null,null,null,{"$f":"Lieferant!A14","v":0},"5,0 l","Landwein Rhein"]
[13,null,null,0,null,0,"bestellen!",null,0,0,0,0,0,null,null,null,null,null,null,null,null,null,null,null,null,null,null,null,null,null,null,null,null,null,null,null,null,null,null,null,null,null,null,null,null,null,null,null,null,null,null,null,null,"Cuvée",null,null,null,{"$f":"Lieferant!A15","v":0},"10,0 l","Landwein Rhein-Neckar"]
[14,null,null,0,null,0,"bestellen!",null,0,0,0,0,0,null,null,null,null,null,null,null,null,null,null,null,null,null,null,null,null,null,null,null,null,null,null,null,null,null,null,null,null,null,null,null,null,null,null,null,null,null,null,null,null,"Schaumwein",null,null,null,{"$f":"Lieferant!A22","v":0},null,"Landwein der Ruwer"]
[15,null,null,0,null,0,"bestellen!",null,0,0,0,0,0,null,null,null,null,null,null,null,null,null,null,null,null,null,null,null,null,null,null,null,null,null,null,null,null,null,null,null,null,null,null,null,null,null,null,null,null,null,null,null,null,null,null,null,null,{"$f":"Lieferant!A23","v":0},null,"Landwein der Saar"]
[16,null,null,0,null,0,"bestellen!",null,0,0,0,0,0,null,null,null,null,null,null,null,null,null,null,null,null,null,null,null,null,null,null,null,null,null,null,null,null,null,null,null,null,null,null,null,null,null,null,null,null,null,null,null,null,null,null,null,null,{"$f":"Lieferant!A24","v":0},null,"Mecklenburger Landwein"]
[17,null,null,0,null,0,"bestellen!",null,0,0,0,0,0,null,null,null,null,null,null,null,null,null,null,null,null,null,null,null,null,null,null,null,null,null,null,null,null,null,null,null,null,null,null,null,null,null,null,null,null,null,null,null,null,null,null,null,null,{"$f":"Lieferant!A25","v":0},null,"Mitteldeutscher Landwein"]
[18,null,null,0,null,0,"bestellen!",null,0,0,0,0,0,null,null,null,null,null,null,null,null,null,null,null,null,null,null,null,null,null,null,null,null,null,null,null,null,null,null,null,null,null,null,null,null,null,null,null,null,null,null,null,null,null,null,null,null,{"$f":"Lieferant!A26","v":0},null,"Nahegauer Landwein"]
[19,null,null,0,null,0,"bestellen!",null,0,0,0,0,0,null,null,null,null,null,null,null,null,null,null,null,null,null,null,null,null,null,null,null,null,null,null,null,null,null,null,null,null,null,null,null,null,null,null,null,null,null,null,null,null,null,null,null,null,{"$f":"Lieferant!A27","v":0},null,"Pfälzer Landwein"]
[20,null,null,0,null,0,"bestellen!",null,0,0,0,0,0,null,null,null,null,null,null,null,null,null,null,null,null,null,null,null,null,null,null,null,null,null,null,null,null,null,null,null,null,null,null,null,null,null,null,null,null,null,null,null,null,null,null,null,null,{"$f":"Lieferant!A28","v":0},null,"Regensburger Landwein"]
[21,null,null,0,null,0,"bestellen!",null,0,0,0,0,0,null,null,null,null,null,null,null,null,null,null,null,null,null,null,null,null,null,null,null,null,null,null,null,null,null,null,null,null,null,null,null,null,null,null,null,null,null,null,null,null,null,null,null,null,{"$f":"Lieferant!A29","v":0},null,"Rheinburgen Landwein"]
[22,null,null,0,null,0,"bestellen!",null,0,0,0,0,0,null,null,null,null,null,null,null,null,null,null,null,null,null,null,null,null,null,null,null,null,null,null,null,null,null,null,null,null,null,null,null,null,null,null,null,null,null,null,null,null,null,null,null,null,null,null,"Rheingauer Landwein"]
[23,null,null,0,null,0,"bestellen!",null,0,0,0,0,0,null,null,null,null,null,null,null,null,null,null,null,null,null,null,null,null,null,null,null,null,null,null,null,null,null,null,null,null,null,null,null,null,null,null,null,null,null,null,null,null,null,null,null,null,null,null,"Rheinischer Landwein"]
[24,null,null,0,null,0,"bestellen!",null,0,0,0,0,0,null,null,null,null,null,null,null,null,null,null,null,null,null,null,null,null,null,null,null,null,null,null,null,null,null,null,null,null,null,null,null,null,null,null,null,null,null,null,null,null,null,null,null,null,null,null,"Saarländischer Landwein"]
[25,null,null,0,null,0,"bestellen!",null,0,0,0,0,0,null,null,null,null,null,null,null,null,null,null,null,null,null,null,null,null,null,null,null,null,null,null,null,null,null,null,null,null,null,null,null,null,null,null,null,null,null,null,null,null,null,null,null,null,null,null,"Sächsischer Landwein"]
[26,null,null,0,null,0,"bestellen!",null,0,0,0,0,0,null,null,null,null,null,null,null,null,null,null,null,null,null,null,null,null,null,null,null,null,null,null,null,null,null,null,null,null,null,null,null,null,null,null,null,null,null,null,null,null,null,null,null,null,null,null,"Schleswig-Holsteiner Landwein"]
[27,null,null,0,null,0,"bestellen!",null,0,0,0,0,0,null,null,null,null,null,null,null,null,null,null,null,null,null,null,null,null,null,null,null,null,null,null,null,null,null,null,null,null,null,null,null,null,null,null,null,null,null,null,null,null,null,null,null,null,null,null,"Schwäbischer Landwein"]
[28,null,null,0,null,0,"bestellen!",null,0,0,0,0,0,null,null,null,null,null,null,null,null,null,null,null,null,null,null,null,null,null,null,null,null,null,null,null,null,null,null,null,null,null,null,null,null,null,null,null,null,null,null,null,null,null,null,null,null,null,null,"Starkenburger Landwein"]
[29,null,null,0,null,0,"bestellen!",null,0,0,0,0,0,null,null,null,null,null,null,null,null,null,null,null,null,null,null,null,null,null,null,null,null,null,null,null,null,null,null,null,null,null,null,null,null,null,null,null,null,null,null,null,null,null,null,null,null,null,null,"Taubertäler Landwein"]
[30,null,null,0,null,0,"bestellen!",null,0,0,0,0,0]
[31,null,null,0,null,0,"bestellen!",null,0,0,0,0,0]
[32,null,null,0,null,0,"bestellen!",null,0,0,0,0,0]
[33,null,null,0,null,0,"bestellen!",null,0,0,0,0,0]
[34,null,null,0,null,0,"bestellen!",null,0,0,0,0,0]
[35,null,null,0,null,0,"bestellen!",null,0,0,0,0,0]
[36,null,null,0,null,0,"bestellen!",null,0,0,0,0,0]
[37,null,null,0,null,0,"bestellen!",null,0,0,0,0,0]
[38,null,null,0,null,0,"bestellen!",null,0,0,0,0,0]
[39,null,null,0,null,0,"bestellen!",null,0,0,0,0,0]
[40,null,null,0,null,0,"bestellen!",null,0,0,0,0,0]
[41,null,null,0,null,0,"bestellen!",null,0,0,0,0,0]
[42,null,null,0,null,0,"bestellen!",null,0,0,0,0,0]
[43,null,null,0,null,0,"bestellen!",null,0,0,0,0,0]
[44,null,null,0,null,0,"bestellen!",null,0,0,0,0,0]
[45,null,null,0,null,0,"bestellen!",null,0,0,0,0,0]
[46,null,null,0,null,0,"bestellen!",null,0,0,0,0,0]
[47,null,null,0,null,0,"bestellen!",null,0,0,0,0,0]
[48,null,null,0,null,0,"bestellen!",null,0,0,0,0,0]
[49,null,null,0,null,0,"bestellen!",null,0,0,0,0,0]
[50,null,null,0,null,0,"bestellen!",null,0,0,0,0,0]
[51,null,null,0,null,0,"bestellen!",null,0,0,0,0,0]
[52,null,null,0,null,0,"bestellen!",null,0,0,0,0,0]
[53,null,null,0,null,0,"bestellen!",null,0,0,0,0,0]
[54,null,null,0,null,0,"bestellen!",null,0,0,0,0,0]
[55,null,null,0,null,0,"bestellen!",null,0,0,0,0,0]
[56,null,null,0,null,0,"bestellen!",null,0,0,0,0,0]
[57,null,null,0,null,0,"bestellen!",null,0,0,0,0,0]
[58,null,null,0,null,0,"bestellen!",0,0,0,0,0,0]
[59,null,null,0,null,0,"bestellen!",null,0,0,0,0,0]
[60,null,null,0,null,0,"bestellen!",null,0,0,0,0,0]
[61,null,null,0,null,0,"bestellen!",null,0,0,0,0,0]
[62,null,null,0,null,0,"bestellen!",null,0,0,0,0,0]
[63,null,null,0,null,0,"bestellen!",null,0,0,0,0,0]
[64,null,null,0,null,0,"bestellen!",null,0,0,0,0,0]
[65,null,null,0,null,0,{"$f":"IF(F79<=$I$3,\"bestellen!\",\"---\")","v":"bestellen!"},null,0,0,0,{"$f":"IF(ISERROR(F79*J79),\"\",F79*J79)","v":0},{"$f":"IF(ISERROR(F79*K79),\"\",F79*K79)","v":0}]
[{"$f":"A79+1","v":66},null,null,{"$f":"IF(F79<=0,C80,D79+C80-E79)","v":0},null,{"$f":"IF(F79+C80-E80<0,\"Fehler\",F79+C80-E80)","v":0},"bestellen!",null,{"$f":"H80+H80*19/100","v":0},{"$f":"IF(D79<=0,H80,(F79*J79+C80*H80)/D80)","v":0},{"$f":"J80+J80*19/100","v":0},0,0]
[67,null,null,0,null,0,"bestellen!",null,0,0,0,0,0]
[68,null,null,0,null,0,"bestellen!",null,0,0,0,0,0]
[69,null,null,0,null,0,"bestellen!",null,0,0,0,0,0]
[70,null,null,0,null,0,"bestellen!",null,0,0,0,0,0]
[71,null,null,0,null,0,"bestellen!",null,0,0,0,0,0]
[72,null,null,0,null,0,"bestellen!",null,0,0,0,0,0]
[73,null,null,0,null,0,"bestellen!",null,0,0,0,0,0]
[74,null,null,0,null,0,"bestellen!",null,0,0,0,0,0]
[75,null,null,0,null,0,"bestellen!",null,0,0,0,0,0]
[76,null,null,0,null,0,"bestellen!",null,0,0,0,0,0]
[77,null,null,0,null,0,"bestellen!",null,0,0,0,0,0]
[78,null,null,0,null,0,"bestellen!",null,0,0,0,0,0]
[79,null,null,0,null,0,"bestellen!",null,0,0,0,0,0]
[80,null,null,0,null,0,"bestellen!",null,0,0,0,0,0]
[81,null,null,0,null,0,"bestellen!",null,0,0,0,0,0]
[82,null,null,0,null,0,"bestellen!",null,0,0,0,0,0]
[83,null,null,0,null,0,"bestellen!",null,0,0,0,0,0]
[84,null,null,0,null,0,"bestellen!",null,0,0,0,0,0]
[85,null,null,0,null,0,"bestellen!",null,0,0,0,0,0]
[86,null,null,0,null,0,"bestellen!",null,0,0,0,0,0]
[87,null,null,0,null,0,"bestellen!",null,0,0,0,0,0]
[88,null,null,0,null,0,"bestellen!",null,0,0,0,0,0]
[89,null,null,0,null,0,"bestellen!",null,0,0,0,0,0]
[90,null,null,0,null,0,"bestellen!",null,0,0,0,0,0]

{"sheet":"Karte 4","index":14,"n_rows":104,"n_cols":60,"rows_kept":104,"cut":false,"hidden":false,"merged":[[11,2,11,5],[12,2,12,5],[4,2,4,5],[4,8,4,9],[6,2,6,5],[7,2,7,5],[8,2,8,5],[8,7,10,7],[8,8,10,9],[9,2,9,5],[10,2,10,5],[3,2,3,5],[0,0,0,1],[0,4,0,5],[1,2,1,5],[1,8,1,9],[2,2,2,5]]}
["akt.Weinkarte",null,{"$f":"NOW()","v":"2015-04-13T15:03:50.080"},null,"WEINLAGER"]
["Land",null,"Deutschland",null,null,null,null,"Lieferant"]
["Region",null,null,null,null,null,null,"Bestellbestand"]
["Gemeinde",null,null,null,null,null,null,"Höchstbestand",null,{"$f":"IF(ISERROR(F104>I4),\"\",IF(F104>I4,\"Bestand zu hoch!\",))","v":0}]
["Weinbergslage",null,null,null,null,null,null,"Lagerort"]
["Jahrgang",null,null,null,null,null,null,"Inhalt in Liter",null,{"$f":"IF(I5=\"Regal 1\",1,IF(I5=\"Regal 2\",2,IF(I5=\"Regal 3\",3,IF(I5=\"Regal 4\",4,IF(I5=\"Rotweinlager 1\",5,IF(I5=\"Rotweinlager 2\",6,IF(I5=\"Schaumweinlager\",7)))))))","v":false}]
["Rebsorte",null,null,null,null,null,null,"Reife ab",null,{"$f":"IF(I7-30>C1,\"Achtung!\",\"\")","v":""}]
["Herstellungsart",null,null,null,null,null,null,"Verbrauch bis",null,{"$f":"IF(I8-31<=C1,\"Achtung!\",\"\")","v":"Achtung!"}]
["dt. Güteklassen",null,null,null,{"$f":"IF(C9=1,\" Tafelwein\",IF(C9=2,\"Landwein\",IF(C9=3,\"Qualitätswein\",IF(C9=4,\"Qualitätswein m.Präd.\",\"\"))))","v":""},null,null,"Bemerkungen"]
["Dt. Landwein"]
["dt. Prädikatsstufe"]
["sonst. Klassifikation",null,null,null,null,null,null,"Art.-Nr. Lieferant"]
["Geschmack",null,null,null,null,null,null,"Artikel-Nr.",{"$f":"50+J6","v":50}]
["lf. Nr.","Datum","Zugang / Anf.best","S Zugang","Abgang","Bestand","Meldung","EKP/Stück [€]\nohne MWSt.","EKP/Stück [€]\ninkl. MWSt.","Æ EKP/Stück [€]\nohne MWSt.","Æ EKP/Stück [€]\ninkl. MWSt.","Lagerwert [€] zu EKP ohne MWSt.","Lagerwert [€] zu EKP inkl. MWSt.","Entnahme durch Abteilung","Kürzel Lagerist","Bemerkungen"]
[1,null,null,{"$f":"C15","v":0},null,{"$f":"C15","v":0},{"$f":"IF(F15<=$I$3,\"bestellen!\",\"---\")","v":"bestellen!"},null,{"$f":"H15+H15*19/100","v":0},{"$f":"H15","v":0},{"$f":"J15+J15*19/100","v":0},{"$f":"IF(ISERROR(F15*J15),\"\",F15*J15)","v":0},{"$f":"IF(ISERROR(F15*K15),\"\",F15*K15)","v":0}]
[{"$f":"A15+1","v":2},null,null,{"$f":"IF(F15<=0,C16,D15+C16-E15)","v":0},null,{"$f":"IF(F15+C16-E16<0,\"Fehler\",F15+C16-E16)","v":0},"bestellen!",null,{"$f":"H16+H16*19/100","v":0},{"$f":"IF(D15<=0,H16,(F15*J15+C16*H16)/D16)","v":0},{"$f":"J16+J16*19/100","v":0},0,0]
[3,null,null,0,null,0,"bestellen!",null,0,0,0,0,0,null,null,null,null,null,null,null,null,null,null,null,null,null,null,null,null,null,null,null,null,null,null,null,null,null,null,null,null,null,null,null,null,null,null,null,null,null,null,null,null,"Rotwein","Dt. Wein ohne Herkunftsbez.","Kabinett","Regal 1",{"$f":"Lieferant!A5","v":"Domaine du Croc du Merle"},"0,1 l"]
[4,null,null,0,null,0,"bestellen!",null,0,0,0,0,0,null,null,null,null,null,null,null,null,null,null,null,null,null,null,null,null,null,null,null,null,null,null,null,null,null,null,null,null,null,null,null,null,null,null,null,null,null,null,null,null,"Roséwein","Dt. Landwein","Spätlese","Regal 2",{"$f":"Lieferant!A6","v":"Forster Winzerverein"},"0,25 l","Ahrtaler Landwein"]
[5,null,null,0,null,0,"bestellen!",null,0,0,0,0,0,null,null,null,null,null,null,null,null,null,null,null,null,null,null,null,null,null,null,null,null,null,null,null,null,null,null,null,null,null,null,null,null,null,null,null,null,null,null,null,null,"Weißwein","Q.b.A.","Auslese","Regal 3",{"$f":"Lieferant!A7","v":"Gebiets-Winzergen. Franken eG"},"0,375 l","Badischer Landwein"]
[6,null,null,0,null,0,"bestellen!",null,0,0,0,0,0,null,null,null,null,null,null,null,null,null,null,null,null,null,null,null,null,null,null,null,null,null,null,null,null,null,null,null,null,null,null,null,null,null,null,null,null,null,null,null,null,"Weißherbst","Prädikatswein","Beerenauslese","Regal 4",{"$f":"Lieferant!A8","v":"Weingut Johannes Kleinmann"},"0,5 l","Bayrischer Bodensee Landwein"]
[7,null,null,0,null,0,"bestellen!",null,0,0,0,0,0,null,null,null,null,null,null,null,null,null,null,null,null,null,null,null,null,null,null,null,null,null,null,null,null,null,null,null,null,null,null,null,null,null,null,null,null,null,null,null,null,"Rotling",null,"Trockenbeerenauslese","Rotweinlager 1",{"$f":"Lieferant!A9","v":0},"0,75 l","Brandenburger Landwein"]
[8,null,null,0,null,0,"bestellen!",null,0,0,0,0,0,null,null,null,null,null,null,null,null,null,null,null,null,null,null,null,null,null,null,null,null,null,null,null,null,null,null,null,null,null,null,null,null,null,null,null,null,null,null,null,null,"Schillerwein",null,"Eiswein","Rotweinlager 2",{"$f":"Lieferant!A10","v":0},"1,0 l","Landwein Main"]
[9,null,null,0,null,0,"bestellen!",null,0,0,0,0,0,null,null,null,null,null,null,null,null,null,null,null,null,null,null,null,null,null,null,null,null,null,null,null,null,null,null,null,null,null,null,null,null,null,null,null,null,null,null,null,null,"Badisch Rotgold",null,"Classic","Schaumweinlager",{"$f":"Lieferant!A11","v":0},"1,5 l","Landwein der Mosel"]
[10,null,null,0,null,0,"bestellen!",null,0,0,0,0,0,null,null,null,null,null,null,null,null,null,null,null,null,null,null,null,null,null,null,null,null,null,null,null,null,null,null,null,null,null,null,null,null,null,null,null,null,null,null,null,null,"Perlwein",null,"Selection",null,{"$f":"Lieferant!A12","v":0},"2,0 l","Landwein Neckar"]
[11,null,null,0,null,0,"bestellen!",null,0,0,0,0,0,null,null,null,null,null,null,null,null,null,null,null,null,null,null,null,null,null,null,null,null,null,null,null,null,null,null,null,null,null,null,null,null,null,null,null,null,null,null,null,null,"Diabetikerwein",null,null,null,{"$f":"Lieferant!A13","v":0},"3,0 l","Landwein Oberrhein"]
[12,null,null,0,null,0,"bestellen!",null,0,0,0,0,0,null,null,null,null,null,null,null,null,null,null,null,null,null,null,null,null,null,null,null,null,null,null,null,null,null,null,null,null,null,null,null,null,null,null,null,null,null,null,null,null,"Entalkoholisierter Wein",null,null,null,{"$f":"Lieferant!A14","v":0},"5,0 l","Landwein Rhein"]
[13,null,null,0,null,0,"bestellen!",null,0,0,0,0,0,null,null,null,null,null,null,null,null,null,null,null,null,null,null,null,null,null,null,null,null,null,null,null,null,null,null,null,null,null,null,null,null,null,null,null,null,null,null,null,null,"Cuvée",null,null,null,{"$f":"Lieferant!A15","v":0},"10,0 l","Landwein Rhein-Neckar"]
[14,null,null,0,null,0,"bestellen!",null,0,0,0,0,0,null,null,null,null,null,null,null,null,null,null,null,null,null,null,null,null,null,null,null,null,null,null,null,null,null,null,null,null,null,null,null,null,null,null,null,null,null,null,null,null,"Schaumwein",null,null,null,{"$f":"Lieferant!A22","v":0},null,"Landwein der Ruwer"]
[15,null,null,0,null,0,"bestellen!",null,0,0,0,0,0,null,null,null,null,null,null,null,null,null,null,null,null,null,null,null,null,null,null,null,null,null,null,null,null,null,null,null,null,null,null,null,null,null,null,null,null,null,null,null,null,null,null,null,null,{"$f":"Lieferant!A23","v":0},null,"Landwein der Saar"]
[16,null,null,0,null,0,"bestellen!",null,0,0,0,0,0,null,null,null,null,null,null,null,null,null,null,null,null,null,null,null,null,null,null,null,null,null,null,null,null,null,null,null,null,null,null,null,null,null,null,null,null,null,null,null,null,null,null,null,null,{"$f":"Lieferant!A24","v":0},null,"Mecklenburger Landwein"]
[17,null,null,0,null,0,"bestellen!",null,0,0,0,0,0,null,null,null,null,null,null,null,null,null,null,null,null,null,null,null,null,null,null,null,null,null,null,null,null,null,null,null,null,null,null,null,null,null,null,null,null,null,null,null,null,null,null,null,null,{"$f":"Lieferant!A25","v":0},null,"Mitteldeutscher Landwein"]
[18,null,null,0,null,0,"bestellen!",null,0,0,0,0,0,null,null,null,null,null,null,null,null,null,null,null,null,null,null,null,null,null,null,null,null,null,null,null,null,null,null,null,null,null,null,null,null,null,null,null,null,null,null,null,null,null,null,null,null,{"$f":"Lieferant!A26","v":0},null,"Nahegauer Landwein"]
[19,null,null,0,null,0,"bestellen!",null,0,0,0,0,0,null,null,null,null,null,null,null,null,null,null,null,null,null,null,null,null,null,null,null,null,null,null,null,null,null,null,null,null,null,null,null,null,null,null,null,null,null,null,null,null,null,null,null,null,{"$f":"Lieferant!A27","v":0},null,"Pfälzer Landwein"]
[20,null,null,0,null,0,"bestellen!",null,0,0,0,0,0,null,null,null,null,null,null,null,null,null,null,null,null,null,null,null,null,null,null,null,null,null,null,null,null,null,null,null,null,null,null,null,null,null,null,null,null,null,null,null,null,null,null,null,null,{"$f":"Lieferant!A28","v":0},null,"Regensburger Landwein"]
[21,null,null,0,null,0,"bestellen!",null,0,0,0,0,0,null,null,null,null,null,null,null,null,null,null,null,null,null,null,null,null,null,null,null,null,null,null,null,null,null,null,null,null,null,null,null,null,null,null,null,null,null,null,null,null,null,null,null,null,{"$f":"Lieferant!A29","v":0},null,"Rheinburgen Landwein"]
[22,null,null,0,null,0,"bestellen!",null,0,0,0,0,0,null,null,null,null,null,null,null,null,null,null,null,null,null,null,null,null,null,null,null,null,null,null,null,null,null,null,null,null,null,null,null,null,null,null,null,null,null,null,null,null,null,null,null,null,null,null,"Rheingauer Landwein"]
[23,null,null,0,null,0,"bestellen!",null,0,0,0,0,0,null,null,null,null,null,null,null,null,null,null,null,null,null,null,null,null,null,null,null,null,null,null,null,null,null,null,null,null,null,null,null,null,null,null,null,null,null,null,null,null,null,null,null,null,null,null,"Rheinischer Landwein"]
[24,null,null,0,null,0,"bestellen!",null,0,0,0,0,0,null,null,null,null,null,null,null,null,null,null,null,null,null,null,null,null,null,null,null,null,null,null,null,null,null,null,null,null,null,null,null,null,null,null,null,null,null,null,null,null,null,null,null,null,null,null,"Saarländischer Landwein"]
[25,null,null,0,null,0,"bestellen!",null,0,0,0,0,0,null,null,null,null,null,null,null,null,null,null,null,null,null,null,null,null,null,null,null,null,null,null,null,null,null,null,null,null,null,null,null,null,null,null,null,null,null,null,null,null,null,null,null,null,null,null,"Sächsischer Landwein"]
[26,null,null,0,null,0,"bestellen!",null,0,0,0,0,0,null,null,null,null,null,null,null,null,null,null,null,null,null,null,null,null,null,null,null,null,null,null,null,null,null,null,null,null,null,null,null,null,null,null,null,null,null,null,null,null,null,null,null,null,null,null,"Schleswig-Holsteiner Landwein"]
[27,null,null,0,null,0,"bestellen!",null,0,0,0,0,0,null,null,null,null,null,null,null,null,null,null,null,null,null,null,null,null,null,null,null,null,null,null,null,null,null,null,null,null,null,null,null,null,null,null,null,null,null,null,null,null,null,null,null,null,null,null,"Schwäbischer Landwein"]
[28,null,null,0,null,0,"bestellen!",null,0,0,0,0,0,null,null,null,null,null,null,null,null,null,null,null,null,null,null,null,null,null,null,null,null,null,null,null,null,null,null,null,null,null,null,null,null,null,null,null,null,null,null,null,null,null,null,null,null,null,null,"Starkenburger Landwein"]
[29,null,null,0,null,0,"bestellen!",null,0,0,0,0,0,null,null,null,null,null,null,null,null,null,null,null,null,null,null,null,null,null,null,null,null,null,null,null,null,null,null,null,null,null,null,null,null,null,null,null,null,null,null,null,null,null,null,null,null,null,null,"Taubertäler Landwein"]
[30,null,null,0,null,0,"bestellen!",null,0,0,0,0,0]
[31,null,null,0,null,0,"bestellen!",null,0,0,0,0,0]
[32,null,null,0,null,0,"bestellen!",null,0,0,0,0,0]
[33,null,null,0,null,0,"bestellen!",null,0,0,0,0,0]
[34,null,null,0,null,0,"bestellen!",null,0,0,0,0,0]
[35,null,null,0,null,0,"bestellen!",null,0,0,0,0,0]
[36,null,null,0,null,0,"bestellen!",null,0,0,0,0,0]
[37,null,null,0,null,0,"bestellen!",null,0,0,0,0,0]
[38,null,null,0,null,0,"bestellen!",null,0,0,0,0,0]
[39,null,null,0,null,0,"bestellen!",null,0,0,0,0,0]
[40,null,null,0,null,0,"bestellen!",null,0,0,0,0,0]
[41,null,null,0,null,0,"bestellen!",null,0,0,0,0,0]
[42,null,null,0,null,0,"bestellen!",null,0,0,0,0,0]
[43,null,null,0,null,0,"bestellen!",null,0,0,0,0,0]
[44,null,null,0,null,0,"bestellen!",null,0,0,0,0,0]
[45,null,null,0,null,0,"bestellen!",null,0,0,0,0,0]
[46,null,null,0,null,0,"bestellen!",null,0,0,0,0,0]
[47,null,null,0,null,0,"bestellen!",null,0,0,0,0,0]
[48,null,null,0,null,0,"bestellen!",null,0,0,0,0,0]
[49,null,null,0,null,0,"bestellen!",null,0,0,0,0,0]
[50,null,null,0,null,0,"bestellen!",null,0,0,0,0,0]
[51,null,null,0,null,0,"bestellen!",null,0,0,0,0,0]
[52,null,null,0,null,0,"bestellen!",null,0,0,0,0,0]
[53,null,null,0,null,0,"bestellen!",null,0,0,0,0,0]
[54,null,null,0,null,0,"bestellen!",null,0,0,0,0,0]
[55,null,null,0,null,0,"bestellen!",null,0,0,0,0,0]
[56,null,null,0,null,0,"bestellen!",null,0,0,0,0,0]
[57,null,null,0,null,0,"bestellen!",null,0,0,0,0,0]
[58,null,null,0,null,0,"bestellen!",0,0,0,0,0,0]
[59,null,null,0,null,0,"bestellen!",null,0,0,0,0,0]
[60,null,null,0,null,0,"bestellen!",null,0,0,0,0,0]
[61,null,null,0,null,0,"bestellen!",null,0,0,0,0,0]
[62,null,null,0,null,0,"bestellen!",null,0,0,0,0,0]
[63,null,null,0,null,0,"bestellen!",null,0,0,0,0,0]
[64,null,null,0,null,0,"bestellen!",null,0,0,0,0,0]
[65,null,null,0,null,0,{"$f":"IF(F79<=$I$3,\"bestellen!\",\"---\")","v":"bestellen!"},null,0,0,0,{"$f":"IF(ISERROR(F79*J79),\"\",F79*J79)","v":0},{"$f":"IF(ISERROR(F79*K79),\"\",F79*K79)","v":0}]
[{"$f":"A79+1","v":66},null,null,{"$f":"IF(F79<=0,C80,D79+C80-E79)","v":0},null,{"$f":"IF(F79+C80-E80<0,\"Fehler\",F79+C80-E80)","v":0},"bestellen!",null,{"$f":"H80+H80*19/100","v":0},{"$f":"IF(D79<=0,H80,(F79*J79+C80*H80)/D80)","v":0},{"$f":"J80+J80*19/100","v":0},0,0]
[67,null,null,0,null,0,"bestellen!",null,0,0,0,0,0]
[68,null,null,0,null,0,"bestellen!",null,0,0,0,0,0]
[69,null,null,0,null,0,"bestellen!",null,0,0,0,0,0]
[70,null,null,0,null,0,"bestellen!",null,0,0,0,0,0]
[71,null,null,0,null,0,"bestellen!",null,0,0,0,0,0]
[72,null,null,0,null,0,"bestellen!",null,0,0,0,0,0]
[73,null,null,0,null,0,"bestellen!",null,0,0,0,0,0]
[74,null,null,0,null,0,"bestellen!",null,0,0,0,0,0]
[75,null,null,0,null,0,"bestellen!",null,0,0,0,0,0]
[76,null,null,0,null,0,"bestellen!",null,0,0,0,0,0]
[77,null,null,0,null,0,"bestellen!",null,0,0,0,0,0]
[78,null,null,0,null,0,"bestellen!",null,0,0,0,0,0]
[79,null,null,0,null,0,"bestellen!",null,0,0,0,0,0]
[80,null,null,0,null,0,"bestellen!",null,0,0,0,0,0]
[81,null,null,0,null,0,"bestellen!",null,0,0,0,0,0]
[82,null,null,0,null,0,"bestellen!",null,0,0,0,0,0]
[83,null,null,0,null,0,"bestellen!",null,0,0,0,0,0]
[84,null,null,0,null,0,"bestellen!",null,0,0,0,0,0]
[85,null,null,0,null,0,"bestellen!",null,0,0,0,0,0]
[86,null,null,0,null,0,"bestellen!",null,0,0,0,0,0]
[87,null,null,0,null,0,"bestellen!",null,0,0,0,0,0]
[88,null,null,0,null,0,"bestellen!",null,0,0,0,0,0]
[89,null,null,0,null,0,"bestellen!",null,0,0,0,0,0]
[90,null,null,0,null,0,"bestellen!",null,0,0,0,0,0]

{"sheet":"Karte 5","index":15,"n_rows":104,"n_cols":60,"rows_kept":104,"cut":false,"hidden":false,"merged":[[11,2,11,5],[12,2,12,5],[4,2,4,5],[4,8,4,9],[6,2,6,5],[7,2,7,5],[8,2,8,5],[8,7,10,7],[8,8,10,9],[9,2,9,5],[10,2,10,5],[3,2,3,5],[0,0,0,1],[0,4,0,5],[1,2,1,5],[1,8,1,9],[2,2,2,5]]}
["akt.Weinkarte",null,{"$f":"NOW()","v":"2015-04-13T15:03:50.080"},null,"WEINLAGER"]
["Land",null,"Deutschland",null,null,null,null,"Lieferant"]
["Region",null,null,null,null,null,null,"Bestellbestand"]
["Gemeinde",null,null,null,null,null,null,"Höchstbestand",null,{"$f":"IF(ISERROR(F104>I4),\"\",IF(F104>I4,\"Bestand zu hoch!\",))","v":0}]
["Weinbergslage",null,null,null,null,null,null,"Lagerort"]
["Jahrgang",null,null,null,null,null,null,"Inhalt in Liter",null,{"$f":"IF(I5=\"Regal 1\",1,IF(I5=\"Regal 2\",2,IF(I5=\"Regal 3\",3,IF(I5=\"Regal 4\",4,IF(I5=\"Rotweinlager 1\",5,IF(I5=\"Rotweinlager 2\",6,IF(I5=\"Schaumweinlager\",7)))))))","v":false}]
["Rebsorte",null,null,null,null,null,null,"Reife ab",null,{"$f":"IF(I7-30>C1,\"Achtung!\",\"\")","v":""}]
["Herstellungsart",null,null,null,null,null,null,"Verbrauch bis",null,{"$f":"IF(I8-31<=C1,\"Achtung!\",\"\")","v":"Achtung!"}]
["dt. Güteklassen",null,null,null,{"$f":"IF(C9=1,\" Tafelwein\",IF(C9=2,\"Landwein\",IF(C9=3,\"Qualitätswein\",IF(C9=4,\"Qualitätswein m.Präd.\",\"\"))))","v":""},null,null,"Bemerkungen"]
["Dt. Landwein"]
["dt. Prädikatsstufe"]
["sonst. Klassifikation",null,null,null,null,null,null,"Art.-Nr. Lieferant"]
["Geschmack",null,null,null,null,null,null,"Artikel-Nr.",{"$f":"50+J6","v":50}]
["lf. Nr.","Datum","Zugang / Anf.best","S Zugang","Abgang","Bestand","Meldung","EKP/Stück [€]\nohne MWSt.","EKP/Stück [€]\ninkl. MWSt.","Æ EKP/Stück [€]\nohne MWSt.","Æ EKP/Stück [€]\ninkl. MWSt.","Lagerwert [€] zu EKP ohne MWSt.","Lagerwert [€] zu EKP inkl. MWSt.","Entnahme durch Abteilung","Kürzel Lagerist","Bemerkungen"]
[1,null,null,{"$f":"C15","v":0},null,{"$f":"C15","v":0},{"$f":"IF(F15<=$I$3,\"bestellen!\",\"---\")","v":"bestellen!"},null,{"$f":"H15+H15*19/100","v":0},{"$f":"H15","v":0},{"$f":"J15+J15*19/100","v":0},{"$f":"IF(ISERROR(F15*J15),\"\",F15*J15)","v":0},{"$f":"IF(ISERROR(F15*K15),\"\",F15*K15)","v":0}]
[{"$f":"A15+1","v":2},null,null,{"$f":"IF(F15<=0,C16,D15+C16-E15)","v":0},null,{"$f":"IF(F15+C16-E16<0,\"Fehler\",F15+C16-E16)","v":0},"bestellen!",null,{"$f":"H16+H16*19/100","v":0},{"$f":"IF(D15<=0,H16,(F15*J15+C16*H16)/D16)","v":0},{"$f":"J16+J16*19/100","v":0},0,0]
[3,null,null,0,null,0,"bestellen!",null,0,0,0,0,0,null,null,null,null,null,null,null,null,null,null,null,null,null,null,null,null,null,null,null,null,null,null,null,null,null,null,null,null,null,null,null,null,null,null,null,null,null,null,null,null,"Rotwein","Dt. Wein ohne Herkunftsbez.","Kabinett","Regal 1",{"$f":"Lieferant!A5","v":"Domaine du Croc du Merle"},"0,1 l"]
[4,null,null,0,null,0,"bestellen!",null,0,0,0,0,0,null,null,null,null,null,null,null,null,null,null,null,null,null,null,null,null,null,null,null,null,null,null,null,null,null,null,null,null,null,null,null,null,null,null,null,null,null,null,null,null,"Roséwein","Dt. Landwein","Spätlese","Regal 2",{"$f":"Lieferant!A6","v":"Forster Winzerverein"},"0,25 l","Ahrtaler Landwein"]
[5,null,null,0,null,0,"bestellen!",null,0,0,0,0,0,null,null,null,null,null,null,null,null,null,null,null,null,null,null,null,null,null,null,null,null,null,null,null,null,null,null,null,null,null,null,null,null,null,null,null,null,null,null,null,null,"Weißwein","Q.b.A.","Auslese","Regal 3",{"$f":"Lieferant!A7","v":"Gebiets-Winzergen. Franken eG"},"0,375 l","Badischer Landwein"]
[6,null,null,0,null,0,"bestellen!",null,0,0,0,0,0,null,null,null,null,null,null,null,null,null,null,null,null,null,null,null,null,null,null,null,null,null,null,null,null,null,null,null,null,null,null,null,null,null,null,null,null,null,null,null,null,"Weißherbst","Prädikatswein","Beerenauslese","Regal 4",{"$f":"Lieferant!A8","v":"Weingut Johannes Kleinmann"},"0,5 l","Bayrischer Bodensee Landwein"]
[7,null,null,0,null,0,"bestellen!",null,0,0,0,0,0,null,null,null,null,null,null,null,null,null,null,null,null,null,null,null,null,null,null,null,null,null,null,null,null,null,null,null,null,null,null,null,null,null,null,null,null,null,null,null,null,"Rotling",null,"Trockenbeerenauslese","Rotweinlager 1",{"$f":"Lieferant!A9","v":0},"0,75 l","Brandenburger Landwein"]
[8,null,null,0,null,0,"bestellen!",null,0,0,0,0,0,null,null,null,null,null,null,null,null,null,null,null,null,null,null,null,null,null,null,null,null,null,null,null,null,null,null,null,null,null,null,null,null,null,null,null,null,null,null,null,null,"Schillerwein",null,"Eiswein","Rotweinlager 2",{"$f":"Lieferant!A10","v":0},"1,0 l","Landwein Main"]
[9,null,null,0,null,0,"bestellen!",null,0,0,0,0,0,null,null,null,null,null,null,null,null,null,null,null,null,null,null,null,null,null,null,null,null,null,null,null,null,null,null,null,null,null,null,null,null,null,null,null,null,null,null,null,null,"Badisch Rotgold",null,"Classic","Schaumweinlager",{"$f":"Lieferant!A11","v":0},"1,5 l","Landwein der Mosel"]
[10,null,null,0,null,0,"bestellen!",null,0,0,0,0,0,null,null,null,null,null,null,null,null,null,null,null,null,null,null,null,null,null,null,null,null,null,null,null,null,null,null,null,null,null,null,null,null,null,null,null,null,null,null,null,null,"Perlwein",null,"Selection",null,{"$f":"Lieferant!A12","v":0},"2,0 l","Landwein Neckar"]
[11,null,null,0,null,0,"bestellen!",null,0,0,0,0,0,null,null,null,null,null,null,null,null,null,null,null,null,null,null,null,null,null,null,null,null,null,null,null,null,null,null,null,null,null,null,null,null,null,null,null,null,null,null,null,null,"Diabetikerwein",null,null,null,{"$f":"Lieferant!A13","v":0},"3,0 l","Landwein Oberrhein"]
[12,null,null,0,null,0,"bestellen!",null,0,0,0,0,0,null,null,null,null,null,null,null,null,null,null,null,null,null,null,null,null,null,null,null,null,null,null,null,null,null,null,null,null,null,null,null,null,null,null,null,null,null,null,null,null,"Entalkoholisierter Wein",null,null,null,{"$f":"Lieferant!A14","v":0},"5,0 l","Landwein Rhein"]
[13,null,null,0,null,0,"bestellen!",null,0,0,0,0,0,null,null,null,null,null,null,null,null,null,null,null,null,null,null,null,null,null,null,null,null,null,null,null,null,null,null,null,null,null,null,null,null,null,null,null,null,null,null,null,null,"Cuvée",null,null,null,{"$f":"Lieferant!A15","v":0},"10,0 l","Landwein Rhein-Neckar"]
[14,null,null,0,null,0,"bestellen!",null,0,0,0,0,0,null,null,null,null,null,null,null,null,null,null,null,null,null,null,null,null,null,null,null,null,null,null,null,null,null,null,null,null,null,null,null,null,null,null,null,null,null,null,null,null,"Schaumwein",null,null,null,{"$f":"Lieferant!A22","v":0},null,"Landwein der Ruwer"]
[15,null,null,0,null,0,"bestellen!",null,0,0,0,0,0,null,null,null,null,null,null,null,null,null,null,null,null,null,null,null,null,null,null,null,null,null,null,null,null,null,null,null,null,null,null,null,null,null,null,null,null,null,null,null,null,null,null,null,null,{"$f":"Lieferant!A23","v":0},null,"Landwein der Saar"]
[16,null,null,0,null,0,"bestellen!",null,0,0,0,0,0,null,null,null,null,null,null,null,null,null,null,null,null,null,null,null,null,null,null,null,null,null,null,null,null,null,null,null,null,null,null,null,null,null,null,null,null,null,null,null,null,null,null,null,null,{"$f":"Lieferant!A24","v":0},null,"Mecklenburger Landwein"]
[17,null,null,0,null,0,"bestellen!",null,0,0,0,0,0,null,null,null,null,null,null,null,null,null,null,null,null,null,null,null,null,null,null,null,null,null,null,null,null,null,null,null,null,null,null,null,null,null,null,null,null,null,null,null,null,null,null,null,null,{"$f":"Lieferant!A25","v":0},null,"Mitteldeutscher Landwein"]
[18,null,null,0,null,0,"bestellen!",null,0,0,0,0,0,null,null,null,null,null,null,null,null,null,null,null,null,null,null,null,null,null,null,null,null,null,null,null,null,null,null,null,null,null,null,null,null,null,null,null,null,null,null,null,null,null,null,null,null,{"$f":"Lieferant!A26","v":0},null,"Nahegauer Landwein"]
[19,null,null,0,null,0,"bestellen!",null,0,0,0,0,0,null,null,null,null,null,null,null,null,null,null,null,null,null,null,null,null,null,null,null,null,null,null,null,null,null,null,null,null,null,null,null,null,null,null,null,null,null,null,null,null,null,null,null,null,{"$f":"Lieferant!A27","v":0},null,"Pfälzer Landwein"]
[20,null,null,0,null,0,"bestellen!",null,0,0,0,0,0,null,null,null,null,null,null,null,null,null,null,null,null,null,null,null,null,null,null,null,null,null,null,null,null,null,null,null,null,null,null,null,null,null,null,null,null,null,null,null,null,null,null,null,null,{"$f":"Lieferant!A28","v":0},null,"Regensburger Landwein"]
[21,null,null,0,null,0,"bestellen!",null,0,0,0,0,0,null,null,null,null,null,null,null,null,null,null,null,null,null,null,null,null,null,null,null,null,null,null,null,null,null,null,null,null,null,null,null,null,null,null,null,null,null,null,null,null,null,null,null,null,{"$f":"Lieferant!A29","v":0},null,"Rheinburgen Landwein"]
[22,null,null,0,null,0,"bestellen!",null,0,0,0,0,0,null,null,null,null,null,null,null,null,null,null,null,null,null,null,null,null,null,null,null,null,null,null,null,null,null,null,null,null,null,null,null,null,null,null,null,null,null,null,null,null,null,null,null,null,null,null,"Rheingauer Landwein"]
[23,null,null,0,null,0,"bestellen!",null,0,0,0,0,0,null,null,null,null,null,null,null,null,null,null,null,null,null,null,null,null,null,null,null,null,null,null,null,null,null,null,null,null,null,null,null,null,null,null,null,null,null,null,null,null,null,null,null,null,null,null,"Rheinischer Landwein"]
[24,null,null,0,null,0,"bestellen!",null,0,0,0,0,0,null,null,null,null,null,null,null,null,null,null,null,null,null,null,null,null,null,null,null,null,null,null,null,null,null,null,null,null,null,null,null,null,null,null,null,null,null,null,null,null,null,null,null,null,null,null,"Saarländischer Landwein"]
[25,null,null,0,null,0,"bestellen!",null,0,0,0,0,0,null,null,null,null,null,null,null,null,null,null,null,null,null,null,null,null,null,null,null,null,null,null,null,null,null,null,null,null,null,null,null,null,null,null,null,null,null,null,null,null,null,null,null,null,null,null,"Sächsischer Landwein"]
[26,null,null,0,null,0,"bestellen!",null,0,0,0,0,0,null,null,null,null,null,null,null,null,null,null,null,null,null,null,null,null,null,null,null,null,null,null,null,null,null,null,null,null,null,null,null,null,null,null,null,null,null,null,null,null,null,null,null,null,null,null,"Schleswig-Holsteiner Landwein"]
[27,null,null,0,null,0,"bestellen!",null,0,0,0,0,0,null,null,null,null,null,null,null,null,null,null,null,null,null,null,null,null,null,null,null,null,null,null,null,null,null,null,null,null,null,null,null,null,null,null,null,null,null,null,null,null,null,null,null,null,null,null,"Schwäbischer Landwein"]
[28,null,null,0,null,0,"bestellen!",null,0,0,0,0,0,null,null,null,null,null,null,null,null,null,null,null,null,null,null,null,null,null,null,null,null,null,null,null,null,null,null,null,null,null,null,null,null,null,null,null,null,null,null,null,null,null,null,null,null,null,null,"Starkenburger Landwein"]
[29,null,null,0,null,0,"bestellen!",null,0,0,0,0,0,null,null,null,null,null,null,null,null,null,null,null,null,null,null,null,null,null,null,null,null,null,null,null,null,null,null,null,null,null,null,null,null,null,null,null,null,null,null,null,null,null,null,null,null,null,null,"Taubertäler Landwein"]
[30,null,null,0,null,0,"bestellen!",null,0,0,0,0,0]
[31,null,null,0,null,0,"bestellen!",null,0,0,0,0,0]
[32,null,null,0,null,0,"bestellen!",null,0,0,0,0,0]
[33,null,null,0,null,0,"bestellen!",null,0,0,0,0,0]
[34,null,null,0,null,0,"bestellen!",null,0,0,0,0,0]
[35,null,null,0,null,0,"bestellen!",null,0,0,0,0,0]
[36,null,null,0,null,0,"bestellen!",null,0,0,0,0,0]
[37,null,null,0,null,0,"bestellen!",null,0,0,0,0,0]
[38,null,null,0,null,0,"bestellen!",null,0,0,0,0,0]
[39,null,null,0,null,0,"bestellen!",null,0,0,0,0,0]
[40,null,null,0,null,0,"bestellen!",null,0,0,0,0,0]
[41,null,null,0,null,0,"bestellen!",null,0,0,0,0,0]
[42,null,null,0,null,0,"bestellen!",null,0,0,0,0,0]
[43,null,null,0,null,0,"bestellen!",null,0,0,0,0,0]
[44,null,null,0,null,0,"bestellen!",null,0,0,0,0,0]
[45,null,null,0,null,0,"bestellen!",null,0,0,0,0,0]
[46,null,null,0,null,0,"bestellen!",null,0,0,0,0,0]
[47,null,null,0,null,0,"bestellen!",null,0,0,0,0,0]
[48,null,null,0,null,0,"bestellen!",null,0,0,0,0,0]
[49,null,null,0,null,0,"bestellen!",null,0,0,0,0,0]
[50,null,null,0,null,0,"bestellen!",null,0,0,0,0,0]
[51,null,null,0,null,0,"bestellen!",null,0,0,0,0,0]
[52,null,null,0,null,0,"bestellen!",null,0,0,0,0,0]
[53,null,null,0,null,0,"bestellen!",null,0,0,0,0,0]
[54,null,null,0,null,0,"bestellen!",null,0,0,0,0,0]
[55,null,null,0,null,0,"bestellen!",null,0,0,0,0,0]
[56,null,null,0,null,0,"bestellen!",null,0,0,0,0,0]
[57,null,null,0,null,0,"bestellen!",null,0,0,0,0,0]
[58,null,null,0,null,0,"bestellen!",0,0,0,0,0,0]
[59,null,null,0,null,0,"bestellen!",null,0,0,0,0,0]
[60,null,null,0,null,0,"bestellen!",null,0,0,0,0,0]
[61,null,null,0,null,0,"bestellen!",null,0,0,0,0,0]
[62,null,null,0,null,0,"bestellen!",null,0,0,0,0,0]
[63,null,null,0,null,0,"bestellen!",null,0,0,0,0,0]
[64,null,null,0,null,0,"bestellen!",null,0,0,0,0,0]
[65,null,null,0,null,0,{"$f":"IF(F79<=$I$3,\"bestellen!\",\"---\")","v":"bestellen!"},null,0,0,0,{"$f":"IF(ISERROR(F79*J79),\"\",F79*J79)","v":0},{"$f":"IF(ISERROR(F79*K79),\"\",F79*K79)","v":0}]
[{"$f":"A79+1","v":66},null,null,{"$f":"IF(F79<=0,C80,D79+C80-E79)","v":0},null,{"$f":"IF(F79+C80-E80<0,\"Fehler\",F79+C80-E80)","v":0},"bestellen!",null,{"$f":"H80+H80*19/100","v":0},{"$f":"IF(D79<=0,H80,(F79*J79+C80*H80)/D80)","v":0},{"$f":"J80+J80*19/100","v":0},0,0]
[67,null,null,0,null,0,"bestellen!",null,0,0,0,0,0]
[68,null,null,0,null,0,"bestellen!",null,0,0,0,0,0]
[69,null,null,0,null,0,"bestellen!",null,0,0,0,0,0]
[70,null,null,0,null,0,"bestellen!",null,0,0,0,0,0]
[71,null,null,0,null,0,"bestellen!",null,0,0,0,0,0]
[72,null,null,0,null,0,"bestellen!",null,0,0,0,0,0]
[73,null,null,0,null,0,"bestellen!",null,0,0,0,0,0]
[74,null,null,0,null,0,"bestellen!",null,0,0,0,0,0]
[75,null,null,0,null,0,"bestellen!",null,0,0,0,0,0]
[76,null,null,0,null,0,"bestellen!",null,0,0,0,0,0]
[77,null,null,0,null,0,"bestellen!",null,0,0,0,0,0]
[78,null,null,0,null,0,"bestellen!",null,0,0,0,0,0]
[79,null,null,0,null,0,"bestellen!",null,0,0,0,0,0]
[80,null,null,0,null,0,"bestellen!",null,0,0,0,0,0]
[81,null,null,0,null,0,"bestellen!",null,0,0,0,0,0]
[82,null,null,0,null,0,"bestellen!",null,0,0,0,0,0]
[83,null,null,0,null,0,"bestellen!",null,0,0,0,0,0]
[84,null,null,0,null,0,"bestellen!",null,0,0,0,0,0]
[85,null,null,0,null,0,"bestellen!",null,0,0,0,0,0]
[86,null,null,0,null,0,"bestellen!",null,0,0,0,0,0]
[87,null,null,0,null,0,"bestellen!",null,0,0,0,0,0]
[88,null,null,0,null,0,"bestellen!",null,0,0,0,0,0]
[89,null,null,0,null,0,"bestellen!",null,0,0,0,0,0]
[90,null,null,0,null,0,"bestellen!",null,0,0,0,0,0]

{"sheet":"Karte 6","index":16,"n_rows":104,"n_cols":60,"rows_kept":104,"cut":false,"hidden":false,"merged":[[11,2,11,5],[12,2,12,5],[4,2,4,5],[4,8,4,9],[6,2,6,5],[7,2,7,5],[8,2,8,5],[8,7,10,7],[8,8,10,9],[9,2,9,5],[10,2,10,5],[3,2,3,5],[0,0,0,1],[0,4,0,5],[1,2,1,5],[1,8,1,9],[2,2,2,5]]}
["akt.Weinkarte",null,{"$f":"NOW()","v":"2015-04-13T15:03:50.080"},null,"WEINLAGER"]
["Land",null,"Deutschland",null,null,null,null,"Lieferant"]
["Region",null,null,null,null,null,null,"Bestellbestand"]
["Gemeinde",null,null,null,null,null,null,"Höchstbestand",null,{"$f":"IF(ISERROR(F104>I4),\"\",IF(F104>I4,\"Bestand zu hoch!\",))","v":0}]
["Weinbergslage",null,null,null,null,null,null,"Lagerort"]
["Jahrgang",null,null,null,null,null,null,"Inhalt in Liter",null,{"$f":"IF(I5=\"Regal 1\",1,IF(I5=\"Regal 2\",2,IF(I5=\"Regal 3\",3,IF(I5=\"Regal 4\",4,IF(I5=\"Rotweinlager 1\",5,IF(I5=\"Rotweinlager 2\",6,IF(I5=\"Schaumweinlager\",7)))))))","v":false}]
["Rebsorte",null,null,null,null,null,null,"Reife ab",null,{"$f":"IF(I7-30>C1,\"Achtung!\",\"\")","v":""}]
["Herstellungsart",null,null,null,null,null,null,"Verbrauch bis",null,{"$f":"IF(I8-31<=C1,\"Achtung!\",\"\")","v":"Achtung!"}]
["dt. Güteklassen",null,null,null,{"$f":"IF(C9=1,\" Tafelwein\",IF(C9=2,\"Landwein\",IF(C9=3,\"Qualitätswein\",IF(C9=4,\"Qualitätswein m.Präd.\",\"\"))))","v":""},null,null,"Bemerkungen"]
["Dt. Landwein"]
["dt. Prädikatsstufe"]
["sonst. Klassifikation",null,null,null,null,null,null,"Art.-Nr. Lieferant"]
["Geschmack",null,null,null,null,null,null,"Artikel-Nr.",{"$f":"50+J6","v":50}]
["lf. Nr.","Datum","Zugang / Anf.best","S Zugang","Abgang","Bestand","Meldung","EKP/Stück [€]\nohne MWSt.","EKP/Stück [€]\ninkl. MWSt.","Æ EKP/Stück [€]\nohne MWSt.","Æ EKP/Stück [€]\ninkl. MWSt.","Lagerwert [€] zu EKP ohne MWSt.","Lagerwert [€] zu EKP inkl. MWSt.","Entnahme durch Abteilung","Kürzel Lagerist","Bemerkungen"]
[1,null,null,{"$f":"C15","v":0},null,{"$f":"C15","v":0},{"$f":"IF(F15<=$I$3,\"bestellen!\",\"---\")","v":"bestellen!"},null,{"$f":"H15+H15*19/100","v":0},{"$f":"H15","v":0},{"$f":"J15+J15*19/100","v":0},{"$f":"IF(ISERROR(F15*J15),\"\",F15*J15)","v":0},{"$f":"IF(ISERROR(F15*K15),\"\",F15*K15)","v":0}]
[{"$f":"A15+1","v":2},null,null,{"$f":"IF(F15<=0,C16,D15+C16-E15)","v":0},null,{"$f":"IF(F15+C16-E16<0,\"Fehler\",F15+C16-E16)","v":0},"bestellen!",null,{"$f":"H16+H16*19/100","v":0},{"$f":"IF(D15<=0,H16,(F15*J15+C16*H16)/D16)","v":0},{"$f":"J16+J16*19/100","v":0},0,0]
[3,null,null,0,null,0,"bestellen!",null,0,0,0,0,0,null,null,null,null,null,null,null,null,null,null,null,null,null,null,null,null,null,null,null,null,null,null,null,null,null,null,null,null,null,null,null,null,null,null,null,null,null,null,null,null,"Rotwein","Dt. Wein ohne Herkunftsbez.","Kabinett","Regal 1",{"$f":"Lieferant!A5","v":"Domaine du Croc du Merle"},"0,1 l"]
[4,null,null,0,null,0,"bestellen!",null,0,0,0,0,0,null,null,null,null,null,null,null,null,null,null,null,null,null,null,null,null,null,null,null,null,null,null,null,null,null,null,null,null,null,null,null,null,null,null,null,null,null,null,null,null,"Roséwein","Dt. Landwein","Spätlese","Regal 2",{"$f":"Lieferant!A6","v":"Forster Winzerverein"},"0,25 l","Ahrtaler Landwein"]
[5,null,null,0,null,0,"bestellen!",null,0,0,0,0,0,null,null,null,null,null,null,null,null,null,null,null,null,null,null,null,null,null,null,null,null,null,null,null,null,null,null,null,null,null,null,null,null,null,null,null,null,null,null,null,null,"Weißwein","Q.b.A.","Auslese","Regal 3",{"$f":"Lieferant!A7","v":"Gebiets-Winzergen. Franken eG"},"0,375 l","Badischer Landwein"]
[6,null,null,0,null,0,"bestellen!",null,0,0,0,0,0,null,null,null,null,null,null,null,null,null,null,null,null,null,null,null,null,null,null,null,null,null,null,null,null,null,null,null,null,null,null,null,null,null,null,null,null,null,null,null,null,"Weißherbst","Prädikatswein","Beerenauslese","Regal 4",{"$f":"Lieferant!A8","v":"Weingut Johannes Kleinmann"},"0,5 l","Bayrischer Bodensee Landwein"]
[7,null,null,0,null,0,"bestellen!",null,0,0,0,0,0,null,null,null,null,null,null,null,null,null,null,null,null,null,null,null,null,null,null,null,null,null,null,null,null,null,null,null,null,null,null,null,null,null,null,null,null,null,null,null,null,"Rotling",null,"Trockenbeerenauslese","Rotweinlager 1",{"$f":"Lieferant!A9","v":0},"0,75 l","Brandenburger Landwein"]
[8,null,null,0,null,0,"bestellen!",null,0,0,0,0,0,null,null,null,null,null,null,null,null,null,null,null,null,null,null,null,null,null,null,null,null,null,null,null,null,null,null,null,null,null,null,null,null,null,null,null,null,null,null,null,null,"Schillerwein",null,"Eiswein","Rotweinlager 2",{"$f":"Lieferant!A10","v":0},"1,0 l","Landwein Main"]
[9,null,null,0,null,0,"bestellen!",null,0,0,0,0,0,null,null,null,null,null,null,null,null,null,null,null,null,null,null,null,null,null,null,null,null,null,null,null,null,null,null,null,null,null,null,null,null,null,null,null,null,null,null,null,null,"Badisch Rotgold",null,"Classic","Schaumweinlager",{"$f":"Lieferant!A11","v":0},"1,5 l","Landwein der Mosel"]
[10,null,null,0,null,0,"bestellen!",null,0,0,0,0,0,null,null,null,null,null,null,null,null,null,null,null,null,null,null,null,null,null,null,null,null,null,null,null,null,null,null,null,null,null,null,null,null,null,null,null,null,null,null,null,null,"Perlwein",null,"Selection",null,{"$f":"Lieferant!A12","v":0},"2,0 l","Landwein Neckar"]
[11,null,null,0,null,0,"bestellen!",null,0,0,0,0,0,null,null,null,null,null,null,null,null,null,null,null,null,null,null,null,null,null,null,null,null,null,null,null,null,null,null,null,null,null,null,null,null,null,null,null,null,null,null,null,null,"Diabetikerwein",null,null,null,{"$f":"Lieferant!A13","v":0},"3,0 l","Landwein Oberrhein"]
[12,null,null,0,null,0,"bestellen!",null,0,0,0,0,0,null,null,null,null,null,null,null,null,null,null,null,null,null,null,null,null,null,null,null,null,null,null,null,null,null,null,null,null,null,null,null,null,null,null,null,null,null,null,null,null,"Entalkoholisierter Wein",null,null,null,{"$f":"Lieferant!A14","v":0},"5,0 l","Landwein Rhein"]
[13,null,null,0,null,0,"bestellen!",null,0,0,0,0,0,null,null,null,null,null,null,null,null,null,null,null,null,null,null,null,null,null,null,null,null,null,null,null,null,null,null,null,null,null,null,null,null,null,null,null,null,null,null,null,null,"Cuvée",null,null,null,{"$f":"Lieferant!A15","v":0},"10,0 l","Landwein Rhein-Neckar"]
[14,null,null,0,null,0,"bestellen!",null,0,0,0,0,0,null,null,null,null,null,null,null,null,null,null,null,null,null,null,null,null,null,null,null,null,null,null,null,null,null,null,null,null,null,null,null,null,null,null,null,null,null,null,null,null,"Schaumwein",null,null,null,{"$f":"Lieferant!A22","v":0},null,"Landwein der Ruwer"]
[15,null,null,0,null,0,"bestellen!",null,0,0,0,0,0,null,null,null,null,null,null,null,null,null,null,null,null,null,null,null,null,null,null,null,null,null,null,null,null,null,null,null,null,null,null,null,null,null,null,null,null,null,null,null,null,null,null,null,null,{"$f":"Lieferant!A23","v":0},null,"Landwein der Saar"]
[16,null,null,0,null,0,"bestellen!",null,0,0,0,0,0,null,null,null,null,null,null,null,null,null,null,null,null,null,null,null,null,null,null,null,null,null,null,null,null,null,null,null,null,null,null,null,null,null,null,null,null,null,null,null,null,null,null,null,null,{"$f":"Lieferant!A24","v":0},null,"Mecklenburger Landwein"]
[17,null,null,0,null,0,"bestellen!",null,0,0,0,0,0,null,null,null,null,null,null,null,null,null,null,null,null,null,null,null,null,null,null,null,null,null,null,null,null,null,null,null,null,null,null,null,null,null,null,null,null,null,null,null,null,null,null,null,null,{"$f":"Lieferant!A25","v":0},null,"Mitteldeutscher Landwein"]
[18,null,null,0,null,0,"bestellen!",null,0,0,0,0,0,null,null,null,null,null,null,null,null,null,null,null,null,null,null,null,null,null,null,null,null,null,null,null,null,null,null,null,null,null,null,null,null,null,null,null,null,null,null,null,null,null,null,null,null,{"$f":"Lieferant!A26","v":0},null,"Nahegauer Landwein"]
[19,null,null,0,null,0,"bestellen!",null,0,0,0,0,0,null,null,null,null,null,null,null,null,null,null,null,null,null,null,null,null,null,null,null,null,null,null,null,null,null,null,null,null,null,null,null,null,null,null,null,null,null,null,null,null,null,null,null,null,{"$f":"Lieferant!A27","v":0},null,"Pfälzer Landwein"]
[20,null,null,0,null,0,"bestellen!",null,0,0,0,0,0,null,null,null,null,null,null,null,null,null,null,null,null,null,null,null,null,null,null,null,null,null,null,null,null,null,null,null,null,null,null,null,null,null,null,null,null,null,null,null,null,null,null,null,null,{"$f":"Lieferant!A28","v":0},null,"Regensburger Landwein"]
[21,null,null,0,null,0,"bestellen!",null,0,0,0,0,0,null,null,null,null,null,null,null,null,null,null,null,null,null,null,null,null,null,null,null,null,null,null,null,null,null,null,null,null,null,null,null,null,null,null,null,null,null,null,null,null,null,null,null,null,{"$f":"Lieferant!A29","v":0},null,"Rheinburgen Landwein"]
[22,null,null,0,null,0,"bestellen!",null,0,0,0,0,0,null,null,null,null,null,null,null,null,null,null,null,null,null,null,null,null,null,null,null,null,null,null,null,null,null,null,null,null,null,null,null,null,null,null,null,null,null,null,null,null,null,null,null,null,null,null,"Rheingauer Landwein"]
[23,null,null,0,null,0,"bestellen!",null,0,0,0,0,0,null,null,null,null,null,null,null,null,null,null,null,null,null,null,null,null,null,null,null,null,null,null,null,null,null,null,null,null,null,null,null,null,null,null,null,null,null,null,null,null,null,null,null,null,null,null,"Rheinischer Landwein"]
[24,null,null,0,null,0,"bestellen!",null,0,0,0,0,0,null,null,null,null,null,null,null,null,null,null,null,null,null,null,null,null,null,null,null,null,null,null,null,null,null,null,null,null,null,null,null,null,null,null,null,null,null,null,null,null,null,null,null,null,null,null,"Saarländischer Landwein"]
[25,null,null,0,null,0,"bestellen!",null,0,0,0,0,0,null,null,null,null,null,null,null,null,null,null,null,null,null,null,null,null,null,null,null,null,null,null,null,null,null,null,null,null,null,null,null,null,null,null,null,null,null,null,null,null,null,null,null,null,null,null,"Sächsischer Landwein"]
[26,null,null,0,null,0,"bestellen!",null,0,0,0,0,0,null,null,null,null,null,null,null,null,null,null,null,null,null,null,null,null,null,null,null,null,null,null,null,null,null,null,null,null,null,null,null,null,null,null,null,null,null,null,null,null,null,null,null,null,null,null,"Schleswig-Holsteiner Landwein"]
[27,null,null,0,null,0,"bestellen!",null,0,0,0,0,0,null,null,null,null,null,null,null,null,null,null,null,null,null,null,null,null,null,null,null,null,null,null,null,null,null,null,null,null,null,null,null,null,null,null,null,null,null,null,null,null,null,null,null,null,null,null,"Schwäbischer Landwein"]
[28,null,null,0,null,0,"bestellen!",null,0,0,0,0,0,null,null,null,null,null,null,null,null,null,null,null,null,null,null,null,null,null,null,null,null,null,null,null,null,null,null,null,null,null,null,null,null,null,null,null,null,null,null,null,null,null,null,null,null,null,null,"Starkenburger Landwein"]
[29,null,null,0,null,0,"bestellen!",null,0,0,0,0,0,null,null,null,null,null,null,null,null,null,null,null,null,null,null,null,null,null,null,null,null,null,null,null,null,null,null,null,null,null,null,null,null,null,null,null,null,null,null,null,null,null,null,null,null,null,null,"Taubertäler Landwein"]
[30,null,null,0,null,0,"bestellen!",null,0,0,0,0,0]
[31,null,null,0,null,0,"bestellen!",null,0,0,0,0,0]
[32,null,null,0,null,0,"bestellen!",null,0,0,0,0,0]
[33,null,null,0,null,0,"bestellen!",null,0,0,0,0,0]
[34,null,null,0,null,0,"bestellen!",null,0,0,0,0,0]
[35,null,null,0,null,0,"bestellen!",null,0,0,0,0,0]
[36,null,null,0,null,0,"bestellen!",null,0,0,0,0,0]
[37,null,null,0,null,0,"bestellen!",null,0,0,0,0,0]
[38,null,null,0,null,0,"bestellen!",null,0,0,0,0,0]
[39,null,null,0,null,0,"bestellen!",null,0,0,0,0,0]
[40,null,null,0,null,0,"bestellen!",null,0,0,0,0,0]
[41,null,null,0,null,0,"bestellen!",null,0,0,0,0,0]
[42,null,null,0,null,0,"bestellen!",null,0,0,0,0,0]
[43,null,null,0,null,0,"bestellen!",null,0,0,0,0,0]
[44,null,null,0,null,0,"bestellen!",null,0,0,0,0,0]
[45,null,null,0,null,0,"bestellen!",null,0,0,0,0,0]
[46,null,null,0,null,0,"bestellen!",null,0,0,0,0,0]
[47,null,null,0,null,0,"bestellen!",null,0,0,0,0,0]
[48,null,null,0,null,0,"bestellen!",null,0,0,0,0,0]
[49,null,null,0,null,0,"bestellen!",null,0,0,0,0,0]
[50,null,null,0,null,0,"bestellen!",null,0,0,0,0,0]
[51,null,null,0,null,0,"bestellen!",null,0,0,0,0,0]
[52,null,null,0,null,0,"bestellen!",null,0,0,0,0,0]
[53,null,null,0,null,0,"bestellen!",null,0,0,0,0,0]
[54,null,null,0,null,0,"bestellen!",null,0,0,0,0,0]
[55,null,null,0,null,0,"bestellen!",null,0,0,0,0,0]
[56,null,null,0,null,0,"bestellen!",null,0,0,0,0,0]
[57,null,null,0,null,0,"bestellen!",null,0,0,0,0,0]
[58,null,null,0,null,0,"bestellen!",0,0,0,0,0,0]
[59,null,null,0,null,0,"bestellen!",null,0,0,0,0,0]
[60,null,null,0,null,0,"bestellen!",null,0,0,0,0,0]
[61,null,null,0,null,0,"bestellen!",null,0,0,0,0,0]
[62,null,null,0,null,0,"bestellen!",null,0,0,0,0,0]
[63,null,null,0,null,0,"bestellen!",null,0,0,0,0,0]
[64,null,null,0,null,0,"bestellen!",null,0,0,0,0,0]
[65,null,null,0,null,0,{"$f":"IF(F79<=$I$3,\"bestellen!\",\"---\")","v":"bestellen!"},null,0,0,0,{"$f":"IF(ISERROR(F79*J79),\"\",F79*J79)","v":0},{"$f":"IF(ISERROR(F79*K79),\"\",F79*K79)","v":0}]
[{"$f":"A79+1","v":66},null,null,{"$f":"IF(F79<=0,C80,D79+C80-E79)","v":0},null,{"$f":"IF(F79+C80-E80<0,\"Fehler\",F79+C80-E80)","v":0},"bestellen!",null,{"$f":"H80+H80*19/100","v":0},{"$f":"IF(D79<=0,H80,(F79*J79+C80*H80)/D80)","v":0},{"$f":"J80+J80*19/100","v":0},0,0]
[67,null,null,0,null,0,"bestellen!",null,0,0,0,0,0]
[68,null,null,0,null,0,"bestellen!",null,0,0,0,0,0]
[69,null,null,0,null,0,"bestellen!",null,0,0,0,0,0]
[70,null,null,0,null,0,"bestellen!",null,0,0,0,0,0]
[71,null,null,0,null,0,"bestellen!",null,0,0,0,0,0]
[72,null,null,0,null,0,"bestellen!",null,0,0,0,0,0]
[73,null,null,0,null,0,"bestellen!",null,0,0,0,0,0]
[74,null,null,0,null,0,"bestellen!",null,0,0,0,0,0]
[75,null,null,0,null,0,"bestellen!",null,0,0,0,0,0]
[76,null,null,0,null,0,"bestellen!",null,0,0,0,0,0]
[77,null,null,0,null,0,"bestellen!",null,0,0,0,0,0]
[78,null,null,0,null,0,"bestellen!",null,0,0,0,0,0]
[79,null,null,0,null,0,"bestellen!",null,0,0,0,0,0]
[80,null,null,0,null,0,"bestellen!",null,0,0,0,0,0]
[81,null,null,0,null,0,"bestellen!",null,0,0,0,0,0]
[82,null,null,0,null,0,"bestellen!",null,0,0,0,0,0]
[83,null,null,0,null,0,"bestellen!",null,0,0,0,0,0]
[84,null,null,0,null,0,"bestellen!",null,0,0,0,0,0]
[85,null,null,0,null,0,"bestellen!",null,0,0,0,0,0]
[86,null,null,0,null,0,"bestellen!",null,0,0,0,0,0]
[87,null,null,0,null,0,"bestellen!",null,0,0,0,0,0]
[88,null,null,0,null,0,"bestellen!",null,0,0,0,0,0]
[89,null,null,0,null,0,"bestellen!",null,0,0,0,0,0]
[90,null,null,0,null,0,"bestellen!",null,0,0,0,0,0]

{"sheet":"Karte 7","index":17,"n_rows":104,"n_cols":60,"rows_kept":104,"cut":false,"hidden":false,"merged":[[11,2,11,5],[12,2,12,5],[4,2,4,5],[4,8,4,9],[6,2,6,5],[7,2,7,5],[8,2,8,5],[8,7,10,7],[8,8,10,9],[9,2,9,5],[10,2,10,5],[3,2,3,5],[0,0,0,1],[0,4,0,5],[1,2,1,5],[1,8,1,9],[2,2,2,5]]}
["akt.Weinkarte",null,{"$f":"NOW()","v":"2015-04-13T15:03:50.080"},null,"WEINLAGER"]
["Land",null,"Deutschland",null,null,null,null,"Lieferant"]
["Region",null,null,null,null,null,null,"Bestellbestand"]
["Gemeinde",null,null,null,null,null,null,"Höchstbestand",null,{"$f":"IF(ISERROR(F104>I4),\"\",IF(F104>I4,\"Bestand zu hoch!\",))","v":0}]
["Weinbergslage",null,null,null,null,null,null,"Lagerort"]
["Jahrgang",null,null,null,null,null,null,"Inhalt in Liter",null,{"$f":"IF(I5=\"Regal 1\",1,IF(I5=\"Regal 2\",2,IF(I5=\"Regal 3\",3,IF(I5=\"Regal 4\",4,IF(I5=\"Rotweinlager 1\",5,IF(I5=\"Rotweinlager 2\",6,IF(I5=\"Schaumweinlager\",7)))))))","v":false}]
["Rebsorte",null,null,null,null,null,null,"Reife ab",null,{"$f":"IF(I7-30>C1,\"Achtung!\",\"\")","v":""}]
["Herstellungsart",null,null,null,null,null,null,"Verbrauch bis",null,{"$f":"IF(I8-31<=C1,\"Achtung!\",\"\")","v":"Achtung!"}]
["dt. Güteklassen",null,null,null,{"$f":"IF(C9=1,\" Tafelwein\",IF(C9=2,\"Landwein\",IF(C9=3,\"Qualitätswein\",IF(C9=4,\"Qualitätswein m.Präd.\",\"\"))))","v":""},null,null,"Bemerkungen"]
["Dt. Landwein"]
["dt. Prädikatsstufe"]
["sonst. Klassifikation",null,null,null,null,null,null,"Art.-Nr. Lieferant"]
["Geschmack",null,null,null,null,null,null,"Artikel-Nr.",{"$f":"50+J6","v":50}]
["lf. Nr.","Datum","Zugang / Anf.best","S Zugang","Abgang","Bestand","Meldung","EKP/Stück [€]\nohne MWSt.","EKP/Stück [€]\ninkl. MWSt.","Æ EKP/Stück [€]\nohne MWSt.","Æ EKP/Stück [€]\ninkl. MWSt.","Lagerwert [€] zu EKP ohne MWSt.","Lagerwert [€] zu EKP inkl. MWSt.","Entnahme durch Abteilung","Kürzel Lagerist","Bemerkungen"]
[1,null,null,{"$f":"C15","v":0},null,{"$f":"C15","v":0},{"$f":"IF(F15<=$I$3,\"bestellen!\",\"---\")","v":"bestellen!"},null,{"$f":"H15+H15*19/100","v":0},{"$f":"H15","v":0},{"$f":"J15+J15*19/100","v":0},{"$f":"IF(ISERROR(F15*J15),\"\",F15*J15)","v":0},{"$f":"IF(ISERROR(F15*K15),\"\",F15*K15)","v":0}]
[{"$f":"A15+1","v":2},null,null,{"$f":"IF(F15<=0,C16,D15+C16-E15)","v":0},null,{"$f":"IF(F15+C16-E16<0,\"Fehler\",F15+C16-E16)","v":0},"bestellen!",null,{"$f":"H16+H16*19/100","v":0},{"$f":"IF(D15<=0,H16,(F15*J15+C16*H16)/D16)","v":0},{"$f":"J16+J16*19/100","v":0},0,0]
[3,null,null,0,null,0,"bestellen!",null,0,0,0,0,0,null,null,null,null,null,null,null,null,null,null,null,null,null,null,null,null,null,null,null,null,null,null,null,null,null,null,null,null,null,null,null,null,null,null,null,null,null,null,null,null,"Rotwein","Dt. Wein ohne Herkunftsbez.","Kabinett","Regal 1",{"$f":"Lieferant!A5","v":"Domaine du Croc du Merle"},"0,1 l"]
[4,null,null,0,null,0,"bestellen!",null,0,0,0,0,0,null,null,null,null,null,null,null,null,null,null,null,null,null,null,null,null,null,null,null,null,null,null,null,null,null,null,null,null,null,null,null,null,null,null,null,null,null,null,null,null,"Roséwein","Dt. Landwein","Spätlese","Regal 2",{"$f":"Lieferant!A6","v":"Forster Winzerverein"},"0,25 l","Ahrtaler Landwein"]
[5,null,null,0,null,0,"bestellen!",null,0,0,0,0,0,null,null,null,null,null,null,null,null,null,null,null,null,null,null,null,null,null,null,null,null,null,null,null,null,null,null,null,null,null,null,null,null,null,null,null,null,null,null,null,null,"Weißwein","Q.b.A.","Auslese","Regal 3",{"$f":"Lieferant!A7","v":"Gebiets-Winzergen. Franken eG"},"0,375 l","Badischer Landwein"]
[6,null,null,0,null,0,"bestellen!",null,0,0,0,0,0,null,null,null,null,null,null,null,null,null,null,null,null,null,null,null,null,null,null,null,null,null,null,null,null,null,null,null,null,null,null,null,null,null,null,null,null,null,null,null,null,"Weißherbst","Prädikatswein","Beerenauslese","Regal 4",{"$f":"Lieferant!A8","v":"Weingut Johannes Kleinmann"},"0,5 l","Bayrischer Bodensee Landwein"]
[7,null,null,0,null,0,"bestellen!",null,0,0,0,0,0,null,null,null,null,null,null,null,null,null,null,null,null,null,null,null,null,null,null,null,null,null,null,null,null,null,null,null,null,null,null,null,null,null,null,null,null,null,null,null,null,"Rotling",null,"Trockenbeerenauslese","Rotweinlager 1",{"$f":"Lieferant!A9","v":0},"0,75 l","Brandenburger Landwein"]
[8,null,null,0,null,0,"bestellen!",null,0,0,0,0,0,null,null,null,null,null,null,null,null,null,null,null,null,null,null,null,null,null,null,null,null,null,null,null,null,null,null,null,null,null,null,null,null,null,null,null,null,null,null,null,null,"Schillerwein",null,"Eiswein","Rotweinlager 2",{"$f":"Lieferant!A10","v":0},"1,0 l","Landwein Main"]
[9,null,null,0,null,0,"bestellen!",null,0,0,0,0,0,null,null,null,null,null,null,null,null,null,null,null,null,null,null,null,null,null,null,null,null,null,null,null,null,null,null,null,null,null,null,null,null,null,null,null,null,null,null,null,null,"Badisch Rotgold",null,"Classic","Schaumweinlager",{"$f":"Lieferant!A11","v":0},"1,5 l","Landwein der Mosel"]
[10,null,null,0,null,0,"bestellen!",null,0,0,0,0,0,null,null,null,null,null,null,null,null,null,null,null,null,null,null,null,null,null,null,null,null,null,null,null,null,null,null,null,null,null,null,null,null,null,null,null,null,null,null,null,null,"Perlwein",null,"Selection",null,{"$f":"Lieferant!A12","v":0},"2,0 l","Landwein Neckar"]
[11,null,null,0,null,0,"bestellen!",null,0,0,0,0,0,null,null,null,null,null,null,null,null,null,null,null,null,null,null,null,null,null,null,null,null,null,null,null,null,null,null,null,null,null,null,null,null,null,null,null,null,null,null,null,null,"Diabetikerwein",null,null,null,{"$f":"Lieferant!A13","v":0},"3,0 l","Landwein Oberrhein"]
[12,null,null,0,null,0,"bestellen!",null,0,0,0,0,0,null,null,null,null,null,null,null,null,null,null,null,null,null,null,null,null,null,null,null,null,null,null,null,null,null,null,null,null,null,null,null,null,null,null,null,null,null,null,null,null,"Entalkoholisierter Wein",null,null,null,{"$f":"Lieferant!A14","v":0},"5,0 l","Landwein Rhein"]
[13,null,null,0,null,0,"bestellen!",null,0,0,0,0,0,null,null,null,null,null,null,null,null,null,null,null,null,null,null,null,null,null,null,null,null,null,null,null,null,null,null,null,null,null,null,null,null,null,null,null,null,null,null,null,null,"Cuvée",null,null,null,{"$f":"Lieferant!A15","v":0},"10,0 l","Landwein Rhein-Neckar"]
[14,null,null,0,null,0,"bestellen!",null,0,0,0,0,0,null,null,null,null,null,null,null,null,null,null,null,null,null,null,null,null,null,null,null,null,null,null,null,null,null,null,null,null,null,null,null,null,null,null,null,null,null,null,null,null,"Schaumwein",null,null,null,{"$f":"Lieferant!A22","v":0},null,"Landwein der Ruwer"]
[15,null,null,0,null,0,"bestellen!",null,0,0,0,0,0,null,null,null,null,null,null,null,null,null,null,null,null,null,null,null,null,null,null,null,null,null,null,null,null,null,null,null,null,null,null,null,null,null,null,null,null,null,null,null,null,null,null,null,null,{"$f":"Lieferant!A23","v":0},null,"Landwein der Saar"]
[16,null,null,0,null,0,"bestellen!",null,0,0,0,0,0,null,null,null,null,null,null,null,null,null,null,null,null,null,null,null,null,null,null,null,null,null,null,null,null,null,null,null,null,null,null,null,null,null,null,null,null,null,null,null,null,null,null,null,null,{"$f":"Lieferant!A24","v":0},null,"Mecklenburger Landwein"]
[17,null,null,0,null,0,"bestellen!",null,0,0,0,0,0,null,null,null,null,null,null,null,null,null,null,null,null,null,null,null,null,null,null,null,null,null,null,null,null,null,null,null,null,null,null,null,null,null,null,null,null,null,null,null,null,null,null,null,null,{"$f":"Lieferant!A25","v":0},null,"Mitteldeutscher Landwein"]
[18,null,null,0,null,0,"bestellen!",null,0,0,0,0,0,null,null,null,null,null,null,null,null,null,null,null,null,null,null,null,null,null,null,null,null,null,null,null,null,null,null,null,null,null,null,null,null,null,null,null,null,null,null,null,null,null,null,null,null,{"$f":"Lieferant!A26","v":0},null,"Nahegauer Landwein"]
[19,null,null,0,null,0,"bestellen!",null,0,0,0,0,0,null,null,null,null,null,null,null,null,null,null,null,null,null,null,null,null,null,null,null,null,null,null,null,null,null,null,null,null,null,null,null,null,null,null,null,null,null,null,null,null,null,null,null,null,{"$f":"Lieferant!A27","v":0},null,"Pfälzer Landwein"]
[20,null,null,0,null,0,"bestellen!",null,0,0,0,0,0,null,null,null,null,null,null,null,null,null,null,null,null,null,null,null,null,null,null,null,null,null,null,null,null,null,null,null,null,null,null,null,null,null,null,null,null,null,null,null,null,null,null,null,null,{"$f":"Lieferant!A28","v":0},null,"Regensburger Landwein"]
[21,null,null,0,null,0,"bestellen!",null,0,0,0,0,0,null,null,null,null,null,null,null,null,null,null,null,null,null,null,null,null,null,null,null,null,null,null,null,null,null,null,null,null,null,null,null,null,null,null,null,null,null,null,null,null,null,null,null,null,{"$f":"Lieferant!A29","v":0},null,"Rheinburgen Landwein"]
[22,null,null,0,null,0,"bestellen!",null,0,0,0,0,0,null,null,null,null,null,null,null,null,null,null,null,null,null,null,null,null,null,null,null,null,null,null,null,null,null,null,null,null,null,null,null,null,null,null,null,null,null,null,null,null,null,null,null,null,null,null,"Rheingauer Landwein"]
[23,null,null,0,null,0,"bestellen!",null,0,0,0,0,0,null,null,null,null,null,null,null,null,null,null,null,null,null,null,null,null,null,null,null,null,null,null,null,null,null,null,null,null,null,null,null,null,null,null,null,null,null,null,null,null,null,null,null,null,null,null,"Rheinischer Landwein"]
[24,null,null,0,null,0,"bestellen!",null,0,0,0,0,0,null,null,null,null,null,null,null,null,null,null,null,null,null,null,null,null,null,null,null,null,null,null,null,null,null,null,null,null,null,null,null,null,null,null,null,null,null,null,null,null,null,null,null,null,null,null,"Saarländischer Landwein"]
[25,null,null,0,null,0,"bestellen!",null,0,0,0,0,0,null,null,null,null,null,null,null,null,null,null,null,null,null,null,null,null,null,null,null,null,null,null,null,null,null,null,null,null,null,null,null,null,null,null,null,null,null,null,null,null,null,null,null,null,null,null,"Sächsischer Landwein"]
[26,null,null,0,null,0,"bestellen!",null,0,0,0,0,0,null,null,null,null,null,null,null,null,null,null,null,null,null,null,null,null,null,null,null,null,null,null,null,null,null,null,null,null,null,null,null,null,null,null,null,null,null,null,null,null,null,null,null,null,null,null,"Schleswig-Holsteiner Landwein"]
[27,null,null,0,null,0,"bestellen!",null,0,0,0,0,0,null,null,null,null,null,null,null,null,null,null,null,null,null,null,null,null,null,null,null,null,null,null,null,null,null,null,null,null,null,null,null,null,null,null,null,null,null,null,null,null,null,null,null,null,null,null,"Schwäbischer Landwein"]
[28,null,null,0,null,0,"bestellen!",null,0,0,0,0,0,null,null,null,null,null,null,null,null,null,null,null,null,null,null,null,null,null,null,null,null,null,null,null,null,null,null,null,null,null,null,null,null,null,null,null,null,null,null,null,null,null,null,null,null,null,null,"Starkenburger Landwein"]
[29,null,null,0,null,0,"bestellen!",null,0,0,0,0,0,null,null,null,null,null,null,null,null,null,null,null,null,null,null,null,null,null,null,null,null,null,null,null,null,null,null,null,null,null,null,null,null,null,null,null,null,null,null,null,null,null,null,null,null,null,null,"Taubertäler Landwein"]
[30,null,null,0,null,0,"bestellen!",null,0,0,0,0,0]
[31,null,null,0,null,0,"bestellen!",null,0,0,0,0,0]
[32,null,null,0,null,0,"bestellen!",null,0,0,0,0,0]
[33,null,null,0,null,0,"bestellen!",null,0,0,0,0,0]
[34,null,null,0,null,0,"bestellen!",null,0,0,0,0,0]
[35,null,null,0,null,0,"bestellen!",null,0,0,0,0,0]
[36,null,null,0,null,0,"bestellen!",null,0,0,0,0,0]
[37,null,null,0,null,0,"bestellen!",null,0,0,0,0,0]
[38,null,null,0,null,0,"bestellen!",null,0,0,0,0,0]
[39,null,null,0,null,0,"bestellen!",null,0,0,0,0,0]
[40,null,null,0,null,0,"bestellen!",null,0,0,0,0,0]
[41,null,null,0,null,0,"bestellen!",null,0,0,0,0,0]
[42,null,null,0,null,0,"bestellen!",null,0,0,0,0,0]
[43,null,null,0,null,0,"bestellen!",null,0,0,0,0,0]
[44,null,null,0,null,0,"bestellen!",null,0,0,0,0,0]
[45,null,null,0,null,0,"bestellen!",null,0,0,0,0,0]
[46,null,null,0,null,0,"bestellen!",null,0,0,0,0,0]
[47,null,null,0,null,0,"bestellen!",null,0,0,0,0,0]
[48,null,null,0,null,0,"bestellen!",null,0,0,0,0,0]
[49,null,null,0,null,0,"bestellen!",null,0,0,0,0,0]
[50,null,null,0,null,0,"bestellen!",null,0,0,0,0,0]
[51,null,null,0,null,0,"bestellen!",null,0,0,0,0,0]
[52,null,null,0,null,0,"bestellen!",null,0,0,0,0,0]
[53,null,null,0,null,0,"bestellen!",null,0,0,0,0,0]
[54,null,null,0,null,0,"bestellen!",null,0,0,0,0,0]
[55,null,null,0,null,0,"bestellen!",null,0,0,0,0,0]
[56,null,null,0,null,0,"bestellen!",null,0,0,0,0,0]
[57,null,null,0,null,0,"bestellen!",null,0,0,0,0,0]
[58,null,null,0,null,0,"bestellen!",0,0,0,0,0,0]
[59,null,null,0,null,0,"bestellen!",null,0,0,0,0,0]
[60,null,null,0,null,0,"bestellen!",null,0,0,0,0,0]
[61,null,null,0,null,0,"bestellen!",null,0,0,0,0,0]
[62,null,null,0,null,0,"bestellen!",null,0,0,0,0,0]
[63,null,null,0,null,0,"bestellen!",null,0,0,0,0,0]
[64,null,null,0,null,0,"bestellen!",null,0,0,0,0,0]
[65,null,null,0,null,0,{"$f":"IF(F79<=$I$3,\"bestellen!\",\"---\")","v":"bestellen!"},null,0,0,0,{"$f":"IF(ISERROR(F79*J79),\"\",F79*J79)","v":0},{"$f":"IF(ISERROR(F79*K79),\"\",F79*K79)","v":0}]
[{"$f":"A79+1","v":66},null,null,{"$f":"IF(F79<=0,C80,D79+C80-E79)","v":0},null,{"$f":"IF(F79+C80-E80<0,\"Fehler\",F79+C80-E80)","v":0},"bestellen!",null,{"$f":"H80+H80*19/100","v":0},{"$f":"IF(D79<=0,H80,(F79*J79+C80*H80)/D80)","v":0},{"$f":"J80+J80*19/100","v":0},0,0]
[67,null,null,0,null,0,"bestellen!",null,0,0,0,0,0]
[68,null,null,0,null,0,"bestellen!",null,0,0,0,0,0]
[69,null,null,0,null,0,"bestellen!",null,0,0,0,0,0]
[70,null,null,0,null,0,"bestellen!",null,0,0,0,0,0]
[71,null,null,0,null,0,"bestellen!",null,0,0,0,0,0]
[72,null,null,0,null,0,"bestellen!",null,0,0,0,0,0]
[73,null,null,0,null,0,"bestellen!",null,0,0,0,0,0]
[74,null,null,0,null,0,"bestellen!",null,0,0,0,0,0]
[75,null,null,0,null,0,"bestellen!",null,0,0,0,0,0]
[76,null,null,0,null,0,"bestellen!",null,0,0,0,0,0]
[77,null,null,0,null,0,"bestellen!",null,0,0,0,0,0]
[78,null,null,0,null,0,"bestellen!",null,0,0,0,0,0]
[79,null,null,0,null,0,"bestellen!",null,0,0,0,0,0]
[80,null,null,0,null,0,"bestellen!",null,0,0,0,0,0]
[81,null,null,0,null,0,"bestellen!",null,0,0,0,0,0]
[82,null,null,0,null,0,"bestellen!",null,0,0,0,0,0]
[83,null,null,0,null,0,"bestellen!",null,0,0,0,0,0]
[84,null,null,0,null,0,"bestellen!",null,0,0,0,0,0]
[85,null,null,0,null,0,"bestellen!",null,0,0,0,0,0]
[86,null,null,0,null,0,"bestellen!",null,0,0,0,0,0]
[87,null,null,0,null,0,"bestellen!",null,0,0,0,0,0]
[88,null,null,0,null,0,"bestellen!",null,0,0,0,0,0]
[89,null,null,0,null,0,"bestellen!",null,0,0,0,0,0]
[90,null,null,0,null,0,"bestellen!",null,0,0,0,0,0]

{"sheet":"Karte 8","index":18,"n_rows":104,"n_cols":60,"rows_kept":104,"cut":false,"hidden":false,"merged":[[11,2,11,5],[12,2,12,5],[4,2,4,5],[4,8,4,9],[6,2,6,5],[7,2,7,5],[8,2,8,5],[8,7,10,7],[8,8,10,9],[9,2,9,5],[10,2,10,5],[3,2,3,5],[0,0,0,1],[0,4,0,5],[1,2,1,5],[1,8,1,9],[2,2,2,5]]}
["akt.Weinkarte",null,{"$f":"NOW()","v":"2015-04-13T15:03:50.080"},null,"WEINLAGER"]
["Land",null,"Deutschland",null,null,null,null,"Lieferant"]
["Region",null,null,null,null,null,null,"Bestellbestand"]
["Gemeinde",null,null,null,null,null,null,"Höchstbestand",null,{"$f":"IF(ISERROR(F104>I4),\"\",IF(F104>I4,\"Bestand zu hoch!\",))","v":0}]
["Weinbergslage",null,null,null,null,null,null,"Lagerort"]
["Jahrgang",null,null,null,null,null,null,"Inhalt in Liter",null,{"$f":"IF(I5=\"Regal 1\",1,IF(I5=\"Regal 2\",2,IF(I5=\"Regal 3\",3,IF(I5=\"Regal 4\",4,IF(I5=\"Rotweinlager 1\",5,IF(I5=\"Rotweinlager 2\",6,IF(I5=\"Schaumweinlager\",7)))))))","v":false}]
["Rebsorte",null,null,null,null,null,null,"Reife ab",null,{"$f":"IF(I7-30>C1,\"Achtung!\",\"\")","v":""}]
["Herstellungsart",null,null,null,null,null,null,"Verbrauch bis",null,{"$f":"IF(I8-31<=C1,\"Achtung!\",\"\")","v":"Achtung!"}]
["dt. Güteklassen",null,null,null,{"$f":"IF(C9=1,\" Tafelwein\",IF(C9=2,\"Landwein\",IF(C9=3,\"Qualitätswein\",IF(C9=4,\"Qualitätswein m.Präd.\",\"\"))))","v":""},null,null,"Bemerkungen"]
["Dt. Landwein"]
["dt. Prädikatsstufe"]
["sonst. Klassifikation",null,null,null,null,null,null,"Art.-Nr. Lieferant"]
["Geschmack",null,null,null,null,null,null,"Artikel-Nr.",{"$f":"50+J6","v":50}]
["lf. Nr.","Datum","Zugang / Anf.best","S Zugang","Abgang","Bestand","Meldung","EKP/Stück [€]\nohne MWSt.","EKP/Stück [€]\ninkl. MWSt.","Æ EKP/Stück [€]\nohne MWSt.","Æ EKP/Stück [€]\ninkl. MWSt.","Lagerwert [€] zu EKP ohne MWSt.","Lagerwert [€] zu EKP inkl. MWSt.","Entnahme durch Abteilung","Kürzel Lagerist","Bemerkungen"]
[1,null,null,{"$f":"C15","v":0},null,{"$f":"C15","v":0},{"$f":"IF(F15<=$I$3,\"bestellen!\",\"---\")","v":"bestellen!"},null,{"$f":"H15+H15*19/100","v":0},{"$f":"H15","v":0},{"$f":"J15+J15*19/100","v":0},{"$f":"IF(ISERROR(F15*J15),\"\",F15*J15)","v":0},{"$f":"IF(ISERROR(F15*K15),\"\",F15*K15)","v":0}]
[{"$f":"A15+1","v":2},null,null,{"$f":"IF(F15<=0,C16,D15+C16-E15)","v":0},null,{"$f":"IF(F15+C16-E16<0,\"Fehler\",F15+C16-E16)","v":0},"bestellen!",null,{"$f":"H16+H16*19/100","v":0},{"$f":"IF(D15<=0,H16,(F15*J15+C16*H16)/D16)","v":0},{"$f":"J16+J16*19/100","v":0},0,0]
[3,null,null,0,null,0,"bestellen!",null,0,0,0,0,0,null,null,null,null,null,null,null,null,null,null,null,null,null,null,null,null,null,null,null,null,null,null,null,null,null,null,null,null,null,null,null,null,null,null,null,null,null,null,null,null,"Rotwein","Dt. Wein ohne Herkunftsbez.","Kabinett","Regal 1",{"$f":"Lieferant!A5","v":"Domaine du Croc du Merle"},"0,1 l"]
[4,null,null,0,null,0,"bestellen!",null,0,0,0,0,0,null,null,null,null,null,null,null,null,null,null,null,null,null,null,null,null,null,null,null,null,null,null,null,null,null,null,null,null,null,null,null,null,null,null,null,null,null,null,null,null,"Roséwein","Dt. Landwein","Spätlese","Regal 2",{"$f":"Lieferant!A6","v":"Forster Winzerverein"},"0,25 l","Ahrtaler Landwein"]
[5,null,null,0,null,0,"bestellen!",null,0,0,0,0,0,null,null,null,null,null,null,null,null,null,null,null,null,null,null,null,null,null,null,null,null,null,null,null,null,null,null,null,null,null,null,null,null,null,null,null,null,null,null,null,null,"Weißwein","Q.b.A.","Auslese","Regal 3",{"$f":"Lieferant!A7","v":"Gebiets-Winzergen. Franken eG"},"0,375 l","Badischer Landwein"]
[6,null,null,0,null,0,"bestellen!",null,0,0,0,0,0,null,null,null,null,null,null,null,null,null,null,null,null,null,null,null,null,null,null,null,null,null,null,null,null,null,null,null,null,null,null,null,null,null,null,null,null,null,null,null,null,"Weißherbst","Prädikatswein","Beerenauslese","Regal 4",{"$f":"Lieferant!A8","v":"Weingut Johannes Kleinmann"},"0,5 l","Bayrischer Bodensee Landwein"]
[7,null,null,0,null,0,"bestellen!",null,0,0,0,0,0,null,null,null,null,null,null,null,null,null,null,null,null,null,null,null,null,null,null,null,null,null,null,null,null,null,null,null,null,null,null,null,null,null,null,null,null,null,null,null,null,"Rotling",null,"Trockenbeerenauslese","Rotweinlager 1",{"$f":"Lieferant!A9","v":0},"0,75 l","Brandenburger Landwein"]
[8,null,null,0,null,0,"bestellen!",null,0,0,0,0,0,null,null,null,null,null,null,null,null,null,null,null,null,null,null,null,null,null,null,null,null,null,null,null,null,null,null,null,null,null,null,null,null,null,null,null,null,null,null,null,null,"Schillerwein",null,"Eiswein","Rotweinlager 2",{"$f":"Lieferant!A10","v":0},"1,0 l","Landwein Main"]
[9,null,null,0,null,0,"bestellen!",null,0,0,0,0,0,null,null,null,null,null,null,null,null,null,null,null,null,null,null,null,null,null,null,null,null,null,null,null,null,null,null,null,null,null,null,null,null,null,null,null,null,null,null,null,null,"Badisch Rotgold",null,"Classic","Schaumweinlager",{"$f":"Lieferant!A11","v":0},"1,5 l","Landwein der Mosel"]
[10,null,null,0,null,0,"bestellen!",null,0,0,0,0,0,null,null,null,null,null,null,null,null,null,null,null,null,null,null,null,null,null,null,null,null,null,null,null,null,null,null,null,null,null,null,null,null,null,null,null,null,null,null,null,null,"Perlwein",null,"Selection",null,{"$f":"Lieferant!A12","v":0},"2,0 l","Landwein Neckar"]
[11,null,null,0,null,0,"bestellen!",null,0,0,0,0,0,null,null,null,null,null,null,null,null,null,null,null,null,null,null,null,null,null,null,null,null,null,null,null,null,null,null,null,null,null,null,null,null,null,null,null,null,null,null,null,null,"Diabetikerwein",null,null,null,{"$f":"Lieferant!A13","v":0},"3,0 l","Landwein Oberrhein"]
[12,null,null,0,null,0,"bestellen!",null,0,0,0,0,0,null,null,null,null,null,null,null,null,null,null,null,null,null,null,null,null,null,null,null,null,null,null,null,null,null,null,null,null,null,null,null,null,null,null,null,null,null,null,null,null,"Entalkoholisierter Wein",null,null,null,{"$f":"Lieferant!A14","v":0},"5,0 l","Landwein Rhein"]
[13,null,null,0,null,0,"bestellen!",null,0,0,0,0,0,null,null,null,null,null,null,null,null,null,null,null,null,null,null,null,null,null,null,null,null,null,null,null,null,null,null,null,null,null,null,null,null,null,null,null,null,null,null,null,null,"Cuvée",null,null,null,{"$f":"Lieferant!A15","v":0},"10,0 l","Landwein Rhein-Neckar"]
[14,null,null,0,null,0,"bestellen!",null,0,0,0,0,0,null,null,null,null,null,null,null,null,null,null,null,null,null,null,null,null,null,null,null,null,null,null,null,null,null,null,null,null,null,null,null,null,null,null,null,null,null,null,null,null,"Schaumwein",null,null,null,{"$f":"Lieferant!A22","v":0},null,"Landwein der Ruwer"]
[15,null,null,0,null,0,"bestellen!",null,0,0,0,0,0,null,null,null,null,null,null,null,null,null,null,null,null,null,null,null,null,null,null,null,null,null,null,null,null,null,null,null,null,null,null,null,null,null,null,null,null,null,null,null,null,null,null,null,null,{"$f":"Lieferant!A23","v":0},null,"Landwein der Saar"]
[16,null,null,0,null,0,"bestellen!",null,0,0,0,0,0,null,null,null,null,null,null,null,null,null,null,null,null,null,null,null,null,null,null,null,null,null,null,null,null,null,null,null,null,null,null,null,null,null,null,null,null,null,null,null,null,null,null,null,null,{"$f":"Lieferant!A24","v":0},null,"Mecklenburger Landwein"]
[17,null,null,0,null,0,"bestellen!",null,0,0,0,0,0,null,null,null,null,null,null,null,null,null,null,null,null,null,null,null,null,null,null,null,null,null,null,null,null,null,null,null,null,null,null,null,null,null,null,null,null,null,null,null,null,null,null,null,null,{"$f":"Lieferant!A25","v":0},null,"Mitteldeutscher Landwein"]
[18,null,null,0,null,0,"bestellen!",null,0,0,0,0,0,null,null,null,null,null,null,null,null,null,null,null,null,null,null,null,null,null,null,null,null,null,null,null,null,null,null,null,null,null,null,null,null,null,null,null,null,null,null,null,null,null,null,null,null,{"$f":"Lieferant!A26","v":0},null,"Nahegauer Landwein"]
[19,null,null,0,null,0,"bestellen!",null,0,0,0,0,0,null,null,null,null,null,null,null,null,null,null,null,null,null,null,null,null,null,null,null,null,null,null,null,null,null,null,null,null,null,null,null,null,null,null,null,null,null,null,null,null,null,null,null,null,{"$f":"Lieferant!A27","v":0},null,"Pfälzer Landwein"]
[20,null,null,0,null,0,"bestellen!",null,0,0,0,0,0,null,null,null,null,null,null,null,null,null,null,null,null,null,null,null,null,null,null,null,null,null,null,null,null,null,null,null,null,null,null,null,null,null,null,null,null,null,null,null,null,null,null,null,null,{"$f":"Lieferant!A28","v":0},null,"Regensburger Landwein"]
[21,null,null,0,null,0,"bestellen!",null,0,0,0,0,0,null,null,null,null,null,null,null,null,null,null,null,null,null,null,null,null,null,null,null,null,null,null,null,null,null,null,null,null,null,null,null,null,null,null,null,null,null,null,null,null,null,null,null,null,{"$f":"Lieferant!A29","v":0},null,"Rheinburgen Landwein"]
[22,null,null,0,null,0,"bestellen!",null,0,0,0,0,0,null,null,null,null,null,null,null,null,null,null,null,null,null,null,null,null,null,null,null,null,null,null,null,null,null,null,null,null,null,null,null,null,null,null,null,null,null,null,null,null,null,null,null,null,null,null,"Rheingauer Landwein"]
[23,null,null,0,null,0,"bestellen!",null,0,0,0,0,0,null,null,null,null,null,null,null,null,null,null,null,null,null,null,null,null,null,null,null,null,null,null,null,null,null,null,null,null,null,null,null,null,null,null,null,null,null,null,null,null,null,null,null,null,null,null,"Rheinischer Landwein"]
[24,null,null,0,null,0,"bestellen!",null,0,0,0,0,0,null,null,null,null,null,null,null,null,null,null,null,null,null,null,null,null,null,null,null,null,null,null,null,null,null,null,null,null,null,null,null,null,null,null,null,null,null,null,null,null,null,null,null,null,null,null,"Saarländischer Landwein"]
[25,null,null,0,null,0,"bestellen!",null,0,0,0,0,0,null,null,null,null,null,null,null,null,null,null,null,null,null,null,null,null,null,null,null,null,null,null,null,null,null,null,null,null,null,null,null,null,null,null,null,null,null,null,null,null,null,null,null,null,null,null,"Sächsischer Landwein"]
[26,null,null,0,null,0,"bestellen!",null,0,0,0,0,0,null,null,null,null,null,null,null,null,null,null,null,null,null,null,null,null,null,null,null,null,null,null,null,null,null,null,null,null,null,null,null,null,null,null,null,null,null,null,null,null,null,null,null,null,null,null,"Schleswig-Holsteiner Landwein"]
[27,null,null,0,null,0,"bestellen!",null,0,0,0,0,0,null,null,null,null,null,null,null,null,null,null,null,null,null,null,null,null,null,null,null,null,null,null,null,null,null,null,null,null,null,null,null,null,null,null,null,null,null,null,null,null,null,null,null,null,null,null,"Schwäbischer Landwein"]
[28,null,null,0,null,0,"bestellen!",null,0,0,0,0,0,null,null,null,null,null,null,null,null,null,null,null,null,null,null,null,null,null,null,null,null,null,null,null,null,null,null,null,null,null,null,null,null,null,null,null,null,null,null,null,null,null,null,null,null,null,null,"Starkenburger Landwein"]
[29,null,null,0,null,0,"bestellen!",null,0,0,0,0,0,null,null,null,null,null,null,null,null,null,null,null,null,null,null,null,null,null,null,null,null,null,null,null,null,null,null,null,null,null,null,null,null,null,null,null,null,null,null,null,null,null,null,null,null,null,null,"Taubertäler Landwein"]
[30,null,null,0,null,0,"bestellen!",null,0,0,0,0,0]
[31,null,null,0,null,0,"bestellen!",null,0,0,0,0,0]
[32,null,null,0,null,0,"bestellen!",null,0,0,0,0,0]
[33,null,null,0,null,0,"bestellen!",null,0,0,0,0,0]
[34,null,null,0,null,0,"bestellen!",null,0,0,0,0,0]
[35,null,null,0,null,0,"bestellen!",null,0,0,0,0,0]
[36,null,null,0,null,0,"bestellen!",null,0,0,0,0,0]
[37,null,null,0,null,0,"bestellen!",null,0,0,0,0,0]
[38,null,null,0,null,0,"bestellen!",null,0,0,0,0,0]
[39,null,null,0,null,0,"bestellen!",null,0,0,0,0,0]
[40,null,null,0,null,0,"bestellen!",null,0,0,0,0,0]
[41,null,null,0,null,0,"bestellen!",null,0,0,0,0,0]
[42,null,null,0,null,0,"bestellen!",null,0,0,0,0,0]
[43,null,null,0,null,0,"bestellen!",null,0,0,0,0,0]
[44,null,null,0,null,0,"bestellen!",null,0,0,0,0,0]
[45,null,null,0,null,0,"bestellen!",null,0,0,0,0,0]
[46,null,null,0,null,0,"bestellen!",null,0,0,0,0,0]
[47,null,null,0,null,0,"bestellen!",null,0,0,0,0,0]
[48,null,null,0,null,0,"bestellen!",null,0,0,0,0,0]
[49,null,null,0,null,0,"bestellen!",null,0,0,0,0,0]
[50,null,null,0,null,0,"bestellen!",null,0,0,0,0,0]
[51,null,null,0,null,0,"bestellen!",null,0,0,0,0,0]
[52,null,null,0,null,0,"bestellen!",null,0,0,0,0,0]
[53,null,null,0,null,0,"bestellen!",null,0,0,0,0,0]
[54,null,null,0,null,0,"bestellen!",null,0,0,0,0,0]
[55,null,null,0,null,0,"bestellen!",null,0,0,0,0,0]
[56,null,null,0,null,0,"bestellen!",null,0,0,0,0,0]
[57,null,null,0,null,0,"bestellen!",null,0,0,0,0,0]
[58,null,null,0,null,0,"bestellen!",0,0,0,0,0,0]
[59,null,null,0,null,0,"bestellen!",null,0,0,0,0,0]
[60,null,null,0,null,0,"bestellen!",null,0,0,0,0,0]
[61,null,null,0,null,0,"bestellen!",null,0,0,0,0,0]
[62,null,null,0,null,0,"bestellen!",null,0,0,0,0,0]
[63,null,null,0,null,0,"bestellen!",null,0,0,0,0,0]
[64,null,null,0,null,0,"bestellen!",null,0,0,0,0,0]
[65,null,null,0,null,0,{"$f":"IF(F79<=$I$3,\"bestellen!\",\"---\")","v":"bestellen!"},null,0,0,0,{"$f":"IF(ISERROR(F79*J79),\"\",F79*J79)","v":0},{"$f":"IF(ISERROR(F79*K79),\"\",F79*K79)","v":0}]
[{"$f":"A79+1","v":66},null,null,{"$f":"IF(F79<=0,C80,D79+C80-E79)","v":0},null,{"$f":"IF(F79+C80-E80<0,\"Fehler\",F79+C80-E80)","v":0},"bestellen!",null,{"$f":"H80+H80*19/100","v":0},{"$f":"IF(D79<=0,H80,(F79*J79+C80*H80)/D80)","v":0},{"$f":"J80+J80*19/100","v":0},0,0]
[67,null,null,0,null,0,"bestellen!",null,0,0,0,0,0]
[68,null,null,0,null,0,"bestellen!",null,0,0,0,0,0]
[69,null,null,0,null,0,"bestellen!",null,0,0,0,0,0]
[70,null,null,0,null,0,"bestellen!",null,0,0,0,0,0]
[71,null,null,0,null,0,"bestellen!",null,0,0,0,0,0]
[72,null,null,0,null,0,"bestellen!",null,0,0,0,0,0]
[73,null,null,0,null,0,"bestellen!",null,0,0,0,0,0]
[74,null,null,0,null,0,"bestellen!",null,0,0,0,0,0]
[75,null,null,0,null,0,"bestellen!",null,0,0,0,0,0]
[76,null,null,0,null,0,"bestellen!",null,0,0,0,0,0]
[77,null,null,0,null,0,"bestellen!",null,0,0,0,0,0]
[78,null,null,0,null,0,"bestellen!",null,0,0,0,0,0]
[79,null,null,0,null,0,"bestellen!",null,0,0,0,0,0]
[80,null,null,0,null,0,"bestellen!",null,0,0,0,0,0]
[81,null,null,0,null,0,"bestellen!",null,0,0,0,0,0]
[82,null,null,0,null,0,"bestellen!",null,0,0,0,0,0]
[83,null,null,0,null,0,"bestellen!",null,0,0,0,0,0]
[84,null,null,0,null,0,"bestellen!",null,0,0,0,0,0]
[85,null,null,0,null,0,"bestellen!",null,0,0,0,0,0]
[86,null,null,0,null,0,"bestellen!",null,0,0,0,0,0]
[87,null,null,0,null,0,"bestellen!",null,0,0,0,0,0]
[88,null,null,0,null,0,"bestellen!",null,0,0,0,0,0]
[89,null,null,0,null,0,"bestellen!",null,0,0,0,0,0]
[90,null,null,0,null,0,"bestellen!",null,0,0,0,0,0]

{"sheet":"Karte 9","index":19,"n_rows":104,"n_cols":60,"rows_kept":104,"cut":false,"hidden":false,"merged":[[11,2,11,5],[12,2,12,5],[4,2,4,5],[4,8,4,9],[6,2,6,5],[7,2,7,5],[8,2,8,5],[8,7,10,7],[8,8,10,9],[9,2,9,5],[10,2,10,5],[3,2,3,5],[0,0,0,1],[0,4,0,5],[1,2,1,5],[1,8,1,9],[2,2,2,5]]}
["akt.Weinkarte",null,{"$f":"NOW()","v":"2015-04-13T15:03:50.080"},null,"WEINLAGER"]
["Land",null,"Deutschland",null,null,null,null,"Lieferant"]
["Region",null,null,null,null,null,null,"Bestellbestand"]
["Gemeinde",null,null,null,null,null,null,"Höchstbestand",null,{"$f":"IF(ISERROR(F104>I4),\"\",IF(F104>I4,\"Bestand zu hoch!\",))","v":0}]
["Weinbergslage",null,null,null,null,null,null,"Lagerort"]
["Jahrgang",null,null,null,null,null,null,"Inhalt in Liter",null,{"$f":"IF(I5=\"Regal 1\",1,IF(I5=\"Regal 2\",2,IF(I5=\"Regal 3\",3,IF(I5=\"Regal 4\",4,IF(I5=\"Rotweinlager 1\",5,IF(I5=\"Rotweinlager 2\",6,IF(I5=\"Schaumweinlager\",7)))))))","v":false}]
["Rebsorte",null,null,null,null,null,null,"Reife ab",null,{"$f":"IF(I7-30>C1,\"Achtung!\",\"\")","v":""}]
["Herstellungsart",null,null,null,null,null,null,"Verbrauch bis",null,{"$f":"IF(I8-31<=C1,\"Achtung!\",\"\")","v":"Achtung!"}]
["dt. Güteklassen",null,null,null,{"$f":"IF(C9=1,\" Tafelwein\",IF(C9=2,\"Landwein\",IF(C9=3,\"Qualitätswein\",IF(C9=4,\"Qualitätswein m.Präd.\",\"\"))))","v":""},null,null,"Bemerkungen"]
["Dt. Landwein"]
["dt. Prädikatsstufe"]
["sonst. Klassifikation",null,null,null,null,null,null,"Art.-Nr. Lieferant"]
["Geschmack",null,null,null,null,null,null,"Artikel-Nr.",{"$f":"50+J6","v":50}]
["lf. Nr.","Datum","Zugang / Anf.best","S Zugang","Abgang","Bestand","Meldung","EKP/Stück [€]\nohne MWSt.","EKP/Stück [€]\ninkl. MWSt.","Æ EKP/Stück [€]\nohne MWSt.","Æ EKP/Stück [€]\ninkl. MWSt.","Lagerwert [€] zu EKP ohne MWSt.","Lagerwert [€] zu EKP inkl. MWSt.","Entnahme durch Abteilung","Kürzel Lagerist","Bemerkungen"]
[1,null,null,{"$f":"C15","v":0},null,{"$f":"C15","v":0},{"$f":"IF(F15<=$I$3,\"bestellen!\",\"---\")","v":"bestellen!"},null,{"$f":"H15+H15*19/100","v":0},{"$f":"H15","v":0},{"$f":"J15+J15*19/100","v":0},{"$f":"IF(ISERROR(F15*J15),\"\",F15*J15)","v":0},{"$f":"IF(ISERROR(F15*K15),\"\",F15*K15)","v":0}]
[{"$f":"A15+1","v":2},null,null,{"$f":"IF(F15<=0,C16,D15+C16-E15)","v":0},null,{"$f":"IF(F15+C16-E16<0,\"Fehler\",F15+C16-E16)","v":0},"bestellen!",null,{"$f":"H16+H16*19/100","v":0},{"$f":"IF(D15<=0,H16,(F15*J15+C16*H16)/D16)","v":0},{"$f":"J16+J16*19/100","v":0},0,0]
[3,null,null,0,null,0,"bestellen!",null,0,0,0,0,0,null,null,null,null,null,null,null,null,null,null,null,null,null,null,null,null,null,null,null,null,null,null,null,null,null,null,null,null,null,null,null,null,null,null,null,null,null,null,null,null,"Rotwein","Dt. Wein ohne Herkunftsbez.","Kabinett","Regal 1",{"$f":"Lieferant!A5","v":"Domaine du Croc du Merle"},"0,1 l"]
[4,null,null,0,null,0,"bestellen!",null,0,0,0,0,0,null,null,null,null,null,null,null,null,null,null,null,null,null,null,null,null,null,null,null,null,null,null,null,null,null,null,null,null,null,null,null,null,null,null,null,null,null,null,null,null,"Roséwein","Dt. Landwein","Spätlese","Regal 2",{"$f":"Lieferant!A6","v":"Forster Winzerverein"},"0,25 l","Ahrtaler Landwein"]
[5,null,null,0,null,0,"bestellen!",null,0,0,0,0,0,null,null,null,null,null,null,null,null,null,null,null,null,null,null,null,null,null,null,null,null,null,null,null,null,null,null,null,null,null,null,null,null,null,null,null,null,null,null,null,null,"Weißwein","Q.b.A.","Auslese","Regal 3",{"$f":"Lieferant!A7","v":"Gebiets-Winzergen. Franken eG"},"0,375 l","Badischer Landwein"]
[6,null,null,0,null,0,"bestellen!",null,0,0,0,0,0,null,null,null,null,null,null,null,null,null,null,null,null,null,null,null,null,null,null,null,null,null,null,null,null,null,null,null,null,null,null,null,null,null,null,null,null,null,null,null,null,"Weißherbst","Prädikatswein","Beerenauslese","Regal 4",{"$f":"Lieferant!A8","v":"Weingut Johannes Kleinmann"},"0,5 l","Bayrischer Bodensee Landwein"]
[7,null,null,0,null,0,"bestellen!",null,0,0,0,0,0,null,null,null,null,null,null,null,null,null,null,null,null,null,null,null,null,null,null,null,null,null,null,null,null,null,null,null,null,null,null,null,null,null,null,null,null,null,null,null,null,"Rotling",null,"Trockenbeerenauslese","Rotweinlager 1",{"$f":"Lieferant!A9","v":0},"0,75 l","Brandenburger Landwein"]
[8,null,null,0,null,0,"bestellen!",null,0,0,0,0,0,null,null,null,null,null,null,null,null,null,null,null,null,null,null,null,null,null,null,null,null,null,null,null,null,null,null,null,null,null,null,null,null,null,null,null,null,null,null,null,null,"Schillerwein",null,"Eiswein","Rotweinlager 2",{"$f":"Lieferant!A10","v":0},"1,0 l","Landwein Main"]
[9,null,null,0,null,0,"bestellen!",null,0,0,0,0,0,null,null,null,null,null,null,null,null,null,null,null,null,null,null,null,null,null,null,null,null,null,null,null,null,null,null,null,null,null,null,null,null,null,null,null,null,null,null,null,null,"Badisch Rotgold",null,"Classic","Schaumweinlager",{"$f":"Lieferant!A11","v":0},"1,5 l","Landwein der Mosel"]
[10,null,null,0,null,0,"bestellen!",null,0,0,0,0,0,null,null,null,null,null,null,null,null,null,null,null,null,null,null,null,null,null,null,null,null,null,null,null,null,null,null,null,null,null,null,null,null,null,null,null,null,null,null,null,null,"Perlwein",null,"Selection",null,{"$f":"Lieferant!A12","v":0},"2,0 l","Landwein Neckar"]
[11,null,null,0,null,0,"bestellen!",null,0,0,0,0,0,null,null,null,null,null,null,null,null,null,null,null,null,null,null,null,null,null,null,null,null,null,null,null,null,null,null,null,null,null,null,null,null,null,null,null,null,null,null,null,null,"Diabetikerwein",null,null,null,{"$f":"Lieferant!A13","v":0},"3,0 l","Landwein Oberrhein"]
[12,null,null,0,null,0,"bestellen!",null,0,0,0,0,0,null,null,null,null,null,null,null,null,null,null,null,null,null,null,null,null,null,null,null,null,null,null,null,null,null,null,null,null,null,null,null,null,null,null,null,null,null,null,null,null,"Entalkoholisierter Wein",null,null,null,{"$f":"Lieferant!A14","v":0},"5,0 l","Landwein Rhein"]
[13,null,null,0,null,0,"bestellen!",null,0,0,0,0,0,null,null,null,null,null,null,null,null,null,null,null,null,null,null,null,null,null,null,null,null,null,null,null,null,null,null,null,null,null,null,null,null,null,null,null,null,null,null,null,null,"Cuvée",null,null,null,{"$f":"Lieferant!A15","v":0},"10,0 l","Landwein Rhein-Neckar"]
[14,null,null,0,null,0,"bestellen!",null,0,0,0,0,0,null,null,null,null,null,null,null,null,null,null,null,null,null,null,null,null,null,null,null,null,null,null,null,null,null,null,null,null,null,null,null,null,null,null,null,null,null,null,null,null,"Schaumwein",null,null,null,{"$f":"Lieferant!A22","v":0},null,"Landwein der Ruwer"]
[15,null,null,0,null,0,"bestellen!",null,0,0,0,0,0,null,null,null,null,null,null,null,null,null,null,null,null,null,null,null,null,null,null,null,null,null,null,null,null,null,null,null,null,null,null,null,null,null,null,null,null,null,null,null,null,null,null,null,null,{"$f":"Lieferant!A23","v":0},null,"Landwein der Saar"]
[16,null,null,0,null,0,"bestellen!",null,0,0,0,0,0,null,null,null,null,null,null,null,null,null,null,null,null,null,null,null,null,null,null,null,null,null,null,null,null,null,null,null,null,null,null,null,null,null,null,null,null,null,null,null,null,null,null,null,null,{"$f":"Lieferant!A24","v":0},null,"Mecklenburger Landwein"]
[17,null,null,0,null,0,"bestellen!",null,0,0,0,0,0,null,null,null,null,null,null,null,null,null,null,null,null,null,null,null,null,null,null,null,null,null,null,null,null,null,null,null,null,null,null,null,null,null,null,null,null,null,null,null,null,null,null,null,null,{"$f":"Lieferant!A25","v":0},null,"Mitteldeutscher Landwein"]
[18,null,null,0,null,0,"bestellen!",null,0,0,0,0,0,null,null,null,null,null,null,null,null,null,null,null,null,null,null,null,null,null,null,null,null,null,null,null,null,null,null,null,null,null,null,null,null,null,null,null,null,null,null,null,null,null,null,null,null,{"$f":"Lieferant!A26","v":0},null,"Nahegauer Landwein"]
[19,null,null,0,null,0,"bestellen!",null,0,0,0,0,0,null,null,null,null,null,null,null,null,null,null,null,null,null,null,null,null,null,null,null,null,null,null,null,null,null,null,null,null,null,null,null,null,null,null,null,null,null,null,null,null,null,null,null,null,{"$f":"Lieferant!A27","v":0},null,"Pfälzer Landwein"]
[20,null,null,0,null,0,"bestellen!",null,0,0,0,0,0,null,null,null,null,null,null,null,null,null,null,null,null,null,null,null,null,null,null,null,null,null,null,null,null,null,null,null,null,null,null,null,null,null,null,null,null,null,null,null,null,null,null,null,null,{"$f":"Lieferant!A28","v":0},null,"Regensburger Landwein"]
[21,null,null,0,null,0,"bestellen!",null,0,0,0,0,0,null,null,null,null,null,null,null,null,null,null,null,null,null,null,null,null,null,null,null,null,null,null,null,null,null,null,null,null,null,null,null,null,null,null,null,null,null,null,null,null,null,null,null,null,{"$f":"Lieferant!A29","v":0},null,"Rheinburgen Landwein"]
[22,null,null,0,null,0,"bestellen!",null,0,0,0,0,0,null,null,null,null,null,null,null,null,null,null,null,null,null,null,null,null,null,null,null,null,null,null,null,null,null,null,null,null,null,null,null,null,null,null,null,null,null,null,null,null,null,null,null,null,null,null,"Rheingauer Landwein"]
[23,null,null,0,null,0,"bestellen!",null,0,0,0,0,0,null,null,null,null,null,null,null,null,null,null,null,null,null,null,null,null,null,null,null,null,null,null,null,null,null,null,null,null,null,null,null,null,null,null,null,null,null,null,null,null,null,null,null,null,null,null,"Rheinischer Landwein"]
[24,null,null,0,null,0,"bestellen!",null,0,0,0,0,0,null,null,null,null,null,null,null,null,null,null,null,null,null,null,null,null,null,null,null,null,null,null,null,null,null,null,null,null,null,null,null,null,null,null,null,null,null,null,null,null,null,null,null,null,null,null,"Saarländischer Landwein"]
[25,null,null,0,null,0,"bestellen!",null,0,0,0,0,0,null,null,null,null,null,null,null,null,null,null,null,null,null,null,null,null,null,null,null,null,null,null,null,null,null,null,null,null,null,null,null,null,null,null,null,null,null,null,null,null,null,null,null,null,null,null,"Sächsischer Landwein"]
[26,null,null,0,null,0,"bestellen!",null,0,0,0,0,0,null,null,null,null,null,null,null,null,null,null,null,null,null,null,null,null,null,null,null,null,null,null,null,null,null,null,null,null,null,null,null,null,null,null,null,null,null,null,null,null,null,null,null,null,null,null,"Schleswig-Holsteiner Landwein"]
[27,null,null,0,null,0,"bestellen!",null,0,0,0,0,0,null,null,null,null,null,null,null,null,null,null,null,null,null,null,null,null,null,null,null,null,null,null,null,null,null,null,null,null,null,null,null,null,null,null,null,null,null,null,null,null,null,null,null,null,null,null,"Schwäbischer Landwein"]
[28,null,null,0,null,0,"bestellen!",null,0,0,0,0,0,null,null,null,null,null,null,null,null,null,null,null,null,null,null,null,null,null,null,null,null,null,null,null,null,null,null,null,null,null,null,null,null,null,null,null,null,null,null,null,null,null,null,null,null,null,null,"Starkenburger Landwein"]
[29,null,null,0,null,0,"bestellen!",null,0,0,0,0,0,null,null,null,null,null,null,null,null,null,null,null,null,null,null,null,null,null,null,null,null,null,null,null,null,null,null,null,null,null,null,null,null,null,null,null,null,null,null,null,null,null,null,null,null,null,null,"Taubertäler Landwein"]
[30,null,null,0,null,0,"bestellen!",null,0,0,0,0,0]
[31,null,null,0,null,0,"bestellen!",null,0,0,0,0,0]
[32,null,null,0,null,0,"bestellen!",null,0,0,0,0,0]
[33,null,null,0,null,0,"bestellen!",null,0,0,0,0,0]
[34,null,null,0,null,0,"bestellen!",null,0,0,0,0,0]
[35,null,null,0,null,0,"bestellen!",null,0,0,0,0,0]
[36,null,null,0,null,0,"bestellen!",null,0,0,0,0,0]
[37,null,null,0,null,0,"bestellen!",null,0,0,0,0,0]
[38,null,null,0,null,0,"bestellen!",null,0,0,0,0,0]
[39,null,null,0,null,0,"bestellen!",null,0,0,0,0,0]
[40,null,null,0,null,0,"bestellen!",null,0,0,0,0,0]
[41,null,null,0,null,0,"bestellen!",null,0,0,0,0,0]
[42,null,null,0,null,0,"bestellen!",null,0,0,0,0,0]
[43,null,null,0,null,0,"bestellen!",null,0,0,0,0,0]
[44,null,null,0,null,0,"bestellen!",null,0,0,0,0,0]
[45,null,null,0,null,0,"bestellen!",null,0,0,0,0,0]
[46,null,null,0,null,0,"bestellen!",null,0,0,0,0,0]
[47,null,null,0,null,0,"bestellen!",null,0,0,0,0,0]
[48,null,null,0,null,0,"bestellen!",null,0,0,0,0,0]
[49,null,null,0,null,0,"bestellen!",null,0,0,0,0,0]
[50,null,null,0,null,0,"bestellen!",null,0,0,0,0,0]
[51,null,null,0,null,0,"bestellen!",null,0,0,0,0,0]
[52,null,null,0,null,0,"bestellen!",null,0,0,0,0,0]
[53,null,null,0,null,0,"bestellen!",null,0,0,0,0,0]
[54,null,null,0,null,0,"bestellen!",null,0,0,0,0,0]
[55,null,null,0,null,0,"bestellen!",null,0,0,0,0,0]
[56,null,null,0,null,0,"bestellen!",null,0,0,0,0,0]
[57,null,null,0,null,0,"bestellen!",null,0,0,0,0,0]
[58,null,null,0,null,0,"bestellen!",0,0,0,0,0,0]
[59,null,null,0,null,0,"bestellen!",null,0,0,0,0,0]
[60,null,null,0,null,0,"bestellen!",null,0,0,0,0,0]
[61,null,null,0,null,0,"bestellen!",null,0,0,0,0,0]
[62,null,null,0,null,0,"bestellen!",null,0,0,0,0,0]
[63,null,null,0,null,0,"bestellen!",null,0,0,0,0,0]
[64,null,null,0,null,0,"bestellen!",null,0,0,0,0,0]
[65,null,null,0,null,0,{"$f":"IF(F79<=$I$3,\"bestellen!\",\"---\")","v":"bestellen!"},null,0,0,0,{"$f":"IF(ISERROR(F79*J79),\"\",F79*J79)","v":0},{"$f":"IF(ISERROR(F79*K79),\"\",F79*K79)","v":0}]
[{"$f":"A79+1","v":66},null,null,{"$f":"IF(F79<=0,C80,D79+C80-E79)","v":0},null,{"$f":"IF(F79+C80-E80<0,\"Fehler\",F79+C80-E80)","v":0},"bestellen!",null,{"$f":"H80+H80*19/100","v":0},{"$f":"IF(D79<=0,H80,(F79*J79+C80*H80)/D80)","v":0},{"$f":"J80+J80*19/100","v":0},0,0]
[67,null,null,0,null,0,"bestellen!",null,0,0,0,0,0]
[68,null,null,0,null,0,"bestellen!",null,0,0,0,0,0]
[69,null,null,0,null,0,"bestellen!",null,0,0,0,0,0]
[70,null,null,0,null,0,"bestellen!",null,0,0,0,0,0]
[71,null,null,0,null,0,"bestellen!",null,0,0,0,0,0]
[72,null,null,0,null,0,"bestellen!",null,0,0,0,0,0]
[73,null,null,0,null,0,"bestellen!",null,0,0,0,0,0]
[74,null,null,0,null,0,"bestellen!",null,0,0,0,0,0]
[75,null,null,0,null,0,"bestellen!",null,0,0,0,0,0]
[76,null,null,0,null,0,"bestellen!",null,0,0,0,0,0]
[77,null,null,0,null,0,"bestellen!",null,0,0,0,0,0]
[78,null,null,0,null,0,"bestellen!",null,0,0,0,0,0]
[79,null,null,0,null,0,"bestellen!",null,0,0,0,0,0]
[80,null,null,0,null,0,"bestellen!",null,0,0,0,0,0]
[81,null,null,0,null,0,"bestellen!",null,0,0,0,0,0]
[82,null,null,0,null,0,"bestellen!",null,0,0,0,0,0]
[83,null,null,0,null,0,"bestellen!",null,0,0,0,0,0]
[84,null,null,0,null,0,"bestellen!",null,0,0,0,0,0]
[85,null,null,0,null,0,"bestellen!",null,0,0,0,0,0]
[86,null,null,0,null,0,"bestellen!",null,0,0,0,0,0]
[87,null,null,0,null,0,"bestellen!",null,0,0,0,0,0]
[88,null,null,0,null,0,"bestellen!",null,0,0,0,0,0]
[89,null,null,0,null,0,"bestellen!",null,0,0,0,0,0]
[90,null,null,0,null,0,"bestellen!",null,0,0,0,0,0]

{"sheet":"Karte 10","index":20,"n_rows":104,"n_cols":60,"rows_kept":104,"cut":false,"hidden":false,"merged":[[11,2,11,5],[12,2,12,5],[4,2,4,5],[4,8,4,9],[6,2,6,5],[7,2,7,5],[8,2,8,5],[8,7,10,7],[8,8,10,9],[9,2,9,5],[10,2,10,5],[3,2,3,5],[0,0,0,1],[0,4,0,5],[1,2,1,5],[1,8,1,9],[2,2,2,5]]}
["akt.Weinkarte",null,{"$f":"NOW()","v":"2015-04-13T15:03:50.080"},null,"WEINLAGER"]
["Land",null,"Deutschland",null,null,null,null,"Lieferant"]
["Region",null,null,null,null,null,null,"Bestellbestand"]
["Gemeinde",null,null,null,null,null,null,"Höchstbestand",null,{"$f":"IF(ISERROR(F104>I4),\"\",IF(F104>I4,\"Bestand zu hoch!\",))","v":0}]
["Weinbergslage",null,null,null,null,null,null,"Lagerort"]
["Jahrgang",null,null,null,null,null,null,"Inhalt in Liter",null,{"$f":"IF(I5=\"Regal 1\",1,IF(I5=\"Regal 2\",2,IF(I5=\"Regal 3\",3,IF(I5=\"Regal 4\",4,IF(I5=\"Rotweinlager 1\",5,IF(I5=\"Rotweinlager 2\",6,IF(I5=\"Schaumweinlager\",7)))))))","v":false}]
["Rebsorte",null,null,null,null,null,null,"Reife ab",null,{"$f":"IF(I7-30>C1,\"Achtung!\",\"\")","v":""}]
["Herstellungsart",null,null,null,null,null,null,"Verbrauch bis",null,{"$f":"IF(I8-31<=C1,\"Achtung!\",\"\")","v":"Achtung!"}]
["dt. Güteklassen",null,null,null,{"$f":"IF(C9=1,\" Tafelwein\",IF(C9=2,\"Landwein\",IF(C9=3,\"Qualitätswein\",IF(C9=4,\"Qualitätswein m.Präd.\",\"\"))))","v":""},null,null,"Bemerkungen"]
["Dt. Landwein"]
["dt. Prädikatsstufe"]
["sonst. Klassifikation",null,null,null,null,null,null,"Art.-Nr. Lieferant"]
["Geschmack",null,null,null,null,null,null,"Artikel-Nr.",{"$f":"50+J6","v":50}]
["lf. Nr.","Datum","Zugang / Anf.best","S Zugang","Abgang","Bestand","Meldung","EKP/Stück [€]\nohne MWSt.","EKP/Stück [€]\ninkl. MWSt.","Æ EKP/Stück [€]\nohne MWSt.","Æ EKP/Stück [€]\ninkl. MWSt.","Lagerwert [€] zu EKP ohne MWSt.","Lagerwert [€] zu EKP inkl. MWSt.","Entnahme durch Abteilung","Kürzel Lagerist","Bemerkungen"]
[1,null,null,{"$f":"C15","v":0},null,{"$f":"C15","v":0},{"$f":"IF(F15<=$I$3,\"bestellen!\",\"---\")","v":"bestellen!"},null,{"$f":"H15+H15*19/100","v":0},{"$f":"H15","v":0},{"$f":"J15+J15*19/100","v":0},{"$f":"IF(ISERROR(F15*J15),\"\",F15*J15)","v":0},{"$f":"IF(ISERROR(F15*K15),\"\",F15*K15)","v":0}]
[{"$f":"A15+1","v":2},null,null,{"$f":"IF(F15<=0,C16,D15+C16-E15)","v":0},null,{"$f":"IF(F15+C16-E16<0,\"Fehler\",F15+C16-E16)","v":0},"bestellen!",null,{"$f":"H16+H16*19/100","v":0},{"$f":"IF(D15<=0,H16,(F15*J15+C16*H16)/D16)","v":0},{"$f":"J16+J16*19/100","v":0},0,0]
[3,null,null,0,null,0,"bestellen!",null,0,0,0,0,0,null,null,null,null,null,null,null,null,null,null,null,null,null,null,null,null,null,null,null,null,null,null,null,null,null,null,null,null,null,null,null,null,null,null,null,null,null,null,null,null,"Rotwein","Dt. Wein ohne Herkunftsbez.","Kabinett","Regal 1",{"$f":"Lieferant!A5","v":"Domaine du Croc du Merle"},"0,1 l"]
[4,null,null,0,null,0,"bestellen!",null,0,0,0,0,0,null,null,null,null,null,null,null,null,null,null,null,null,null,null,null,null,null,null,null,null,null,null,null,null,null,null,null,null,null,null,null,null,null,null,null,null,null,null,null,null,"Roséwein","Dt. Landwein","Spätlese","Regal 2",{"$f":"Lieferant!A6","v":"Forster Winzerverein"},"0,25 l","Ahrtaler Landwein"]
[5,null,null,0,null,0,"bestellen!",null,0,0,0,0,0,null,null,null,null,null,null,null,null,null,null,null,null,null,null,null,null,null,null,null,null,null,null,null,null,null,null,null,null,null,null,null,null,null,null,null,null,null,null,null,null,"Weißwein","Q.b.A.","Auslese","Regal 3",{"$f":"Lieferant!A7","v":"Gebiets-Winzergen. Franken eG"},"0,375 l","Badischer Landwein"]
[6,null,null,0,null,0,"bestellen!",null,0,0,0,0,0,null,null,null,null,null,null,null,null,null,null,null,null,null,null,null,null,null,null,null,null,null,null,null,null,null,null,null,null,null,null,null,null,null,null,null,null,null,null,null,null,"Weißherbst","Prädikatswein","Beerenauslese","Regal 4",{"$f":"Lieferant!A8","v":"Weingut Johannes Kleinmann"},"0,5 l","Bayrischer Bodensee Landwein"]
[7,null,null,0,null,0,"bestellen!",null,0,0,0,0,0,null,null,null,null,null,null,null,null,null,null,null,null,null,null,null,null,null,null,null,null,null,null,null,null,null,null,null,null,null,null,null,null,null,null,null,null,null,null,null,null,"Rotling",null,"Trockenbeerenauslese","Rotweinlager 1",{"$f":"Lieferant!A9","v":0},"0,75 l","Brandenburger Landwein"]
[8,null,null,0,null,0,"bestellen!",null,0,0,0,0,0,null,null,null,null,null,null,null,null,null,null,null,null,null,null,null,null,null,null,null,null,null,null,null,null,null,null,null,null,null,null,null,null,null,null,null,null,null,null,null,null,"Schillerwein",null,"Eiswein","Rotweinlager 2",{"$f":"Lieferant!A10","v":0},"1,0 l","Landwein Main"]
[9,null,null,0,null,0,"bestellen!",null,0,0,0,0,0,null,null,null,null,null,null,null,null,null,null,null,null,null,null,null,null,null,null,null,null,null,null,null,null,null,null,null,null,null,null,null,null,null,null,null,null,null,null,null,null,"Badisch Rotgold",null,"Classic","Schaumweinlager",{"$f":"Lieferant!A11","v":0},"1,5 l","Landwein der Mosel"]
[10,null,null,0,null,0,"bestellen!",null,0,0,0,0,0,null,null,null,null,null,null,null,null,null,null,null,null,null,null,null,null,null,null,null,null,null,null,null,null,null,null,null,null,null,null,null,null,null,null,null,null,null,null,null,null,"Perlwein",null,"Selection",null,{"$f":"Lieferant!A12","v":0},"2,0 l","Landwein Neckar"]
[11,null,null,0,null,0,"bestellen!",null,0,0,0,0,0,null,null,null,null,null,null,null,null,null,null,null,null,null,null,null,null,null,null,null,null,null,null,null,null,null,null,null,null,null,null,null,null,null,null,null,null,null,null,null,null,"Diabetikerwein",null,null,null,{"$f":"Lieferant!A13","v":0},"3,0 l","Landwein Oberrhein"]
[12,null,null,0,null,0,"bestellen!",null,0,0,0,0,0,null,null,null,null,null,null,null,null,null,null,null,null,null,null,null,null,null,null,null,null,null,null,null,null,null,null,null,null,null,null,null,null,null,null,null,null,null,null,null,null,"Entalkoholisierter Wein",null,null,null,{"$f":"Lieferant!A14","v":0},"5,0 l","Landwein Rhein"]
[13,null,null,0,null,0,"bestellen!",null,0,0,0,0,0,null,null,null,null,null,null,null,null,null,null,null,null,null,null,null,null,null,null,null,null,null,null,null,null,null,null,null,null,null,null,null,null,null,null,null,null,null,null,null,null,"Cuvée",null,null,null,{"$f":"Lieferant!A15","v":0},"10,0 l","Landwein Rhein-Neckar"]
[14,null,null,0,null,0,"bestellen!",null,0,0,0,0,0,null,null,null,null,null,null,null,null,null,null,null,null,null,null,null,null,null,null,null,null,null,null,null,null,null,null,null,null,null,null,null,null,null,null,null,null,null,null,null,null,"Schaumwein",null,null,null,{"$f":"Lieferant!A22","v":0},null,"Landwein der Ruwer"]
[15,null,null,0,null,0,"bestellen!",null,0,0,0,0,0,null,null,null,null,null,null,null,null,null,null,null,null,null,null,null,null,null,null,null,null,null,null,null,null,null,null,null,null,null,null,null,null,null,null,null,null,null,null,null,null,null,null,null,null,{"$f":"Lieferant!A23","v":0},null,"Landwein der Saar"]
[16,null,null,0,null,0,"bestellen!",null,0,0,0,0,0,null,null,null,null,null,null,null,null,null,null,null,null,null,null,null,null,null,null,null,null,null,null,null,null,null,null,null,null,null,null,null,null,null,null,null,null,null,null,null,null,null,null,null,null,{"$f":"Lieferant!A24","v":0},null,"Mecklenburger Landwein"]
[17,null,null,0,null,0,"bestellen!",null,0,0,0,0,0,null,null,null,null,null,null,null,null,null,null,null,null,null,null,null,null,null,null,null,null,null,null,null,null,null,null,null,null,null,null,null,null,null,null,null,null,null,null,null,null,null,null,null,null,{"$f":"Lieferant!A25","v":0},null,"Mitteldeutscher Landwein"]
[18,null,null,0,null,0,"bestellen!",null,0,0,0,0,0,null,null,null,null,null,null,null,null,null,null,null,null,null,null,null,null,null,null,null,null,null,null,null,null,null,null,null,null,null,null,null,null,null,null,null,null,null,null,null,null,null,null,null,null,{"$f":"Lieferant!A26","v":0},null,"Nahegauer Landwein"]
[19,null,null,0,null,0,"bestellen!",null,0,0,0,0,0,null,null,null,null,null,null,null,null,null,null,null,null,null,null,null,null,null,null,null,null,null,null,null,null,null,null,null,null,null,null,null,null,null,null,null,null,null,null,null,null,null,null,null,null,{"$f":"Lieferant!A27","v":0},null,"Pfälzer Landwein"]
[20,null,null,0,null,0,"bestellen!",null,0,0,0,0,0,null,null,null,null,null,null,null,null,null,null,null,null,null,null,null,null,null,null,null,null,null,null,null,null,null,null,null,null,null,null,null,null,null,null,null,null,null,null,null,null,null,null,null,null,{"$f":"Lieferant!A28","v":0},null,"Regensburger Landwein"]
[21,null,null,0,null,0,"bestellen!",null,0,0,0,0,0,null,null,null,null,null,null,null,null,null,null,null,null,null,null,null,null,null,null,null,null,null,null,null,null,null,null,null,null,null,null,null,null,null,null,null,null,null,null,null,null,null,null,null,null,{"$f":"Lieferant!A29","v":0},null,"Rheinburgen Landwein"]
[22,null,null,0,null,0,"bestellen!",null,0,0,0,0,0,null,null,null,null,null,null,null,null,null,null,null,null,null,null,null,null,null,null,null,null,null,null,null,null,null,null,null,null,null,null,null,null,null,null,null,null,null,null,null,null,null,null,null,null,null,null,"Rheingauer Landwein"]
[23,null,null,0,null,0,"bestellen!",null,0,0,0,0,0,null,null,null,null,null,null,null,null,null,null,null,null,null,null,null,null,null,null,null,null,null,null,null,null,null,null,null,null,null,null,null,null,null,null,null,null,null,null,null,null,null,null,null,null,null,null,"Rheinischer Landwein"]
[24,null,null,0,null,0,"bestellen!",null,0,0,0,0,0,null,null,null,null,null,null,null,null,null,null,null,null,null,null,null,null,null,null,null,null,null,null,null,null,null,null,null,null,null,null,null,null,null,null,null,null,null,null,null,null,null,null,null,null,null,null,"Saarländischer Landwein"]
[25,null,null,0,null,0,"bestellen!",null,0,0,0,0,0,null,null,null,null,null,null,null,null,null,null,null,null,null,null,null,null,null,null,null,null,null,null,null,null,null,null,null,null,null,null,null,null,null,null,null,null,null,null,null,null,null,null,null,null,null,null,"Sächsischer Landwein"]
[26,null,null,0,null,0,"bestellen!",null,0,0,0,0,0,null,null,null,null,null,null,null,null,null,null,null,null,null,null,null,null,null,null,null,null,null,null,null,null,null,null,null,null,null,null,null,null,null,null,null,null,null,null,null,null,null,null,null,null,null,null,"Schleswig-Holsteiner Landwein"]
[27,null,null,0,null,0,"bestellen!",null,0,0,0,0,0,null,null,null,null,null,null,null,null,null,null,null,null,null,null,null,null,null,null,null,null,null,null,null,null,null,null,null,null,null,null,null,null,null,null,null,null,null,null,null,null,null,null,null,null,null,null,"Schwäbischer Landwein"]
[28,null,null,0,null,0,"bestellen!",null,0,0,0,0,0,null,null,null,null,null,null,null,null,null,null,null,null,null,null,null,null,null,null,null,null,null,null,null,null,null,null,null,null,null,null,null,null,null,null,null,null,null,null,null,null,null,null,null,null,null,null,"Starkenburger Landwein"]
[29,null,null,0,null,0,"bestellen!",null,0,0,0,0,0,null,null,null,null,null,null,null,null,null,null,null,null,null,null,null,null,null,null,null,null,null,null,null,null,null,null,null,null,null,null,null,null,null,null,null,null,null,null,null,null,null,null,null,null,null,null,"Taubertäler Landwein"]
[30,null,null,0,null,0,"bestellen!",null,0,0,0,0,0]
[31,null,null,0,null,0,"bestellen!",null,0,0,0,0,0]
[32,null,null,0,null,0,"bestellen!",null,0,0,0,0,0]
[33,null,null,0,null,0,"bestellen!",null,0,0,0,0,0]
[34,null,null,0,null,0,"bestellen!",null,0,0,0,0,0]
[35,null,null,0,null,0,"bestellen!",null,0,0,0,0,0]
[36,null,null,0,null,0,"bestellen!",null,0,0,0,0,0]
[37,null,null,0,null,0,"bestellen!",null,0,0,0,0,0]
[38,null,null,0,null,0,"bestellen!",null,0,0,0,0,0]
[39,null,null,0,null,0,"bestellen!",null,0,0,0,0,0]
[40,null,null,0,null,0,"bestellen!",null,0,0,0,0,0]
[41,null,null,0,null,0,"bestellen!",null,0,0,0,0,0]
[42,null,null,0,null,0,"bestellen!",null,0,0,0,0,0]
[43,null,null,0,null,0,"bestellen!",null,0,0,0,0,0]
[44,null,null,0,null,0,"bestellen!",null,0,0,0,0,0]
[45,null,null,0,null,0,"bestellen!",null,0,0,0,0,0]
[46,null,null,0,null,0,"bestellen!",null,0,0,0,0,0]
[47,null,null,0,null,0,"bestellen!",null,0,0,0,0,0]
[48,null,null,0,null,0,"bestellen!",null,0,0,0,0,0]
[49,null,null,0,null,0,"bestellen!",null,0,0,0,0,0]
[50,null,null,0,null,0,"bestellen!",null,0,0,0,0,0]
[51,null,null,0,null,0,"bestellen!",null,0,0,0,0,0]
[52,null,null,0,null,0,"bestellen!",null,0,0,0,0,0]
[53,null,null,0,null,0,"bestellen!",null,0,0,0,0,0]
[54,null,null,0,null,0,"bestellen!",null,0,0,0,0,0]
[55,null,null,0,null,0,"bestellen!",null,0,0,0,0,0]
[56,null,null,0,null,0,"bestellen!",null,0,0,0,0,0]
[57,null,null,0,null,0,"bestellen!",null,0,0,0,0,0]
[58,null,null,0,null,0,"bestellen!",0,0,0,0,0,0]
[59,null,null,0,null,0,"bestellen!",null,0,0,0,0,0]
[60,null,null,0,null,0,"bestellen!",null,0,0,0,0,0]
[61,null,null,0,null,0,"bestellen!",null,0,0,0,0,0]
[62,null,null,0,null,0,"bestellen!",null,0,0,0,0,0]
[63,null,null,0,null,0,"bestellen!",null,0,0,0,0,0]
[64,null,null,0,null,0,"bestellen!",null,0,0,0,0,0]
[65,null,null,0,null,0,{"$f":"IF(F79<=$I$3,\"bestellen!\",\"---\")","v":"bestellen!"},null,0,0,0,{"$f":"IF(ISERROR(F79*J79),\"\",F79*J79)","v":0},{"$f":"IF(ISERROR(F79*K79),\"\",F79*K79)","v":0}]
[{"$f":"A79+1","v":66},null,null,{"$f":"IF(F79<=0,C80,D79+C80-E79)","v":0},null,{"$f":"IF(F79+C80-E80<0,\"Fehler\",F79+C80-E80)","v":0},"bestellen!",null,{"$f":"H80+H80*19/100","v":0},{"$f":"IF(D79<=0,H80,(F79*J79+C80*H80)/D80)","v":0},{"$f":"J80+J80*19/100","v":0},0,0]
[67,null,null,0,null,0,"bestellen!",null,0,0,0,0,0]
[68,null,null,0,null,0,"bestellen!",null,0,0,0,0,0]
[69,null,null,0,null,0,"bestellen!",null,0,0,0,0,0]
[70,null,null,0,null,0,"bestellen!",null,0,0,0,0,0]
[71,null,null,0,null,0,"bestellen!",null,0,0,0,0,0]
[72,null,null,0,null,0,"bestellen!",null,0,0,0,0,0]
[73,null,null,0,null,0,"bestellen!",null,0,0,0,0,0]
[74,null,null,0,null,0,"bestellen!",null,0,0,0,0,0]
[75,null,null,0,null,0,"bestellen!",null,0,0,0,0,0]
[76,null,null,0,null,0,"bestellen!",null,0,0,0,0,0]
[77,null,null,0,null,0,"bestellen!",null,0,0,0,0,0]
[78,null,null,0,null,0,"bestellen!",null,0,0,0,0,0]
[79,null,null,0,null,0,"bestellen!",null,0,0,0,0,0]
[80,null,null,0,null,0,"bestellen!",null,0,0,0,0,0]
[81,null,null,0,null,0,"bestellen!",null,0,0,0,0,0]
[82,null,null,0,null,0,"bestellen!",null,0,0,0,0,0]
[83,null,null,0,null,0,"bestellen!",null,0,0,0,0,0]
[84,null,null,0,null,0,"bestellen!",null,0,0,0,0,0]
[85,null,null,0,null,0,"bestellen!",null,0,0,0,0,0]
[86,null,null,0,null,0,"bestellen!",null,0,0,0,0,0]
[87,null,null,0,null,0,"bestellen!",null,0,0,0,0,0]
[88,null,null,0,null,0,"bestellen!",null,0,0,0,0,0]
[89,null,null,0,null,0,"bestellen!",null,0,0,0,0,0]
[90,null,null,0,null,0,"bestellen!",null,0,0,0,0,0]

{"sheet":"Karte 11","index":21,"n_rows":104,"n_cols":60,"rows_kept":104,"cut":false,"hidden":false,"merged":[[11,2,11,5],[12,2,12,5],[4,2,4,5],[4,8,4,9],[6,2,6,5],[7,2,7,5],[8,2,8,5],[8,7,10,7],[8,8,10,9],[9,2,9,5],[10,2,10,5],[3,2,3,5],[0,0,0,1],[0,4,0,5],[1,2,1,5],[1,8,1,9],[2,2,2,5]]}
["akt.Weinkarte",null,{"$f":"NOW()","v":"2015-04-13T15:03:50.080"},null,"WEINLAGER"]
["Land",null,"Deutschland",null,null,null,null,"Lieferant"]
["Region",null,null,null,null,null,null,"Bestellbestand"]
["Gemeinde",null,null,null,null,null,null,"Höchstbestand",null,{"$f":"IF(ISERROR(F104>I4),\"\",IF(F104>I4,\"Bestand zu hoch!\",))","v":0}]
["Weinbergslage",null,null,null,null,null,null,"Lagerort"]
["Jahrgang",null,null,null,null,null,null,"Inhalt in Liter",null,{"$f":"IF(I5=\"Regal 1\",1,IF(I5=\"Regal 2\",2,IF(I5=\"Regal 3\",3,IF(I5=\"Regal 4\",4,IF(I5=\"Rotweinlager 1\",5,IF(I5=\"Rotweinlager 2\",6,IF(I5=\"Schaumweinlager\",7)))))))","v":false}]
["Rebsorte",null,null,null,null,null,null,"Reife ab",null,{"$f":"IF(I7-30>C1,\"Achtung!\",\"\")","v":""}]
["Herstellungsart",null,null,null,null,null,null,"Verbrauch bis",null,{"$f":"IF(I8-31<=C1,\"Achtung!\",\"\")","v":"Achtung!"}]
["dt. Güteklassen",null,null,null,{"$f":"IF(C9=1,\" Tafelwein\",IF(C9=2,\"Landwein\",IF(C9=3,\"Qualitätswein\",IF(C9=4,\"Qualitätswein m.Präd.\",\"\"))))","v":""},null,null,"Bemerkungen"]
["Dt. Landwein"]
["dt. Prädikatsstufe"]
["sonst. Klassifikation",null,null,null,null,null,null,"Art.-Nr. Lieferant"]
["Geschmack",null,null,null,null,null,null,"Artikel-Nr.",{"$f":"50+J6","v":50}]
["lf. Nr.","Datum","Zugang / Anf.best","S Zugang","Abgang","Bestand","Meldung","EKP/Stück [€]\nohne MWSt.","EKP/Stück [€]\ninkl. MWSt.","Æ EKP/Stück [€]\nohne MWSt.","Æ EKP/Stück [€]\ninkl. MWSt.","Lagerwert [€] zu EKP ohne MWSt.","Lagerwert [€] zu EKP inkl. MWSt.","Entnahme durch Abteilung","Kürzel Lagerist","Bemerkungen"]
[1,null,null,{"$f":"C15","v":0},null,{"$f":"C15","v":0},{"$f":"IF(F15<=$I$3,\"bestellen!\",\"---\")","v":"bestellen!"},null,{"$f":"H15+H15*19/100","v":0},{"$f":"H15","v":0},{"$f":"J15+J15*19/100","v":0},{"$f":"IF(ISERROR(F15*J15),\"\",F15*J15)","v":0},{"$f":"IF(ISERROR(F15*K15),\"\",F15*K15)","v":0}]
[{"$f":"A15+1","v":2},null,null,{"$f":"IF(F15<=0,C16,D15+C16-E15)","v":0},null,{"$f":"IF(F15+C16-E16<0,\"Fehler\",F15+C16-E16)","v":0},"bestellen!",null,{"$f":"H16+H16*19/100","v":0},{"$f":"IF(D15<=0,H16,(F15*J15+C16*H16)/D16)","v":0},{"$f":"J16+J16*19/100","v":0},0,0]
[3,null,null,0,null,0,"bestellen!",null,0,0,0,0,0,null,null,null,null,null,null,null,null,null,null,null,null,null,null,null,null,null,null,null,null,null,null,null,null,null,null,null,null,null,null,null,null,null,null,null,null,null,null,null,null,"Rotwein","Dt. Wein ohne Herkunftsbez.","Kabinett","Regal 1",{"$f":"Lieferant!A5","v":"Domaine du Croc du Merle"},"0,1 l"]
[4,null,null,0,null,0,"bestellen!",null,0,0,0,0,0,null,null,null,null,null,null,null,null,null,null,null,null,null,null,null,null,null,null,null,null,null,null,null,null,null,null,null,null,null,null,null,null,null,null,null,null,null,null,null,null,"Roséwein","Dt. Landwein","Spätlese","Regal 2",{"$f":"Lieferant!A6","v":"Forster Winzerverein"},"0,25 l","Ahrtaler Landwein"]
[5,null,null,0,null,0,"bestellen!",null,0,0,0,0,0,null,null,null,null,null,null,null,null,null,null,null,null,null,null,null,null,null,null,null,null,null,null,null,null,null,null,null,null,null,null,null,null,null,null,null,null,null,null,null,null,"Weißwein","Q.b.A.","Auslese","Regal 3",{"$f":"Lieferant!A7","v":"Gebiets-Winzergen. Franken eG"},"0,375 l","Badischer Landwein"]
[6,null,null,0,null,0,"bestellen!",null,0,0,0,0,0,null,null,null,null,null,null,null,null,null,null,null,null,null,null,null,null,null,null,null,null,null,null,null,null,null,null,null,null,null,null,null,null,null,null,null,null,null,null,null,null,"Weißherbst","Prädikatswein","Beerenauslese","Regal 4",{"$f":"Lieferant!A8","v":"Weingut Johannes Kleinmann"},"0,5 l","Bayrischer Bodensee Landwein"]
[7,null,null,0,null,0,"bestellen!",null,0,0,0,0,0,null,null,null,null,null,null,null,null,null,null,null,null,null,null,null,null,null,null,null,null,null,null,null,null,null,null,null,null,null,null,null,null,null,null,null,null,null,null,null,null,"Rotling",null,"Trockenbeerenauslese","Rotweinlager 1",{"$f":"Lieferant!A9","v":0},"0,75 l","Brandenburger Landwein"]
[8,null,null,0,null,0,"bestellen!",null,0,0,0,0,0,null,null,null,null,null,null,null,null,null,null,null,null,null,null,null,null,null,null,null,null,null,null,null,null,null,null,null,null,null,null,null,null,null,null,null,null,null,null,null,null,"Schillerwein",null,"Eiswein","Rotweinlager 2",{"$f":"Lieferant!A10","v":0},"1,0 l","Landwein Main"]
[9,null,null,0,null,0,"bestellen!",null,0,0,0,0,0,null,null,null,null,null,null,null,null,null,null,null,null,null,null,null,null,null,null,null,null,null,null,null,null,null,null,null,null,null,null,null,null,null,null,null,null,null,null,null,null,"Badisch Rotgold",null,"Classic","Schaumweinlager",{"$f":"Lieferant!A11","v":0},"1,5 l","Landwein der Mosel"]
[10,null,null,0,null,0,"bestellen!",null,0,0,0,0,0,null,null,null,null,null,null,null,null,null,null,null,null,null,null,null,null,null,null,null,null,null,null,null,null,null,null,null,null,null,null,null,null,null,null,null,null,null,null,null,null,"Perlwein",null,"Selection",null,{"$f":"Lieferant!A12","v":0},"2,0 l","Landwein Neckar"]
[11,null,null,0,null,0,"bestellen!",null,0,0,0,0,0,null,null,null,null,null,null,null,null,null,null,null,null,null,null,null,null,null,null,null,null,null,null,null,null,null,null,null,null,null,null,null,null,null,null,null,null,null,null,null,null,"Diabetikerwein",null,null,null,{"$f":"Lieferant!A13","v":0},"3,0 l","Landwein Oberrhein"]
[12,null,null,0,null,0,"bestellen!",null,0,0,0,0,0,null,null,null,null,null,null,null,null,null,null,null,null,null,null,null,null,null,null,null,null,null,null,null,null,null,null,null,null,null,null,null,null,null,null,null,null,null,null,null,null,"Entalkoholisierter Wein",null,null,null,{"$f":"Lieferant!A14","v":0},"5,0 l","Landwein Rhein"]
[13,null,null,0,null,0,"bestellen!",null,0,0,0,0,0,null,null,null,null,null,null,null,null,null,null,null,null,null,null,null,null,null,null,null,null,null,null,null,null,null,null,null,null,null,null,null,null,null,null,null,null,null,null,null,null,"Cuvée",null,null,null,{"$f":"Lieferant!A15","v":0},"10,0 l","Landwein Rhein-Neckar"]
[14,null,null,0,null,0,"bestellen!",null,0,0,0,0,0,null,null,null,null,null,null,null,null,null,null,null,null,null,null,null,null,null,null,null,null,null,null,null,null,null,null,null,null,null,null,null,null,null,null,null,null,null,null,null,null,"Schaumwein",null,null,null,{"$f":"Lieferant!A22","v":0},null,"Landwein der Ruwer"]
[15,null,null,0,null,0,"bestellen!",null,0,0,0,0,0,null,null,null,null,null,null,null,null,null,null,null,null,null,null,null,null,null,null,null,null,null,null,null,null,null,null,null,null,null,null,null,null,null,null,null,null,null,null,null,null,null,null,null,null,{"$f":"Lieferant!A23","v":0},null,"Landwein der Saar"]
[16,null,null,0,null,0,"bestellen!",null,0,0,0,0,0,null,null,null,null,null,null,null,null,null,null,null,null,null,null,null,null,null,null,null,null,null,null,null,null,null,null,null,null,null,null,null,null,null,null,null,null,null,null,null,null,null,null,null,null,{"$f":"Lieferant!A24","v":0},null,"Mecklenburger Landwein"]
[17,null,null,0,null,0,"bestellen!",null,0,0,0,0,0,null,null,null,null,null,null,null,null,null,null,null,null,null,null,null,null,null,null,null,null,null,null,null,null,null,null,null,null,null,null,null,null,null,null,null,null,null,null,null,null,null,null,null,null,{"$f":"Lieferant!A25","v":0},null,"Mitteldeutscher Landwein"]
[18,null,null,0,null,0,"bestellen!",null,0,0,0,0,0,null,null,null,null,null,null,null,null,null,null,null,null,null,null,null,null,null,null,null,null,null,null,null,null,null,null,null,null,null,null,null,null,null,null,null,null,null,null,null,null,null,null,null,null,{"$f":"Lieferant!A26","v":0},null,"Nahegauer Landwein"]
[19,null,null,0,null,0,"bestellen!",null,0,0,0,0,0,null,null,null,null,null,null,null,null,null,null,null,null,null,null,null,null,null,null,null,null,null,null,null,null,null,null,null,null,null,null,null,null,null,null,null,null,null,null,null,null,null,null,null,null,{"$f":"Lieferant!A27","v":0},null,"Pfälzer Landwein"]
[20,null,null,0,null,0,"bestellen!",null,0,0,0,0,0,null,null,null,null,null,null,null,null,null,null,null,null,null,null,null,null,null,null,null,null,null,null,null,null,null,null,null,null,null,null,null,null,null,null,null,null,null,null,null,null,null,null,null,null,{"$f":"Lieferant!A28","v":0},null,"Regensburger Landwein"]
[21,null,null,0,null,0,"bestellen!",null,0,0,0,0,0,null,null,null,null,null,null,null,null,null,null,null,null,null,null,null,null,null,null,null,null,null,null,null,null,null,null,null,null,null,null,null,null,null,null,null,null,null,null,null,null,null,null,null,null,{"$f":"Lieferant!A29","v":0},null,"Rheinburgen Landwein"]
[22,null,null,0,null,0,"bestellen!",null,0,0,0,0,0,null,null,null,null,null,null,null,null,null,null,null,null,null,null,null,null,null,null,null,null,null,null,null,null,null,null,null,null,null,null,null,null,null,null,null,null,null,null,null,null,null,null,null,null,null,null,"Rheingauer Landwein"]
[23,null,null,0,null,0,"bestellen!",null,0,0,0,0,0,null,null,null,null,null,null,null,null,null,null,null,null,null,null,null,null,null,null,null,null,null,null,null,null,null,null,null,null,null,null,null,null,null,null,null,null,null,null,null,null,null,null,null,null,null,null,"Rheinischer Landwein"]
[24,null,null,0,null,0,"bestellen!",null,0,0,0,0,0,null,null,null,null,null,null,null,null,null,null,null,null,null,null,null,null,null,null,null,null,null,null,null,null,null,null,null,null,null,null,null,null,null,null,null,null,null,null,null,null,null,null,null,null,null,null,"Saarländischer Landwein"]
[25,null,null,0,null,0,"bestellen!",null,0,0,0,0,0,null,null,null,null,null,null,null,null,null,null,null,null,null,null,null,null,null,null,null,null,null,null,null,null,null,null,null,null,null,null,null,null,null,null,null,null,null,null,null,null,null,null,null,null,null,null,"Sächsischer Landwein"]
[26,null,null,0,null,0,"bestellen!",null,0,0,0,0,0,null,null,null,null,null,null,null,null,null,null,null,null,null,null,null,null,null,null,null,null,null,null,null,null,null,null,null,null,null,null,null,null,null,null,null,null,null,null,null,null,null,null,null,null,null,null,"Schleswig-Holsteiner Landwein"]
[27,null,null,0,null,0,"bestellen!",null,0,0,0,0,0,null,null,null,null,null,null,null,null,null,null,null,null,null,null,null,null,null,null,null,null,null,null,null,null,null,null,null,null,null,null,null,null,null,null,null,null,null,null,null,null,null,null,null,null,null,null,"Schwäbischer Landwein"]
[28,null,null,0,null,0,"bestellen!",null,0,0,0,0,0,null,null,null,null,null,null,null,null,null,null,null,null,null,null,null,null,null,null,null,null,null,null,null,null,null,null,null,null,null,null,null,null,null,null,null,null,null,null,null,null,null,null,null,null,null,null,"Starkenburger Landwein"]
[29,null,null,0,null,0,"bestellen!",null,0,0,0,0,0,null,null,null,null,null,null,null,null,null,null,null,null,null,null,null,null,null,null,null,null,null,null,null,null,null,null,null,null,null,null,null,null,null,null,null,null,null,null,null,null,null,null,null,null,null,null,"Taubertäler Landwein"]
[30,null,null,0,null,0,"bestellen!",null,0,0,0,0,0]
[31,null,null,0,null,0,"bestellen!",null,0,0,0,0,0]
[32,null,null,0,null,0,"bestellen!",null,0,0,0,0,0]
[33,null,null,0,null,0,"bestellen!",null,0,0,0,0,0]
[34,null,null,0,null,0,"bestellen!",null,0,0,0,0,0]
[35,null,null,0,null,0,"bestellen!",null,0,0,0,0,0]
[36,null,null,0,null,0,"bestellen!",null,0,0,0,0,0]
[37,null,null,0,null,0,"bestellen!",null,0,0,0,0,0]
[38,null,null,0,null,0,"bestellen!",null,0,0,0,0,0]
[39,null,null,0,null,0,"bestellen!",null,0,0,0,0,0]
[40,null,null,0,null,0,"bestellen!",null,0,0,0,0,0]
[41,null,null,0,null,0,"bestellen!",null,0,0,0,0,0]
[42,null,null,0,null,0,"bestellen!",null,0,0,0,0,0]
[43,null,null,0,null,0,"bestellen!",null,0,0,0,0,0]
[44,null,null,0,null,0,"bestellen!",null,0,0,0,0,0]
[45,null,null,0,null,0,"bestellen!",null,0,0,0,0,0]
[46,null,null,0,null,0,"bestellen!",null,0,0,0,0,0]
[47,null,null,0,null,0,"bestellen!",null,0,0,0,0,0]
[48,null,null,0,null,0,"bestellen!",null,0,0,0,0,0]
[49,null,null,0,null,0,"bestellen!",null,0,0,0,0,0]
[50,null,null,0,null,0,"bestellen!",null,0,0,0,0,0]
[51,null,null,0,null,0,"bestellen!",null,0,0,0,0,0]
[52,null,null,0,null,0,"bestellen!",null,0,0,0,0,0]
[53,null,null,0,null,0,"bestellen!",null,0,0,0,0,0]
[54,null,null,0,null,0,"bestellen!",null,0,0,0,0,0]
[55,null,null,0,null,0,"bestellen!",null,0,0,0,0,0]
[56,null,null,0,null,0,"bestellen!",null,0,0,0,0,0]
[57,null,null,0,null,0,"bestellen!",null,0,0,0,0,0]
[58,null,null,0,null,0,"bestellen!",0,0,0,0,0,0]
[59,null,null,0,null,0,"bestellen!",null,0,0,0,0,0]
[60,null,null,0,null,0,"bestellen!",null,0,0,0,0,0]
[61,null,null,0,null,0,"bestellen!",null,0,0,0,0,0]
[62,null,null,0,null,0,"bestellen!",null,0,0,0,0,0]
[63,null,null,0,null,0,"bestellen!",null,0,0,0,0,0]
[64,null,null,0,null,0,"bestellen!",null,0,0,0,0,0]
[65,null,null,0,null,0,{"$f":"IF(F79<=$I$3,\"bestellen!\",\"---\")","v":"bestellen!"},null,0,0,0,{"$f":"IF(ISERROR(F79*J79),\"\",F79*J79)","v":0},{"$f":"IF(ISERROR(F79*K79),\"\",F79*K79)","v":0}]
[{"$f":"A79+1","v":66},null,null,{"$f":"IF(F79<=0,C80,D79+C80-E79)","v":0},null,{"$f":"IF(F79+C80-E80<0,\"Fehler\",F79+C80-E80)","v":0},"bestellen!",null,{"$f":"H80+H80*19/100","v":0},{"$f":"IF(D79<=0,H80,(F79*J79+C80*H80)/D80)","v":0},{"$f":"J80+J80*19/100","v":0},0,0]
[67,null,null,0,null,0,"bestellen!",null,0,0,0,0,0]
[68,null,null,0,null,0,"bestellen!",null,0,0,0,0,0]
[69,null,null,0,null,0,"bestellen!",null,0,0,0,0,0]
[70,null,null,0,null,0,"bestellen!",null,0,0,0,0,0]
[71,null,null,0,null,0,"bestellen!",null,0,0,0,0,0]
[72,null,null,0,null,0,"bestellen!",null,0,0,0,0,0]
[73,null,null,0,null,0,"bestellen!",null,0,0,0,0,0]
[74,null,null,0,null,0,"bestellen!",null,0,0,0,0,0]
[75,null,null,0,null,0,"bestellen!",null,0,0,0,0,0]
[76,null,null,0,null,0,"bestellen!",null,0,0,0,0,0]
[77,null,null,0,null,0,"bestellen!",null,0,0,0,0,0]
[78,null,null,0,null,0,"bestellen!",null,0,0,0,0,0]
[79,null,null,0,null,0,"bestellen!",null,0,0,0,0,0]
[80,null,null,0,null,0,"bestellen!",null,0,0,0,0,0]
[81,null,null,0,null,0,"bestellen!",null,0,0,0,0,0]
[82,null,null,0,null,0,"bestellen!",null,0,0,0,0,0]
[83,null,null,0,null,0,"bestellen!",null,0,0,0,0,0]
[84,null,null,0,null,0,"bestellen!",null,0,0,0,0,0]
[85,null,null,0,null,0,"bestellen!",null,0,0,0,0,0]
[86,null,null,0,null,0,"bestellen!",null,0,0,0,0,0]
[87,null,null,0,null,0,"bestellen!",null,0,0,0,0,0]
[88,null,null,0,null,0,"bestellen!",null,0,0,0,0,0]
[89,null,null,0,null,0,"bestellen!",null,0,0,0,0,0]
[90,null,null,0,null,0,"bestellen!",null,0,0,0,0,0]

{"sheet":"Karte 12","index":22,"n_rows":104,"n_cols":60,"rows_kept":104,"cut":false,"hidden":false,"merged":[[11,2,11,5],[12,2,12,5],[4,2,4,5],[4,8,4,9],[6,2,6,5],[7,2,7,5],[8,2,8,5],[8,7,10,7],[8,8,10,9],[9,2,9,5],[10,2,10,5],[3,2,3,5],[0,0,0,1],[0,4,0,5],[1,2,1,5],[1,8,1,9],[2,2,2,5]]}
["akt.Weinkarte",null,{"$f":"NOW()","v":"2015-04-13T15:03:50.080"},null,"WEINLAGER"]
["Land",null,"Deutschland",null,null,null,null,"Lieferant"]
["Region",null,null,null,null,null,null,"Bestellbestand"]
["Gemeinde",null,null,null,null,null,null,"Höchstbestand",null,{"$f":"IF(ISERROR(F104>I4),\"\",IF(F104>I4,\"Bestand zu hoch!\",))","v":0}]
["Weinbergslage",null,null,null,null,null,null,"Lagerort"]
["Jahrgang",null,null,null,null,null,null,"Inhalt in Liter",null,{"$f":"IF(I5=\"Regal 1\",1,IF(I5=\"Regal 2\",2,IF(I5=\"Regal 3\",3,IF(I5=\"Regal 4\",4,IF(I5=\"Rotweinlager 1\",5,IF(I5=\"Rotweinlager 2\",6,IF(I5=\"Schaumweinlager\",7)))))))","v":false}]
["Rebsorte",null,null,null,null,null,null,"Reife ab",null,{"$f":"IF(I7-30>C1,\"Achtung!\",\"\")","v":""}]
["Herstellungsart",null,null,null,null,null,null,"Verbrauch bis",null,{"$f":"IF(I8-31<=C1,\"Achtung!\",\"\")","v":"Achtung!"}]
["dt. Güteklassen",null,null,null,{"$f":"IF(C9=1,\" Tafelwein\",IF(C9=2,\"Landwein\",IF(C9=3,\"Qualitätswein\",IF(C9=4,\"Qualitätswein m.Präd.\",\"\"))))","v":""},null,null,"Bemerkungen"]
["Dt. Landwein"]
["dt. Prädikatsstufe"]
["sonst. Klassifikation",null,null,null,null,null,null,"Art.-Nr. Lieferant"]
["Geschmack",null,null,null,null,null,null,"Artikel-Nr.",{"$f":"50+J6","v":50}]
["lf. Nr.","Datum","Zugang / Anf.best","S Zugang","Abgang","Bestand","Meldung","EKP/Stück [€]\nohne MWSt.","EKP/Stück [€]\ninkl. MWSt.","Æ EKP/Stück [€]\nohne MWSt.","Æ EKP/Stück [€]\ninkl. MWSt.","Lagerwert [€] zu EKP ohne MWSt.","Lagerwert [€] zu EKP inkl. MWSt.","Entnahme durch Abteilung","Kürzel Lagerist","Bemerkungen"]
[1,null,null,{"$f":"C15","v":0},null,{"$f":"C15","v":0},{"$f":"IF(F15<=$I$3,\"bestellen!\",\"---\")","v":"bestellen!"},null,{"$f":"H15+H15*19/100","v":0},{"$f":"H15","v":0},{"$f":"J15+J15*19/100","v":0},{"$f":"IF(ISERROR(F15*J15),\"\",F15*J15)","v":0},{"$f":"IF(ISERROR(F15*K15),\"\",F15*K15)","v":0}]
[{"$f":"A15+1","v":2},null,null,{"$f":"IF(F15<=0,C16,D15+C16-E15)","v":0},null,{"$f":"IF(F15+C16-E16<0,\"Fehler\",F15+C16-E16)","v":0},"bestellen!",null,{"$f":"H16+H16*19/100","v":0},{"$f":"IF(D15<=0,H16,(F15*J15+C16*H16)/D16)","v":0},{"$f":"J16+J16*19/100","v":0},0,0]
[3,null,null,0,null,0,"bestellen!",null,0,0,0,0,0,null,null,null,null,null,null,null,null,null,null,null,null,null,null,null,null,null,null,null,null,null,null,null,null,null,null,null,null,null,null,null,null,null,null,null,null,null,null,null,null,"Rotwein","Dt. Wein ohne Herkunftsbez.","Kabinett","Regal 1",{"$f":"Lieferant!A5","v":"Domaine du Croc du Merle"},"0,1 l"]
[4,null,null,0,null,0,"bestellen!",null,0,0,0,0,0,null,null,null,null,null,null,null,null,null,null,null,null,null,null,null,null,null,null,null,null,null,null,null,null,null,null,null,null,null,null,null,null,null,null,null,null,null,null,null,null,"Roséwein","Dt. Landwein","Spätlese","Regal 2",{"$f":"Lieferant!A6","v":"Forster Winzerverein"},"0,25 l","Ahrtaler Landwein"]
[5,null,null,0,null,0,"bestellen!",null,0,0,0,0,0,null,null,null,null,null,null,null,null,null,null,null,null,null,null,null,null,null,null,null,null,null,null,null,null,null,null,null,null,null,null,null,null,null,null,null,null,null,null,null,null,"Weißwein","Q.b.A.","Auslese","Regal 3",{"$f":"Lieferant!A7","v":"Gebiets-Winzergen. Franken eG"},"0,375 l","Badischer Landwein"]
[6,null,null,0,null,0,"bestellen!",null,0,0,0,0,0,null,null,null,null,null,null,null,null,null,null,null,null,null,null,null,null,null,null,null,null,null,null,null,null,null,null,null,null,null,null,null,null,null,null,null,null,null,null,null,null,"Weißherbst","Prädikatswein","Beerenauslese","Regal 4",{"$f":"Lieferant!A8","v":"Weingut Johannes Kleinmann"},"0,5 l","Bayrischer Bodensee Landwein"]
[7,null,null,0,null,0,"bestellen!",null,0,0,0,0,0,null,null,null,null,null,null,null,null,null,null,null,null,null,null,null,null,null,null,null,null,null,null,null,null,null,null,null,null,null,null,null,null,null,null,null,null,null,null,null,null,"Rotling",null,"Trockenbeerenauslese","Rotweinlager 1",{"$f":"Lieferant!A9","v":0},"0,75 l","Brandenburger Landwein"]
[8,null,null,0,null,0,"bestellen!",null,0,0,0,0,0,null,null,null,null,null,null,null,null,null,null,null,null,null,null,null,null,null,null,null,null,null,null,null,null,null,null,null,null,null,null,null,null,null,null,null,null,null,null,null,null,"Schillerwein",null,"Eiswein","Rotweinlager 2",{"$f":"Lieferant!A10","v":0},"1,0 l","Landwein Main"]
[9,null,null,0,null,0,"bestellen!",null,0,0,0,0,0,null,null,null,null,null,null,null,null,null,null,null,null,null,null,null,null,null,null,null,null,null,null,null,null,null,null,null,null,null,null,null,null,null,null,null,null,null,null,null,null,"Badisch Rotgold",null,"Classic","Schaumweinlager",{"$f":"Lieferant!A11","v":0},"1,5 l","Landwein der Mosel"]
[10,null,null,0,null,0,"bestellen!",null,0,0,0,0,0,null,null,null,null,null,null,null,null,null,null,null,null,null,null,null,null,null,null,null,null,null,null,null,null,null,null,null,null,null,null,null,null,null,null,null,null,null,null,null,null,"Perlwein",null,"Selection",null,{"$f":"Lieferant!A12","v":0},"2,0 l","Landwein Neckar"]
[11,null,null,0,null,0,"bestellen!",null,0,0,0,0,0,null,null,null,null,null,null,null,null,null,null,null,null,null,null,null,null,null,null,null,null,null,null,null,null,null,null,null,null,null,null,null,null,null,null,null,null,null,null,null,null,"Diabetikerwein",null,null,null,{"$f":"Lieferant!A13","v":0},"3,0 l","Landwein Oberrhein"]
[12,null,null,0,null,0,"bestellen!",null,0,0,0,0,0,null,null,null,null,null,null,null,null,null,null,null,null,null,null,null,null,null,null,null,null,null,null,null,null,null,null,null,null,null,null,null,null,null,null,null,null,null,null,null,null,"Entalkoholisierter Wein",null,null,null,{"$f":"Lieferant!A14","v":0},"5,0 l","Landwein Rhein"]
[13,null,null,0,null,0,"bestellen!",null,0,0,0,0,0,null,null,null,null,null,null,null,null,null,null,null,null,null,null,null,null,null,null,null,null,null,null,null,null,null,null,null,null,null,null,null,null,null,null,null,null,null,null,null,null,"Cuvée",null,null,null,{"$f":"Lieferant!A15","v":0},"10,0 l","Landwein Rhein-Neckar"]
[14,null,null,0,null,0,"bestellen!",null,0,0,0,0,0,null,null,null,null,null,null,null,null,null,null,null,null,null,null,null,null,null,null,null,null,null,null,null,null,null,null,null,null,null,null,null,null,null,null,null,null,null,null,null,null,"Schaumwein",null,null,null,{"$f":"Lieferant!A22","v":0},null,"Landwein der Ruwer"]
[15,null,null,0,null,0,"bestellen!",null,0,0,0,0,0,null,null,null,null,null,null,null,null,null,null,null,null,null,null,null,null,null,null,null,null,null,null,null,null,null,null,null,null,null,null,null,null,null,null,null,null,null,null,null,null,null,null,null,null,{"$f":"Lieferant!A23","v":0},null,"Landwein der Saar"]
[16,null,null,0,null,0,"bestellen!",null,0,0,0,0,0,null,null,null,null,null,null,null,null,null,null,null,null,null,null,null,null,null,null,null,null,null,null,null,null,null,null,null,null,null,null,null,null,null,null,null,null,null,null,null,null,null,null,null,null,{"$f":"Lieferant!A24","v":0},null,"Mecklenburger Landwein"]
[17,null,null,0,null,0,"bestellen!",null,0,0,0,0,0,null,null,null,null,null,null,null,null,null,null,null,null,null,null,null,null,null,null,null,null,null,null,null,null,null,null,null,null,null,null,null,null,null,null,null,null,null,null,null,null,null,null,null,null,{"$f":"Lieferant!A25","v":0},null,"Mitteldeutscher Landwein"]
[18,null,null,0,null,0,"bestellen!",null,0,0,0,0,0,null,null,null,null,null,null,null,null,null,null,null,null,null,null,null,null,null,null,null,null,null,null,null,null,null,null,null,null,null,null,null,null,null,null,null,null,null,null,null,null,null,null,null,null,{"$f":"Lieferant!A26","v":0},null,"Nahegauer Landwein"]
[19,null,null,0,null,0,"bestellen!",null,0,0,0,0,0,null,null,null,null,null,null,null,null,null,null,null,null,null,null,null,null,null,null,null,null,null,null,null,null,null,null,null,null,null,null,null,null,null,null,null,null,null,null,null,null,null,null,null,null,{"$f":"Lieferant!A27","v":0},null,"Pfälzer Landwein"]
[20,null,null,0,null,0,"bestellen!",null,0,0,0,0,0,null,null,null,null,null,null,null,null,null,null,null,null,null,null,null,null,null,null,null,null,null,null,null,null,null,null,null,null,null,null,null,null,null,null,null,null,null,null,null,null,null,null,null,null,{"$f":"Lieferant!A28","v":0},null,"Regensburger Landwein"]
[21,null,null,0,null,0,"bestellen!",null,0,0,0,0,0,null,null,null,null,null,null,null,null,null,null,null,null,null,null,null,null,null,null,null,null,null,null,null,null,null,null,null,null,null,null,null,null,null,null,null,null,null,null,null,null,null,null,null,null,{"$f":"Lieferant!A29","v":0},null,"Rheinburgen Landwein"]
[22,null,null,0,null,0,"bestellen!",null,0,0,0,0,0,null,null,null,null,null,null,null,null,null,null,null,null,null,null,null,null,null,null,null,null,null,null,null,null,null,null,null,null,null,null,null,null,null,null,null,null,null,null,null,null,null,null,null,null,null,null,"Rheingauer Landwein"]
[23,null,null,0,null,0,"bestellen!",null,0,0,0,0,0,null,null,null,null,null,null,null,null,null,null,null,null,null,null,null,null,null,null,null,null,null,null,null,null,null,null,null,null,null,null,null,null,null,null,null,null,null,null,null,null,null,null,null,null,null,null,"Rheinischer Landwein"]
[24,null,null,0,null,0,"bestellen!",null,0,0,0,0,0,null,null,null,null,null,null,null,null,null,null,null,null,null,null,null,null,null,null,null,null,null,null,null,null,null,null,null,null,null,null,null,null,null,null,null,null,null,null,null,null,null,null,null,null,null,null,"Saarländischer Landwein"]
[25,null,null,0,null,0,"bestellen!",null,0,0,0,0,0,null,null,null,null,null,null,null,null,null,null,null,null,null,null,null,null,null,null,null,null,null,null,null,null,null,null,null,null,null,null,null,null,null,null,null,null,null,null,null,null,null,null,null,null,null,null,"Sächsischer Landwein"]
[26,null,null,0,null,0,"bestellen!",null,0,0,0,0,0,null,null,null,null,null,null,null,null,null,null,null,null,null,null,null,null,null,null,null,null,null,null,null,null,null,null,null,null,null,null,null,null,null,null,null,null,null,null,null,null,null,null,null,null,null,null,"Schleswig-Holsteiner Landwein"]
[27,null,null,0,null,0,"bestellen!",null,0,0,0,0,0,null,null,null,null,null,null,null,null,null,null,null,null,null,null,null,null,null,null,null,null,null,null,null,null,null,null,null,null,null,null,null,null,null,null,null,null,null,null,null,null,null,null,null,null,null,null,"Schwäbischer Landwein"]
[28,null,null,0,null,0,"bestellen!",null,0,0,0,0,0,null,null,null,null,null,null,null,null,null,null,null,null,null,null,null,null,null,null,null,null,null,null,null,null,null,null,null,null,null,null,null,null,null,null,null,null,null,null,null,null,null,null,null,null,null,null,"Starkenburger Landwein"]
[29,null,null,0,null,0,"bestellen!",null,0,0,0,0,0,null,null,null,null,null,null,null,null,null,null,null,null,null,null,null,null,null,null,null,null,null,null,null,null,null,null,null,null,null,null,null,null,null,null,null,null,null,null,null,null,null,null,null,null,null,null,"Taubertäler Landwein"]
[30,null,null,0,null,0,"bestellen!",null,0,0,0,0,0]
[31,null,null,0,null,0,"bestellen!",null,0,0,0,0,0]
[32,null,null,0,null,0,"bestellen!",null,0,0,0,0,0]
[33,null,null,0,null,0,"bestellen!",null,0,0,0,0,0]
[34,null,null,0,null,0,"bestellen!",null,0,0,0,0,0]
[35,null,null,0,null,0,"bestellen!",null,0,0,0,0,0]
[36,null,null,0,null,0,"bestellen!",null,0,0,0,0,0]
[37,null,null,0,null,0,"bestellen!",null,0,0,0,0,0]
[38,null,null,0,null,0,"bestellen!",null,0,0,0,0,0]
[39,null,null,0,null,0,"bestellen!",null,0,0,0,0,0]
[40,null,null,0,null,0,"bestellen!",null,0,0,0,0,0]
[41,null,null,0,null,0,"bestellen!",null,0,0,0,0,0]
[42,null,null,0,null,0,"bestellen!",null,0,0,0,0,0]
[43,null,null,0,null,0,"bestellen!",null,0,0,0,0,0]
[44,null,null,0,null,0,"bestellen!",null,0,0,0,0,0]
[45,null,null,0,null,0,"bestellen!",null,0,0,0,0,0]
[46,null,null,0,null,0,"bestellen!",null,0,0,0,0,0]
[47,null,null,0,null,0,"bestellen!",null,0,0,0,0,0]
[48,null,null,0,null,0,"bestellen!",null,0,0,0,0,0]
[49,null,null,0,null,0,"bestellen!",null,0,0,0,0,0]
[50,null,null,0,null,0,"bestellen!",null,0,0,0,0,0]
[51,null,null,0,null,0,"bestellen!",null,0,0,0,0,0]
[52,null,null,0,null,0,"bestellen!",null,0,0,0,0,0]
[53,null,null,0,null,0,"bestellen!",null,0,0,0,0,0]
[54,null,null,0,null,0,"bestellen!",null,0,0,0,0,0]
[55,null,null,0,null,0,"bestellen!",null,0,0,0,0,0]
[56,null,null,0,null,0,"bestellen!",null,0,0,0,0,0]
[57,null,null,0,null,0,"bestellen!",null,0,0,0,0,0]
[58,null,null,0,null,0,"bestellen!",0,0,0,0,0,0]
[59,null,null,0,null,0,"bestellen!",null,0,0,0,0,0]
[60,null,null,0,null,0,"bestellen!",null,0,0,0,0,0]
[61,null,null,0,null,0,"bestellen!",null,0,0,0,0,0]
[62,null,null,0,null,0,"bestellen!",null,0,0,0,0,0]
[63,null,null,0,null,0,"bestellen!",null,0,0,0,0,0]
[64,null,null,0,null,0,"bestellen!",null,0,0,0,0,0]
[65,null,null,0,null,0,{"$f":"IF(F79<=$I$3,\"bestellen!\",\"---\")","v":"bestellen!"},null,0,0,0,{"$f":"IF(ISERROR(F79*J79),\"\",F79*J79)","v":0},{"$f":"IF(ISERROR(F79*K79),\"\",F79*K79)","v":0}]
[{"$f":"A79+1","v":66},null,null,{"$f":"IF(F79<=0,C80,D79+C80-E79)","v":0},null,{"$f":"IF(F79+C80-E80<0,\"Fehler\",F79+C80-E80)","v":0},"bestellen!",null,{"$f":"H80+H80*19/100","v":0},{"$f":"IF(D79<=0,H80,(F79*J79+C80*H80)/D80)","v":0},{"$f":"J80+J80*19/100","v":0},0,0]
[67,null,null,0,null,0,"bestellen!",null,0,0,0,0,0]
[68,null,null,0,null,0,"bestellen!",null,0,0,0,0,0]
[69,null,null,0,null,0,"bestellen!",null,0,0,0,0,0]
[70,null,null,0,null,0,"bestellen!",null,0,0,0,0,0]
[71,null,null,0,null,0,"bestellen!",null,0,0,0,0,0]
[72,null,null,0,null,0,"bestellen!",null,0,0,0,0,0]
[73,null,null,0,null,0,"bestellen!",null,0,0,0,0,0]
[74,null,null,0,null,0,"bestellen!",null,0,0,0,0,0]
[75,null,null,0,null,0,"bestellen!",null,0,0,0,0,0]
[76,null,null,0,null,0,"bestellen!",null,0,0,0,0,0]
[77,null,null,0,null,0,"bestellen!",null,0,0,0,0,0]
[78,null,null,0,null,0,"bestellen!",null,0,0,0,0,0]
[79,null,null,0,null,0,"bestellen!",null,0,0,0,0,0]
[80,null,null,0,null,0,"bestellen!",null,0,0,0,0,0]
[81,null,null,0,null,0,"bestellen!",null,0,0,0,0,0]
[82,null,null,0,null,0,"bestellen!",null,0,0,0,0,0]
[83,null,null,0,null,0,"bestellen!",null,0,0,0,0,0]
[84,null,null,0,null,0,"bestellen!",null,0,0,0,0,0]
[85,null,null,0,null,0,"bestellen!",null,0,0,0,0,0]
[86,null,null,0,null,0,"bestellen!",null,0,0,0,0,0]
[87,null,null,0,null,0,"bestellen!",null,0,0,0,0,0]
[88,null,null,0,null,0,"bestellen!",null,0,0,0,0,0]
[89,null,null,0,null,0,"bestellen!",null,0,0,0,0,0]
[90,null,null,0,null,0,"bestellen!",null,0,0,0,0,0]